Service Area,Service Division,Expense Type,Expense Code,Detailed Expense Type,Payment Date,Transaction Number,Amount Exc Vat,Supplier Name
Resources,Financial Services,Supplies and Services,384199,Miscellaneous Expenses,02-Oct-2017,3340557-8020930117,709.98,ADVANCED PAYMENT SOLUTIONS LTD.
Resources,Financial Services,Supplies and Services,384199,Miscellaneous Expenses,02-Oct-2017,3340557-8020930317,509.97,ADVANCED PAYMENT SOLUTIONS LTD.
Transformation and Partnerships,Partnerships & Community Engagement Div.,Transfer Payments,525030,Other,02-Oct-2017,3340570-VOUCHER17AB-CHES003,"7,500.00",ARTICHOKE TRUST.
Regeneration and Local Services,Culture & Sport,Supplies and Services,312013,Newspapers Books and Periodicals,02-Oct-2017,3340572-5501045,620.34,ASKEWS & HOLTS LIBRARY SERVICES LTD.
Regeneration and Local Services,Culture & Sport,Supplies and Services,312013,Newspapers Books and Periodicals,02-Oct-2017,3340572-5501146,590.18,ASKEWS & HOLTS LIBRARY SERVICES LTD.
Regeneration and Local Services,Technical Services,Supplies and Services,338027,Services,02-Oct-2017,3340573-17019223,800.00,ATKINS GLOBAL.
Regeneration and Local Services,Culture & Sport,Fees,901002,Professional fees,02-Oct-2017,3340573-17019403,725.00,ATKINS GLOBAL.
Regeneration and Local Services,Culture & Sport,Premises,135005,Water Services,02-Oct-2017,3340618-3185,"2,087.80",DEMETER LTD.
Regeneration and Local Services,Transport and Contracted Services,Third Party Payments,430106,Rendered by Private Contractors,02-Oct-2017,3340639-AUG/SEPT17,"4,856.00",FERRYHILL VILLAGE TRAVEL.
Transformation and Partnerships,Partnerships & Community Engagement Div.,Cap Exp on Grants & Other Financial Assistance (REFCUS),918004,Contributions to other bodies,02-Oct-2017,3340660-VOUCHER16NB-MDUR048,"3,500.00",HEALEYFIELD PARISH COUNCIL.
Children and Young Peoples Services,Head of Education,Supplies and Services,375001,Private Finance Initiative,02-Oct-2017,3340666-ISD0219,"2,795.56",INSPIREDSPACES DURHAM (PROJECTCO1) LTD.
Regeneration and Local Services,Technical Services,Supplies and Services,304221,Equipment and Materials,02-Oct-2017,3340676-G0I325/D,699.20,JT DOVE LTD.
Regeneration and Local Services,Technical Services,Third Party Payments,430100,Rendered by Private Contractors,02-Oct-2017,3340677-24614,"16,523.69",KAEFER LTD.
Regeneration and Local Services,Culture & Sport,Supplies and Services,324117,Provisions,02-Oct-2017,3340702-904023219,606.82,MOLSON COORS BREWING COMPANY (UK) LTD.
Regeneration and Local Services,Culture & Sport,Supplies and Services,324117,Provisions,02-Oct-2017,3340702-904051824,"1,347.82",MOLSON COORS BREWING COMPANY (UK) LTD.
Adult and Health Services,Public Health,Third Party Payments,460803,Contract Payments,02-Oct-2017,3340712-7010100807,"150,000.00",NHS DDES CCG.
Adult and Health Services,Head of Adults,Third Party Payments,470101,Purchase of Care,02-Oct-2017,3340716-0000033780,"37,156.02",NORTH EAST AUTISM SOCIETY.
Regeneration and Local Services,Direct Services,Supplies and Services,304259,Equipment and Materials,02-Oct-2017,3340737-2123010084,"2,740.00",PRECIA-MOLEN UK LTD T/A SHERING WEIGHING LTD.
Children and Young Peoples Services,Head of Looked After Provision Permanence and Care Leavers,Supplies and Services,364352,Grants to Voluntary Organisations,02-Oct-2017,3340754-1330,"2,084.45",ROCSOLID.
Transformation and Partnerships,Partnerships & Community Engagement Div.,Cap Exp on Grants & Other Financial Assistance (REFCUS),918004,Contributions to other bodies,02-Oct-2017,3340768-VOUCHER17NB-EDRC005,"2,240.96",SEDGEFIELD COMMUNITY ASSOCIATION.
Transformation and Partnerships,Partnerships & Community Engagement Div.,Supplies and Services,384086,Miscellaneous Expenses,02-Oct-2017,3340770-NICH05,597.00,SHILDON METHODIST CHURCH.
Transformation and Partnerships,Partnerships & Community Engagement Div.,Cap Exp on Grants & Other Financial Assistance (REFCUS),918004,Contributions to other bodies,02-Oct-2017,3340780-VOUCHER16NB-SPEN039,"2,868.00",SOLAN CONNOR FAWCETT FAMILY CANCER TRUST.
Transformation and Partnerships,Comms & Information Management,Supplies and Services,384540,Miscellaneous Expenses,02-Oct-2017,3340798-4859,"1,350.00",THE CRACK LTD.
Children and Young Peoples Services,Head of Education,Supplies and Services,384199,Miscellaneous Expenses,02-Oct-2017,3340805-47/17,"1,000.00",THRILLS & SKILLS FOR LIFE.
Children and Young Peoples Services,Head of Looked After Provision Permanence and Care Leavers,Third Party Payments,440027,Other Third Party Payments,03-Oct-2017,3340979-1226587,941.64,REDACTED - PAYMENT TO INDIVIDUAL
Children and Young Peoples Services,Head of Looked After Provision Permanence and Care Leavers,Third Party Payments,440028,Other Third Party Payments,03-Oct-2017,3341034-1227868,941.64,REDACTED - PAYMENT TO INDIVIDUAL
Children and Young Peoples Services,Head of Looked After Provision Permanence and Care Leavers,Third Party Payments,440001,Other Third Party Payments,03-Oct-2017,3341151-1226683,564.06,REDACTED - PAYMENT TO INDIVIDUAL
Regeneration and Local Services,Culture & Sport,Third Party Payments,430100,Rendered by Private Contractors,03-Oct-2017,3341564-1LIFE19071,"131,221.00",1LIFE MANAGEMENT SOLUTIONS LTD.
Regeneration and Local Services,Technical Services,Supplies and Services,304221,Equipment and Materials,03-Oct-2017,3341567-25388495,968.98,AGGREGATE INDUSTRIES UK LTD.
Regeneration and Local Services,Technical Services,Supplies and Services,304221,Equipment and Materials,03-Oct-2017,3341567-25395364,"1,876.97",AGGREGATE INDUSTRIES UK LTD.
Regeneration and Local Services,Technical Services,Supplies and Services,304221,Equipment and Materials,03-Oct-2017,3341567-25412137,"1,441.52",AGGREGATE INDUSTRIES UK LTD.
Regeneration and Local Services,Technical Services,Supplies and Services,304221,Equipment and Materials,03-Oct-2017,3341567-25418041,"1,480.59",AGGREGATE INDUSTRIES UK LTD.
Regeneration and Local Services,Technical Services,Supplies and Services,304221,Equipment and Materials,03-Oct-2017,3341567-25424291,"2,002.73",AGGREGATE INDUSTRIES UK LTD.
Regeneration and Local Services,Technical Services,Supplies and Services,304221,Equipment and Materials,03-Oct-2017,3341567-25430619,"1,477.16",AGGREGATE INDUSTRIES UK LTD.
Regeneration and Local Services,Technical Services,Third Party Payments,430100,Rendered by Private Contractors,03-Oct-2017,3341569-07045,"1,143.00",ALL EVENTS SECURITY LTD (AES).
Regeneration and Local Services,Technical Services,Third Party Payments,430100,Rendered by Private Contractors,03-Oct-2017,3341569-07056,"1,120.50",ALL EVENTS SECURITY LTD (AES).
Regeneration and Local Services,Technical Services,Third Party Payments,430100,Rendered by Private Contractors,03-Oct-2017,3341569-07070,"1,098.00",ALL EVENTS SECURITY LTD (AES).
Regeneration and Local Services,Technical Services,Third Party Payments,430100,Rendered by Private Contractors,03-Oct-2017,3341569-07091,"1,233.00",ALL EVENTS SECURITY LTD (AES).
Adult and Health Services,Public Health,Third Party Payments,460802,Contract Payments,03-Oct-2017,3341600-7910034427,"3,485.00",CITY HOSPITALS SUNDERLAND NHS FOUNDATION TRUST.
Adult and Health Services,Public Health,Third Party Payments,460802,Contract Payments,03-Oct-2017,3341600-7910034428,"7,339.00",CITY HOSPITALS SUNDERLAND NHS FOUNDATION TRUST.
Adult and Health Services,Public Health,Third Party Payments,460802,Contract Payments,03-Oct-2017,3341600-7910034794,"2,141.00",CITY HOSPITALS SUNDERLAND NHS FOUNDATION TRUST.
Adult and Health Services,Public Health,Third Party Payments,460802,Contract Payments,03-Oct-2017,3341600-7910034795,"7,798.00",CITY HOSPITALS SUNDERLAND NHS FOUNDATION TRUST.
Children and Young Peoples Services,Head of Looked After Provision Permanence and Care Leavers,Supplies and Services,364352,Grants to Voluntary Organisations,03-Oct-2017,3341601-1548,800.00,CITY OF SUNDERLAND YMCA LTD.
Resources,Financial Services,Supplies and Services,342051,Computers and Communications,03-Oct-2017,3341602-C/RB152596,"5,180.00",CIVICA UK LTD.
Resources,Legal & Democratic Services,Supplies and Services,338042,Services,03-Oct-2017,3341622-330511/INVCF109,540.00,DERE STREET BARRISTERS.
Regeneration and Local Services,Spatial Policy Planning Assets & Environment,Supplies and Services,384199,Miscellaneous Expenses,03-Oct-2017,3341624-03-010817,"11,874.00",DIVERSE SENSOR TECHNOLOGY LTD (DST).
Regeneration and Local Services,Transport and Contracted Services,Supplies and Services,338080,Services,03-Oct-2017,3341631-988455,"1,719.32",ESP SYSTEX LTD.
Adult and Health Services,Head of Adults,Premises,125009,Rents,03-Oct-2017,3341637-FTL0601,"4,250.00",FINCHALE TRADING LTD.
Children and Young Peoples Services,Head of Looked After Provision Permanence and Care Leavers,Supplies and Services,364352,Grants to Voluntary Organisations,03-Oct-2017,3341640-342,"12,960.00",FOREVER CARE.
Regeneration and Local Services,Economic Development and Housing,Supplies and Services,338094,Services,03-Oct-2017,3341643-ORD-8058/1,806.00,FRESH ELEMENT LTD.
Regeneration and Local Services,Direct Services,Third Party Payments,430100,Rendered by Private Contractors,03-Oct-2017,3341645-11035,"3,399.02",FT LEISURE LTD.
Transformation and Partnerships,Partnerships & Community Engagement Div.,Transfer Payments,525030,Other,03-Oct-2017,3341651-VOUCHER15AB,666.00,GREEN LANE CE PRIMARY SCHOOL FUND.
Adult and Health Services,EnvironmentHealth & Consumer Protection,Supplies and Services,338027,Services,03-Oct-2017,3341655-0000011540,"5,000.00",GROUNDWORK NORTH EAST.
Adult and Health Services,Public Health,Third Party Payments,460802,Contract Payments,03-Oct-2017,3341663-A83634IUCD15-16/16-17,"9,815.84",INTRAHEALTH LTD.*
Regeneration and Local Services,Economic Development and Housing,Construction Work,908105,Construction work,03-Oct-2017,3341666-VAL1,"25,060.92",JOHN WADE (HAULAGE) LTD.
Regeneration and Local Services,Spatial Policy Planning Assets & Environment,Construction Work,908105,Construction work,03-Oct-2017,3341666-VAL5BELL,"5,315.41",JOHN WADE (HAULAGE) LTD.
Children and Young Peoples Services,Head of Education,Construction Work,908105,Construction work,03-Oct-2017,3341666-VAL5-SEAHAMS,"67,383.51",JOHN WADE (HAULAGE) LTD.
Regeneration and Local Services,Technical Services,Supplies and Services,304221,Equipment and Materials,03-Oct-2017,3341669-BII232011,"2,707.22",JT DOVE LTD.
Children and Young Peoples Services,Head of Early Help Assessment and Safeguarding,Supplies and Services,384302,Miscellaneous Expenses,03-Oct-2017,3341675-JUNE/JULY17,525.00,LAUREL AVENUE COMMUNITY ASSOCIATION.
Regeneration and Local Services,Direct Services,Supplies and Services,304357,Equipment and Materials,03-Oct-2017,3341680-49AAJULY17,"1,200.00",M & E & MR WALTON.
Regeneration and Local Services,Direct Services,Supplies and Services,304357,Equipment and Materials,03-Oct-2017,3341680-50AA,720.00,M & E & MR WALTON.
Regeneration and Local Services,Culture & Sport,Supplies and Services,384199,Miscellaneous Expenses,03-Oct-2017,3341684-00543588,503.50,REDACTED - PAYMENT TO INDIVIDUAL
Regeneration and Local Services,Direct Services,Third Party Payments,430100,Rendered by Private Contractors,03-Oct-2017,3341693-INV-4215,"1,082.00",MW LIFT SERVICES LTD.
Children and Young Peoples Services,Head of Education,Construction Work,908105,Construction work,03-Oct-2017,3341695-5100126,"5,805.00",NEW COLLEGE ACADEMIES TRUST - CONSETT ACADEMY.
Regeneration and Local Services,Technical Services,Stock,926900,Stock in hand-Inventory system,03-Oct-2017,3341706-264635,503.90,OIL NRG LTD.
Children and Young Peoples Services,Head of Education,Construction Work,908105,Construction work,03-Oct-2017,3341707-VAL4,"5,151.00",OWEN PUGH CONTRACTS LTD.
Regeneration and Local Services,Direct Services,Supplies and Services,304221,Equipment and Materials,03-Oct-2017,3341712-104396,534.00,PLANTSCAPE.
Regeneration and Local Services,Direct Services,Supplies and Services,304259,Equipment and Materials,03-Oct-2017,3341713-2123010082,"2,740.00",PRECIA-MOLEN UK LTD T/A SHERING WEIGHING LTD.
Regeneration and Local Services,Technical Services,Supplies and Services,304221,Equipment and Materials,03-Oct-2017,3341730-714560062275,920.96,SIG TRADING LTD.
Adult and Health Services,Public Health,Third Party Payments,460802,Contract Payments,03-Oct-2017,3341735-7710016132,"15,200.00",SOUTH TYNESIDE NHS TRUST.
Regeneration and Local Services,Culture & Sport,Supplies and Services,312013,Newspapers Books and Periodicals,03-Oct-2017,3341761-I616013,638.72,ULVERSCROFT LARGE PRINT BOOKS LTD.
Adult and Health Services,Commissioning inc Supporting People,Supplies and Services,338091,Services,03-Oct-2017,3341763-09098587-005,750.00,UNIVERSITY OF TEESSIDE.
Regeneration and Local Services,Economic Development and Housing,Supplies and Services,304337,Equipment and Materials,03-Oct-2017,3341771-19SEPTEMBER2019,"1,049.40",ZELLY UK TRADING LTD.
Adult and Health Services,Head of Adults,Transfer Payments,515201,Social Services Clients,03-Oct-2017,3341772-1742889H,844.00,REDACTED - PAYMENT TO INDIVIDUAL
Children and Young Peoples Services,Head of Looked After Provision Permanence and Care Leavers,Third Party Payments,425040,Rendered by Voluntary Organisations,03-Oct-2017,3341773-1740458H,"2,920.12",A1 FOSTER CARE
Children and Young Peoples Services,Head of Looked After Provision Permanence and Care Leavers,Third Party Payments,425040,Rendered by Voluntary Organisations,03-Oct-2017,3341773-1747350H,"4,380.18",A1 FOSTER CARE
Adult and Health Services,Head of Adults,Transfer Payments,515201,Social Services Clients,03-Oct-2017,3341774-1746069H,"1,224.00",REDACTED - PAYMENT TO INDIVIDUAL
Adult and Health Services,Head of Adults,Third Party Payments,472101,Purchase of Care,03-Oct-2017,3341776-1743327H,706.16,ABSOLUTE CARE AT HOME.
Adult and Health Services,Head of Adults,Third Party Payments,478101,Purchase of Care,03-Oct-2017,3341777-1742429H,"3,104.64",ACCEPT CARE LTD.
Adult and Health Services,Head of Adults,Third Party Payments,478101,Purchase of Care,03-Oct-2017,3341777-1742531H,"3,304.60",ACCEPT CARE LTD.
Adult and Health Services,Head of Adults,Third Party Payments,478101,Purchase of Care,03-Oct-2017,3341777-1742595H,"4,431.92",ACCEPT CARE LTD.
Adult and Health Services,Head of Adults,Third Party Payments,478101,Purchase of Care,03-Oct-2017,3341777-1742712H,"3,198.72",ACCEPT CARE LTD.
Adult and Health Services,Head of Adults,Third Party Payments,478101,Purchase of Care,03-Oct-2017,3341777-1742957H,877.56,ACCEPT CARE LTD.
Adult and Health Services,Head of Adults,Third Party Payments,478101,Purchase of Care,03-Oct-2017,3341777-1743023H,"4,987.04",ACCEPT CARE LTD.
Adult and Health Services,Head of Adults,Third Party Payments,478101,Purchase of Care,03-Oct-2017,3341777-1743053H,877.56,ACCEPT CARE LTD.
Adult and Health Services,Head of Adults,Third Party Payments,478101,Purchase of Care,03-Oct-2017,3341777-1743062H,"1,166.88",ACCEPT CARE LTD.
Adult and Health Services,Head of Adults,Third Party Payments,478101,Purchase of Care,03-Oct-2017,3341777-1743063H,877.56,ACCEPT CARE LTD.
Adult and Health Services,Head of Adults,Third Party Payments,478101,Purchase of Care,03-Oct-2017,3341777-1743148H,877.56,ACCEPT CARE LTD.
Adult and Health Services,Head of Adults,Third Party Payments,478101,Purchase of Care,03-Oct-2017,3341777-1743188H,"4,396.12",ACCEPT CARE LTD.
Adult and Health Services,Head of Adults,Third Party Payments,478101,Purchase of Care,03-Oct-2017,3341777-1743191H,982.76,ACCEPT CARE LTD.
Adult and Health Services,Head of Adults,Third Party Payments,478101,Purchase of Care,03-Oct-2017,3341777-1743198H,"3,357.52",ACCEPT CARE LTD.
Adult and Health Services,Head of Adults,Third Party Payments,478101,Purchase of Care,03-Oct-2017,3341777-1743280H,"4,539.38",ACCEPT CARE LTD.
Adult and Health Services,Head of Adults,Third Party Payments,478101,Purchase of Care,03-Oct-2017,3341777-1743283H,877.56,ACCEPT CARE LTD.
Adult and Health Services,Head of Adults,Third Party Payments,478101,Purchase of Care,03-Oct-2017,3341777-1743491H,"6,204.68",ACCEPT CARE LTD.
Adult and Health Services,Head of Adults,Third Party Payments,478101,Purchase of Care,03-Oct-2017,3341777-1743694H,"5,573.47",ACCEPT CARE LTD.
Adult and Health Services,Head of Adults,Third Party Payments,478101,Purchase of Care,03-Oct-2017,3341777-1743719H,"2,444.28",ACCEPT CARE LTD.
Adult and Health Services,Head of Adults,Third Party Payments,478101,Purchase of Care,03-Oct-2017,3341777-1743786H,"6,175.70",ACCEPT CARE LTD.
Adult and Health Services,Head of Adults,Third Party Payments,478101,Purchase of Care,03-Oct-2017,3341777-1743804H,"4,704.99",ACCEPT CARE LTD.
Adult and Health Services,Head of Adults,Third Party Payments,478101,Purchase of Care,03-Oct-2017,3341777-1743905H,"2,675.88",ACCEPT CARE LTD.
Adult and Health Services,Head of Adults,Third Party Payments,478101,Purchase of Care,03-Oct-2017,3341777-1743927H,"4,969.12",ACCEPT CARE LTD.
Adult and Health Services,Head of Adults,Third Party Payments,478101,Purchase of Care,03-Oct-2017,3341777-1743953H,877.56,ACCEPT CARE LTD.
Adult and Health Services,Head of Adults,Third Party Payments,478101,Purchase of Care,03-Oct-2017,3341777-1743968H,"3,939.48",ACCEPT CARE LTD.
Adult and Health Services,Head of Adults,Third Party Payments,478101,Purchase of Care,03-Oct-2017,3341777-1744035H,"2,267.88",ACCEPT CARE LTD.
Adult and Health Services,Head of Adults,Third Party Payments,478101,Purchase of Care,03-Oct-2017,3341777-1744037H,"3,239.04",ACCEPT CARE LTD.
Adult and Health Services,Head of Adults,Third Party Payments,478101,Purchase of Care,03-Oct-2017,3341777-1744136H,"6,473.28",ACCEPT CARE LTD.
Adult and Health Services,Head of Adults,Third Party Payments,478101,Purchase of Care,03-Oct-2017,3341777-1744141H,"11,782.60",ACCEPT CARE LTD.
Adult and Health Services,Head of Adults,Third Party Payments,478101,Purchase of Care,03-Oct-2017,3341777-1744146H,877.56,ACCEPT CARE LTD.
Adult and Health Services,Head of Adults,Third Party Payments,478101,Purchase of Care,03-Oct-2017,3341777-1744152H,"3,395.84",ACCEPT CARE LTD.
Adult and Health Services,Head of Adults,Third Party Payments,478101,Purchase of Care,03-Oct-2017,3341777-1744226H,"3,632.16",ACCEPT CARE LTD.
Adult and Health Services,Head of Adults,Third Party Payments,478101,Purchase of Care,03-Oct-2017,3341777-1744233H,"6,473.28",ACCEPT CARE LTD.
Adult and Health Services,Head of Adults,Third Party Payments,478101,Purchase of Care,03-Oct-2017,3341777-1744352H,"2,654.40",ACCEPT CARE LTD.
Adult and Health Services,Head of Adults,Third Party Payments,478101,Purchase of Care,03-Oct-2017,3341777-1744422H,"1,715.48",ACCEPT CARE LTD.
Adult and Health Services,Head of Adults,Third Party Payments,478101,Purchase of Care,03-Oct-2017,3341777-1744823H,"4,421.76",ACCEPT CARE LTD.
Adult and Health Services,Head of Adults,Third Party Payments,478101,Purchase of Care,03-Oct-2017,3341777-1744909H,"1,515.80",ACCEPT CARE LTD.
Adult and Health Services,Head of Adults,Third Party Payments,478101,Purchase of Care,03-Oct-2017,3341777-1745071H,877.56,ACCEPT CARE LTD.
Adult and Health Services,Head of Adults,Third Party Payments,478101,Purchase of Care,03-Oct-2017,3341777-1745074H,877.56,ACCEPT CARE LTD.
Adult and Health Services,Head of Adults,Third Party Payments,478101,Purchase of Care,03-Oct-2017,3341777-1745487H,"5,094.48",ACCEPT CARE LTD.
Adult and Health Services,Head of Adults,Third Party Payments,478101,Purchase of Care,03-Oct-2017,3341777-1745545H,"1,377.28",ACCEPT CARE LTD.
Adult and Health Services,Head of Adults,Third Party Payments,478101,Purchase of Care,03-Oct-2017,3341777-1745577H,"6,259.40",ACCEPT CARE LTD.
Adult and Health Services,Head of Adults,Third Party Payments,478101,Purchase of Care,03-Oct-2017,3341777-1745871H,"1,158.52",ACCEPT CARE LTD.
Adult and Health Services,Head of Adults,Third Party Payments,478101,Purchase of Care,03-Oct-2017,3341777-1745940H,"3,250.10",ACCEPT CARE LTD.
Adult and Health Services,Head of Adults,Third Party Payments,478101,Purchase of Care,03-Oct-2017,3341777-1747135H,"1,515.80",ACCEPT CARE LTD.
Adult and Health Services,Head of Adults,Third Party Payments,478101,Purchase of Care,03-Oct-2017,3341777-1747264H,877.56,ACCEPT CARE LTD.
Adult and Health Services,Head of Adults,Third Party Payments,478101,Purchase of Care,03-Oct-2017,3341777-1747588H,"5,546.96",ACCEPT CARE LTD.
Adult and Health Services,Head of Adults,Third Party Payments,478101,Purchase of Care,03-Oct-2017,3341777-1747638H,"1,185.40",ACCEPT CARE LTD.
Adult and Health Services,Head of Adults,Third Party Payments,478101,Purchase of Care,03-Oct-2017,3341777-1747657H,877.56,ACCEPT CARE LTD.
Adult and Health Services,Head of Adults,Third Party Payments,478101,Purchase of Care,03-Oct-2017,3341777-1748128H,877.56,ACCEPT CARE LTD.
Adult and Health Services,Head of Adults,Third Party Payments,478101,Purchase of Care,03-Oct-2017,3341777-1748280H,"1,939.28",ACCEPT CARE LTD.
Adult and Health Services,Head of Adults,Third Party Payments,478101,Purchase of Care,03-Oct-2017,3341777-1748414H,"1,730.68",ACCEPT CARE LTD.
Adult and Health Services,Head of Adults,Third Party Payments,478101,Purchase of Care,03-Oct-2017,3341777-1748736H,877.56,ACCEPT CARE LTD.
Adult and Health Services,Head of Adults,Third Party Payments,478101,Purchase of Care,03-Oct-2017,3341777-1748760H,877.56,ACCEPT CARE LTD.
Adult and Health Services,Head of Adults,Transfer Payments,515201,Social Services Clients,03-Oct-2017,3341778-1743840H,640.00,ACCOUNTABILITY CLIENT ACCOUNT NO 1.
Adult and Health Services,Head of Adults,Transfer Payments,515211,Social Services Clients,03-Oct-2017,3341779-1742396H,656.00,ACCOUNTABILITY CLIENT ACCOUNT NO 1.
Adult and Health Services,Head of Adults,Transfer Payments,515201,Social Services Clients,03-Oct-2017,3341781-1746070H,"3,132.00",ACCOUNTABILITY CLIENT ACCOUNT NO 1.
Adult and Health Services,Head of Adults,Transfer Payments,515201,Social Services Clients,03-Oct-2017,3341782-1743622H,800.00,ACCOUNTABILITY CLIENT ACCOUNT NO 1.
Adult and Health Services,Head of Adults,Transfer Payments,515201,Social Services Clients,03-Oct-2017,3341783-1743902H,"1,229.16",ACCOUNTABILITY CLIENT ACCOUNT NO 1.
Adult and Health Services,Head of Adults,Transfer Payments,515201,Social Services Clients,03-Oct-2017,3341784-1742863H,901.68,ACCOUNTABILITY CLIENT ACCOUNT NO 1.
Adult and Health Services,Head of Adults,Transfer Payments,515211,Social Services Clients,03-Oct-2017,3341787-1744053H,998.80,ACCOUNTABILITY CLIENT ACCOUNT NO 1.
Adult and Health Services,Head of Adults,Transfer Payments,515201,Social Services Clients,03-Oct-2017,3341788-1743334H,"1,220.00",ACCOUNTABILITY CLIENT ACCOUNT NO 1.
Adult and Health Services,Head of Adults,Transfer Payments,515209,Social Services Clients,03-Oct-2017,3341789-1743373D,"1,004.64",ACCOUNTABILITY CLIENT ACCOUNT NO 1.
Adult and Health Services,Head of Adults,Transfer Payments,515211,Social Services Clients,03-Oct-2017,3341789-1743373H,975.88,ACCOUNTABILITY CLIENT ACCOUNT NO 1.
Adult and Health Services,Head of Adults,Transfer Payments,515201,Social Services Clients,03-Oct-2017,3341790-1744425H,687.44,ACCOUNTABILITY CLIENT ACCOUNT NO 1.
Adult and Health Services,Head of Adults,Transfer Payments,515201,Social Services Clients,03-Oct-2017,3341791-1744294H,863.32,ACCOUNTABILITY CLIENT ACCOUNT NO 1.
Adult and Health Services,Head of Adults,Transfer Payments,515201,Social Services Clients,03-Oct-2017,3341793-1748436H,"1,108.40",ACCOUNTABILITY CLIENT ACCOUNT NO 1.
Adult and Health Services,Head of Adults,Transfer Payments,515201,Social Services Clients,03-Oct-2017,3341794-1747859H,723.84,ACCOUNTABILITY CLIENT ACCOUNT NO 1.
Children and Young Peoples Services,Head of Early Help Assessment and Safeguarding,Transfer Payments,515201,Social Services Clients,03-Oct-2017,3341796-1747324H,844.00,ACCOUNTABILITY CLIENT ACCOUNT NO 1.
Adult and Health Services,Head of Adults,Transfer Payments,515210,Social Services Clients,03-Oct-2017,3341798-1745035H,"3,178.12",ACCOUNTABILITY CLIENT ACCOUNT NO 1.
Adult and Health Services,Head of Adults,Transfer Payments,515201,Social Services Clients,03-Oct-2017,3341799-1747105H,950.04,ACCOUNTABILITY CLIENT ACCOUNT NO 1.
Children and Young Peoples Services,Head of Early Help Assessment and Safeguarding,Transfer Payments,515201,Social Services Clients,03-Oct-2017,3341800-1748396H,"1,146.48",ACCOUNTABILITY CLIENT ACCOUNT NO 1.
Adult and Health Services,Head of Adults,Transfer Payments,515201,Social Services Clients,03-Oct-2017,3341801-1743452H,"1,877.28",ACCOUNTABILITY CLIENT ACCOUNT NO 1.
Adult and Health Services,Head of Adults,Transfer Payments,515211,Social Services Clients,03-Oct-2017,3341803-1743635H,"3,829.92",ACCOUNTABILITY CLIENT ACCOUNT NO 1.
Adult and Health Services,Head of Adults,Transfer Payments,515201,Social Services Clients,03-Oct-2017,3341804-1745261H,791.72,ACCOUNTABILITY CLIENT ACCOUNT NO 1.
Adult and Health Services,Head of Adults,Transfer Payments,515201,Social Services Clients,03-Oct-2017,3341805-1743759H,874.64,ACCOUNTABILITY CLIENT ACCOUNT NO 1.
Adult and Health Services,Head of Adults,Transfer Payments,515201,Social Services Clients,03-Oct-2017,3341806-1747620H,"2,605.44",ACCOUNTABILITY CLIENT ACCOUNT NO 1.
Adult and Health Services,Head of Adults,Transfer Payments,515201,Social Services Clients,03-Oct-2017,3341808-1743116H,"1,616.52",ACCOUNTABILITY CLIENT ACCOUNT NO 1.
Adult and Health Services,Head of Adults,Transfer Payments,515201,Social Services Clients,03-Oct-2017,3341809-1742878H,588.12,ACCOUNTABILITY CLIENT ACCOUNT NO 1.
Children and Young Peoples Services,Head of Early Help Assessment and Safeguarding,Transfer Payments,515201,Social Services Clients,03-Oct-2017,3341811-1747091H,540.00,ACCOUNTABILITY CLIENT ACCOUNT NO 1.
Adult and Health Services,Head of Adults,Transfer Payments,515210,Social Services Clients,03-Oct-2017,3341812-1744684H,526.98,ACCOUNTABILITY CLIENT ACCOUNT NO 1.
Adult and Health Services,Head of Adults,Transfer Payments,515201,Social Services Clients,03-Oct-2017,3341813-1747412H,"1,115.92",ACCOUNTABILITY CLIENT ACCOUNT NO 1.
Adult and Health Services,Head of Adults,Transfer Payments,515201,Social Services Clients,03-Oct-2017,3341814-1748119H,633.36,ACCOUNTABILITY CLIENT ACCOUNT NO 1.
Adult and Health Services,Head of Adults,Transfer Payments,515201,Social Services Clients,03-Oct-2017,3341815-1748184H,"2,307.24",ACCOUNTABILITY CLIENT ACCOUNT NO 1.
Adult and Health Services,Head of Adults,Transfer Payments,515201,Social Services Clients,03-Oct-2017,3341816-1748091H,691.28,ACCOUNTABILITY CLIENT ACCOUNT NO 1.
Adult and Health Services,Head of Adults,Transfer Payments,515201,Social Services Clients,03-Oct-2017,3341817-1742792H,595.68,ACCOUNTABILITY CLIENT ACCOUNT NO 1.
Adult and Health Services,Head of Adults,Transfer Payments,515201,Social Services Clients,03-Oct-2017,3341818-1746074H,562.08,ACCOUNTABILITY CLIENT ACCOUNT NO 1.
Children and Young Peoples Services,Head of Early Help Assessment and Safeguarding,Transfer Payments,515201,Social Services Clients,03-Oct-2017,3341819-1747967H,600.00,ACCOUNTABILITY CLIENT ACCOUNT NO 1.
Adult and Health Services,Head of Adults,Transfer Payments,515201,Social Services Clients,03-Oct-2017,3341821-1745703H,701.04,ACCOUNTABILITY CLIENT ACCOUNT NO 1.
Adult and Health Services,Head of Adults,Transfer Payments,515201,Social Services Clients,03-Oct-2017,3341825-1745881H,"1,006.60",ACCOUNTABILITY CLIENT ACCOUNT NO 1.
Adult and Health Services,Head of Adults,Transfer Payments,515211,Social Services Clients,03-Oct-2017,3341826-1744080H,522.00,ACCOUNTABILITY CLIENT ACCOUNT NO 1.
Adult and Health Services,Head of Adults,Transfer Payments,515211,Social Services Clients,03-Oct-2017,3341827-1744088H,"2,214.40",ACCOUNTABILITY CLIENT ACCOUNT NO 1.
Adult and Health Services,Head of Adults,Transfer Payments,515210,Social Services Clients,03-Oct-2017,3341828-1744651H,"1,402.44",ACCOUNTABILITY CLIENT ACCOUNT NO 1.
Adult and Health Services,Head of Adults,Transfer Payments,515211,Social Services Clients,03-Oct-2017,3341830-1743614H,964.00,ACCOUNTABILITY CLIENT ACCOUNT NO 1.
Adult and Health Services,Head of Adults,Transfer Payments,515211,Social Services Clients,03-Oct-2017,3341831-1743180H,"1,662.52",ACCOUNTABILITY CLIENT ACCOUNT NO 1.
Adult and Health Services,Head of Adults,Transfer Payments,515210,Social Services Clients,03-Oct-2017,3341832-1745452H,"2,060.96",ACCOUNTABILITY CLIENT ACCOUNT NO 1.
Adult and Health Services,Head of Adults,Transfer Payments,515201,Social Services Clients,03-Oct-2017,3341833-1748501H,"2,482.52",ACCOUNTABILITY CLIENT ACCOUNT NO 1.
Adult and Health Services,Head of Adults,Transfer Payments,515211,Social Services Clients,03-Oct-2017,3341834-1744166H,"1,124.80",ACCOUNTABILITY CLIENT ACCOUNT NO 1.
Adult and Health Services,Head of Adults,Transfer Payments,515201,Social Services Clients,03-Oct-2017,3341835-1745039H,788.48,ACCOUNTABILITY CLIENT ACCOUNT NO 1.
Children and Young Peoples Services,Head of Early Help Assessment and Safeguarding,Transfer Payments,515201,Social Services Clients,03-Oct-2017,3341837-1747874H,600.00,ACCOUNTABILITY CLIENT ACCOUNT NO 1.
Adult and Health Services,Head of Adults,Transfer Payments,515201,Social Services Clients,03-Oct-2017,3341838-1744379H,"1,288.12",ACCOUNTABILITY CLIENT ACCOUNT NO 1.
Adult and Health Services,Head of Adults,Transfer Payments,515201,Social Services Clients,03-Oct-2017,3341839-1745540H,829.40,ACCOUNTABILITY CLIENT ACCOUNT NO 1.
Adult and Health Services,Head of Adults,Transfer Payments,515201,Social Services Clients,03-Oct-2017,3341840-1745837H,759.60,ACCOUNTABILITY CLIENT ACCOUNT NO 1.
Adult and Health Services,Head of Adults,Transfer Payments,515210,Social Services Clients,03-Oct-2017,3341842-1748182H,"4,071.60",ACCOUNTABILITY CLIENT ACCOUNT NO 1.
Adult and Health Services,Head of Adults,Transfer Payments,515201,Social Services Clients,03-Oct-2017,3341843-1747241H,506.40,ACCOUNTABILITY CLIENT ACCOUNT NO 1.
Adult and Health Services,Head of Adults,Transfer Payments,515201,Social Services Clients,03-Oct-2017,3341847-1743356H,800.00,ACCOUNTABILITY CLIENT ACCOUNT NO 1.
Adult and Health Services,Head of Adults,Transfer Payments,515201,Social Services Clients,03-Oct-2017,3341849-1745916H,608.92,ACCOUNTABILITY CLIENT ACCOUNT NO 2.
Adult and Health Services,Head of Adults,Transfer Payments,515201,Social Services Clients,03-Oct-2017,3341850-1745824H,"1,227.60",ACCOUNTABILITY CLIENT ACCOUNT NO 2.
Adult and Health Services,Head of Adults,Transfer Payments,515201,Social Services Clients,03-Oct-2017,3341852-1745242H,960.24,ACCOUNTABILITY CLIENT ACCOUNT NO 2.
Children and Young Peoples Services,Head of Early Help Assessment and Safeguarding,Transfer Payments,515201,Social Services Clients,03-Oct-2017,3341853-1747663H,660.00,ACCOUNTABILITY CLIENT ACCOUNT NO 2.
Adult and Health Services,Head of Adults,Transfer Payments,515201,Social Services Clients,03-Oct-2017,3341856-1746117H,"2,100.00",ACCOUNTABILITY CLIENT ACCOUNT NO 2.
Adult and Health Services,Head of Adults,Transfer Payments,515201,Social Services Clients,03-Oct-2017,3341857-1747794H,749.44,ACCOUNTABILITY CLIENT ACCOUNT NO 2.
Adult and Health Services,Head of Adults,Transfer Payments,515201,Social Services Clients,03-Oct-2017,3341858-1745889H,644.04,ACCOUNTABILITY CLIENT ACCOUNT NO 2.
Adult and Health Services,Head of Adults,Transfer Payments,515201,Social Services Clients,03-Oct-2017,3341859-1748617H,519.16,ACCOUNTABILITY CLIENT ACCOUNT NO 2.
Adult and Health Services,Head of Adults,Transfer Payments,515201,Social Services Clients,03-Oct-2017,3341860-1745031H,702.60,ACCOUNTABILITY CLIENT ACCOUNT NO 2.
Adult and Health Services,Head of Adults,Transfer Payments,515210,Social Services Clients,03-Oct-2017,3341861-1743129H,"1,498.88",ACCOUNTABILITY CLIENT ACCOUNT NO 2.
Adult and Health Services,Head of Adults,Transfer Payments,515209,Social Services Clients,03-Oct-2017,3341862-1747849D,"1,800.00",ACCOUNTABILITY CLIENT ACCOUNT NO 2.
Adult and Health Services,Head of Adults,Transfer Payments,515201,Social Services Clients,03-Oct-2017,3341862-1747849H,"2,242.08",ACCOUNTABILITY CLIENT ACCOUNT NO 2.
Adult and Health Services,Head of Adults,Transfer Payments,515201,Social Services Clients,03-Oct-2017,3341863-1745305H,726.04,ACCOUNTABILITY CLIENT ACCOUNT NO 2.
Adult and Health Services,Head of Adults,Transfer Payments,515201,Social Services Clients,03-Oct-2017,3341864-1747647H,679.20,ACCOUNTABILITY CLIENT ACCOUNT NO 2.
Adult and Health Services,Head of Adults,Transfer Payments,515201,Social Services Clients,03-Oct-2017,3341868-1745348H,"1,767.04",ACCOUNTABILITY CLIENT ACCOUNT NO 2.
Adult and Health Services,Head of Adults,Transfer Payments,515201,Social Services Clients,03-Oct-2017,3341869-1747997H,515.24,ACCOUNTABILITY CLIENT ACCOUNT NO 2.
Adult and Health Services,Head of Adults,Transfer Payments,515201,Social Services Clients,03-Oct-2017,3341871-1745245H,"3,635.96",ACCOUNTABILITY CLIENT ACCOUNT NO 2.
Adult and Health Services,Head of Adults,Transfer Payments,515201,Social Services Clients,03-Oct-2017,3341872-1748379H,655.76,ACCOUNTABILITY CLIENT ACCOUNT NO 2.
Adult and Health Services,Head of Adults,Transfer Payments,515201,Social Services Clients,03-Oct-2017,3341873-1743205H,616.72,ACCOUNTABILITY CLIENT ACCOUNT NO 2.
Adult and Health Services,Head of Adults,Transfer Payments,515210,Social Services Clients,03-Oct-2017,3341880-1746838H,"2,517.64",REDACTED - PAYMENT TO INDIVIDUAL
Adult and Health Services,Head of Adults,Transfer Payments,515201,Social Services Clients,03-Oct-2017,3341881-1749071H,655.76,REDACTED - PAYMENT TO INDIVIDUAL
Adult and Health Services,Head of Adults,Transfer Payments,515201,Social Services Clients,03-Oct-2017,3341882-1746516H,600.00,REDACTED - PAYMENT TO INDIVIDUAL
Adult and Health Services,Head of Adults,Transfer Payments,515201,Social Services Clients,03-Oct-2017,3341883-1745765H,"6,480.00",REDACTED - PAYMENT TO INDIVIDUAL
Adult and Health Services,Head of Adults,Transfer Payments,515201,Social Services Clients,03-Oct-2017,3341885-1745590H,882.20,REDACTED - PAYMENT TO INDIVIDUAL
Adult and Health Services,Head of Adults,Transfer Payments,515201,Social Services Clients,03-Oct-2017,3341887-1745841H,611.92,REDACTED - PAYMENT TO INDIVIDUAL
Adult and Health Services,Head of Adults,Transfer Payments,515201,Social Services Clients,03-Oct-2017,3341888-1747765H,"1,360.00",REDACTED - PAYMENT TO INDIVIDUAL
Adult and Health Services,Head of Adults,Transfer Payments,515201,Social Services Clients,03-Oct-2017,3341889-1747097H,632.00,REDACTED - PAYMENT TO INDIVIDUAL
Adult and Health Services,Head of Adults,Transfer Payments,515209,Social Services Clients,03-Oct-2017,3341891-1744149D,"1,500.00",REDACTED - PAYMENT TO INDIVIDUAL
Adult and Health Services,Head of Adults,Transfer Payments,515201,Social Services Clients,03-Oct-2017,3341891-1744149H,630.00,REDACTED - PAYMENT TO INDIVIDUAL
Adult and Health Services,Head of Adults,Transfer Payments,515201,Social Services Clients,03-Oct-2017,3341892-1743144H,"3,273.60",REDACTED - PAYMENT TO INDIVIDUAL
Adult and Health Services,Head of Adults,Transfer Payments,515209,Social Services Clients,03-Oct-2017,3341893-1744577D,832.80,REDACTED - PAYMENT TO INDIVIDUAL
Adult and Health Services,Head of Adults,Transfer Payments,515201,Social Services Clients,03-Oct-2017,3341894-1749006H,"1,650.00",REDACTED - PAYMENT TO INDIVIDUAL
Adult and Health Services,Head of Adults,Transfer Payments,515201,Social Services Clients,03-Oct-2017,3341895-1745901H,"1,040.00",REDACTED - PAYMENT TO INDIVIDUAL
Adult and Health Services,Head of Adults,Transfer Payments,515201,Social Services Clients,03-Oct-2017,3341896-1745965H,770.15,REDACTED - PAYMENT TO INDIVIDUAL
Adult and Health Services,Head of Adults,Transfer Payments,515201,Social Services Clients,03-Oct-2017,3341898-1744350H,817.20,REDACTED - PAYMENT TO INDIVIDUAL
Adult and Health Services,Head of Adults,Transfer Payments,515211,Social Services Clients,03-Oct-2017,3341901-1743110H,753.16,REDACTED - PAYMENT TO INDIVIDUAL
Adult and Health Services,Head of Adults,Transfer Payments,515201,Social Services Clients,03-Oct-2017,3341902-1745471H,548.60,REDACTED - PAYMENT TO INDIVIDUAL
Adult and Health Services,Head of Adults,Transfer Payments,515201,Social Services Clients,03-Oct-2017,3341903-1743292H,562.08,REDACTED - PAYMENT TO INDIVIDUAL
Adult and Health Services,Head of Adults,Transfer Payments,515201,Social Services Clients,03-Oct-2017,3341904-1744673H,"5,120.00",REDACTED - PAYMENT TO INDIVIDUAL
Adult and Health Services,Head of Adults,Transfer Payments,515201,Social Services Clients,03-Oct-2017,3341905-1745432H,839.92,REDACTED - PAYMENT TO INDIVIDUAL
Adult and Health Services,Head of Adults,Transfer Payments,515201,Social Services Clients,03-Oct-2017,3341907-1744518H,969.00,REDACTED - PAYMENT TO INDIVIDUAL
Adult and Health Services,Head of Adults,Transfer Payments,515201,Social Services Clients,03-Oct-2017,3341908-1743001H,"1,530.44",REDACTED - PAYMENT TO INDIVIDUAL
Adult and Health Services,Head of Adults,Transfer Payments,515201,Social Services Clients,03-Oct-2017,3341909-1744553H,516.96,REDACTED - PAYMENT TO INDIVIDUAL
Children and Young Peoples Services,Head of Early Help Assessment and Safeguarding,Transfer Payments,515201,Social Services Clients,03-Oct-2017,3341910-1747985H,"1,836.00",REDACTED - PAYMENT TO INDIVIDUAL
Children and Young Peoples Services,Head of Early Help Assessment and Safeguarding,Transfer Payments,515201,Social Services Clients,03-Oct-2017,3341911-1748369H,540.00,REDACTED - PAYMENT TO INDIVIDUAL
Children and Young Peoples Services,Head of Early Help Assessment and Safeguarding,Transfer Payments,515201,Social Services Clients,03-Oct-2017,3341911-1748370H,664.00,REDACTED - PAYMENT TO INDIVIDUAL
Adult and Health Services,Head of Adults,Transfer Payments,515201,Social Services Clients,03-Oct-2017,3341913-1743624H,"1,929.64",REDACTED - PAYMENT TO INDIVIDUAL
Adult and Health Services,Head of Adults,Transfer Payments,515201,Social Services Clients,03-Oct-2017,3341916-1744796H,544.80,REDACTED - PAYMENT TO INDIVIDUAL
Adult and Health Services,Head of Adults,Transfer Payments,515201,Social Services Clients,03-Oct-2017,3341918-1748380H,554.20,REDACTED - PAYMENT TO INDIVIDUAL
Adult and Health Services,Head of Adults,Transfer Payments,515201,Social Services Clients,03-Oct-2017,3341920-1745980H,696.32,REDACTED - PAYMENT TO INDIVIDUAL
Adult and Health Services,Head of Adults,Transfer Payments,515201,Social Services Clients,03-Oct-2017,3341925-1745085H,562.08,REDACTED - PAYMENT TO INDIVIDUAL
Adult and Health Services,Head of Adults,Transfer Payments,515201,Social Services Clients,03-Oct-2017,3341926-1743150H,812.36,REDACTED - PAYMENT TO INDIVIDUAL
Adult and Health Services,Head of Adults,Transfer Payments,515209,Social Services Clients,03-Oct-2017,3341927-1746485D,"2,520.00",REDACTED - PAYMENT TO INDIVIDUAL
Adult and Health Services,Head of Adults,Transfer Payments,515201,Social Services Clients,03-Oct-2017,3341927-1746485H,500.00,REDACTED - PAYMENT TO INDIVIDUAL
Adult and Health Services,Head of Adults,Transfer Payments,515201,Social Services Clients,03-Oct-2017,3341928-1744998H,"2,680.00",REDACTED - PAYMENT TO INDIVIDUAL
Adult and Health Services,Head of Adults,Transfer Payments,515201,Social Services Clients,03-Oct-2017,3341929-1743912H,"1,906.36",REDACTED - PAYMENT TO INDIVIDUAL
Adult and Health Services,Head of Adults,Transfer Payments,515201,Social Services Clients,03-Oct-2017,3341930-1744043H,"4,578.76",REDACTED - PAYMENT TO INDIVIDUAL
Adult and Health Services,Head of Adults,Transfer Payments,515201,Social Services Clients,03-Oct-2017,3341932-1748468H,640.92,REDACTED - PAYMENT TO INDIVIDUAL
Adult and Health Services,Head of Adults,Transfer Payments,515210,Social Services Clients,03-Oct-2017,3341934-1746704H,"4,517.20",REDACTED - PAYMENT TO INDIVIDUAL
Adult and Health Services,Head of Adults,Transfer Payments,515201,Social Services Clients,03-Oct-2017,3341935-1744760H,572.32,REDACTED - PAYMENT TO INDIVIDUAL
Adult and Health Services,Head of Adults,Transfer Payments,515201,Social Services Clients,03-Oct-2017,3341937-1744733H,908.00,REDACTED - PAYMENT TO INDIVIDUAL
Adult and Health Services,Head of Adults,Transfer Payments,515201,Social Services Clients,03-Oct-2017,3341938-1747346H,865.04,REDACTED - PAYMENT TO INDIVIDUAL
Adult and Health Services,Head of Adults,Transfer Payments,515201,Social Services Clients,03-Oct-2017,3341939-1742752H,659.20,REDACTED - PAYMENT TO INDIVIDUAL
Adult and Health Services,Head of Adults,Transfer Payments,515201,Social Services Clients,03-Oct-2017,3341940-1743988H,526.00,REDACTED - PAYMENT TO INDIVIDUAL
Adult and Health Services,Head of Adults,Transfer Payments,515211,Social Services Clients,03-Oct-2017,3341941-1743582H,"3,207.84",REDACTED - PAYMENT TO INDIVIDUAL
Adult and Health Services,Head of Adults,Transfer Payments,515210,Social Services Clients,03-Oct-2017,3341942-1743530H,"1,120.00",REDACTED - PAYMENT TO INDIVIDUAL
Adult and Health Services,Head of Adults,Transfer Payments,515201,Social Services Clients,03-Oct-2017,3341945-1744438H,"1,770.60",REDACTED - PAYMENT TO INDIVIDUAL
Adult and Health Services,Head of Adults,Transfer Payments,515201,Social Services Clients,03-Oct-2017,3341946-1742894H,"1,645.80",REDACTED - PAYMENT TO INDIVIDUAL
Adult and Health Services,Head of Adults,Transfer Payments,515201,Social Services Clients,03-Oct-2017,3341949-1744219H,588.12,REDACTED - PAYMENT TO INDIVIDUAL
Adult and Health Services,Head of Adults,Transfer Payments,515201,Social Services Clients,03-Oct-2017,3341951-1745319H,657.60,REDACTED - PAYMENT TO INDIVIDUAL
Adult and Health Services,Head of Adults,Transfer Payments,515201,Social Services Clients,03-Oct-2017,3341952-1743599H,843.12,REDACTED - PAYMENT TO INDIVIDUAL
Adult and Health Services,Head of Adults,Transfer Payments,515201,Social Services Clients,03-Oct-2017,3341954-1744398H,618.92,REDACTED - PAYMENT TO INDIVIDUAL
Adult and Health Services,Head of Adults,Transfer Payments,515201,Social Services Clients,03-Oct-2017,3341956-1747339H,"1,053.92",REDACTED - PAYMENT TO INDIVIDUAL
Adult and Health Services,Head of Adults,Transfer Payments,515201,Social Services Clients,03-Oct-2017,3341957-1747277H,855.04,REDACTED - PAYMENT TO INDIVIDUAL
Adult and Health Services,Head of Adults,Transfer Payments,515201,Social Services Clients,03-Oct-2017,3341958-1743006H,585.52,REDACTED - PAYMENT TO INDIVIDUAL
Adult and Health Services,Head of Adults,Transfer Payments,515201,Social Services Clients,03-Oct-2017,3341959-1746021H,717.40,REDACTED - PAYMENT TO INDIVIDUAL
Adult and Health Services,Head of Adults,Transfer Payments,515201,Social Services Clients,03-Oct-2017,3341960-1743854H,728.92,REDACTED - PAYMENT TO INDIVIDUAL
Adult and Health Services,Head of Adults,Transfer Payments,515201,Social Services Clients,03-Oct-2017,3341961-1743722H,"1,012.80",REDACTED - PAYMENT TO INDIVIDUAL
Adult and Health Services,Head of Adults,Transfer Payments,515201,Social Services Clients,03-Oct-2017,3341962-1745498H,633.00,REDACTED - PAYMENT TO INDIVIDUAL
Adult and Health Services,Head of Adults,Transfer Payments,515201,Social Services Clients,03-Oct-2017,3341963-1747366H,"2,940.60",REDACTED - PAYMENT TO INDIVIDUAL
Adult and Health Services,Head of Adults,Transfer Payments,515201,Social Services Clients,03-Oct-2017,3341964-1748271H,820.68,REDACTED - PAYMENT TO INDIVIDUAL
Adult and Health Services,Head of Adults,Transfer Payments,515201,Social Services Clients,03-Oct-2017,3341966-1744184H,833.44,REDACTED - PAYMENT TO INDIVIDUAL
Adult and Health Services,Head of Adults,Transfer Payments,515201,Social Services Clients,03-Oct-2017,3341968-1742739H,613.64,REDACTED - PAYMENT TO INDIVIDUAL
Adult and Health Services,Head of Adults,Transfer Payments,515201,Social Services Clients,03-Oct-2017,3341969-1746168H,633.00,REDACTED - PAYMENT TO INDIVIDUAL
Adult and Health Services,Head of Adults,Transfer Payments,515201,Social Services Clients,03-Oct-2017,3341971-1746338H,"1,158.20",REDACTED - PAYMENT TO INDIVIDUAL
Adult and Health Services,Head of Adults,Transfer Payments,515201,Social Services Clients,03-Oct-2017,3341972-1749013H,"10,930.09",REDACTED - PAYMENT TO INDIVIDUAL
Adult and Health Services,Head of Adults,Transfer Payments,515209,Social Services Clients,03-Oct-2017,3341973-1748717D,576.00,REDACTED - PAYMENT TO INDIVIDUAL
Adult and Health Services,Head of Adults,Transfer Payments,515201,Social Services Clients,03-Oct-2017,3341973-1748717H,800.00,REDACTED - PAYMENT TO INDIVIDUAL
Adult and Health Services,Head of Adults,Transfer Payments,515201,Social Services Clients,03-Oct-2017,3341974-1745818H,"1,008.00",REDACTED - PAYMENT TO INDIVIDUAL
Children and Young Peoples Services,Head of Early Help Assessment and Safeguarding,Transfer Payments,515201,Social Services Clients,03-Oct-2017,3341975-1748233H,"2,268.00",REDACTED - PAYMENT TO INDIVIDUAL
Adult and Health Services,Head of Adults,Transfer Payments,515201,Social Services Clients,03-Oct-2017,3341977-1743591H,946.80,REDACTED - PAYMENT TO INDIVIDUAL
Children and Young Peoples Services,Head of Early Help Assessment and Safeguarding,Transfer Payments,515201,Social Services Clients,03-Oct-2017,3341978-1746925H,512.00,REDACTED - PAYMENT TO INDIVIDUAL
Adult and Health Services,Head of Adults,Transfer Payments,515201,Social Services Clients,03-Oct-2017,3341980-1746767H,"1,000.00",REDACTED - PAYMENT TO INDIVIDUAL
Adult and Health Services,Head of Adults,Transfer Payments,515201,Social Services Clients,03-Oct-2017,3341981-1745701H,"1,944.00",REDACTED - PAYMENT TO INDIVIDUAL
Adult and Health Services,Head of Adults,Transfer Payments,515201,Social Services Clients,03-Oct-2017,3341982-1743299H,675.20,REDACTED - PAYMENT TO INDIVIDUAL
Adult and Health Services,Head of Adults,Transfer Payments,515210,Social Services Clients,03-Oct-2017,3341985-1743232H,"1,200.00",REDACTED - PAYMENT TO INDIVIDUAL
Adult and Health Services,Head of Adults,Transfer Payments,515201,Social Services Clients,03-Oct-2017,3341986-1747126H,635.84,REDACTED - PAYMENT TO INDIVIDUAL
Adult and Health Services,Head of Adults,Transfer Payments,515209,Social Services Clients,03-Oct-2017,3341987-1746878D,800.00,REDACTED - PAYMENT TO INDIVIDUAL
Adult and Health Services,Head of Adults,Transfer Payments,515201,Social Services Clients,03-Oct-2017,3341987-1746878H,"1,112.32",REDACTED - PAYMENT TO INDIVIDUAL
Adult and Health Services,Head of Adults,Transfer Payments,515201,Social Services Clients,03-Oct-2017,3341988-1747038H,"1,980.92",REDACTED - PAYMENT TO INDIVIDUAL
Adult and Health Services,Head of Adults,Transfer Payments,515201,Social Services Clients,03-Oct-2017,3341989-1747989H,625.96,REDACTED - PAYMENT TO INDIVIDUAL
Adult and Health Services,Head of Adults,Transfer Payments,515201,Social Services Clients,03-Oct-2017,3341991-1743846H,908.00,REDACTED - PAYMENT TO INDIVIDUAL
Adult and Health Services,Head of Adults,Transfer Payments,515201,Social Services Clients,03-Oct-2017,3341993-1746406H,"1,038.76",REDACTED - PAYMENT TO INDIVIDUAL
Adult and Health Services,Head of Adults,Transfer Payments,515201,Social Services Clients,03-Oct-2017,3341996-1743578H,547.44,REDACTED - PAYMENT TO INDIVIDUAL
Adult and Health Services,Head of Adults,Transfer Payments,515201,Social Services Clients,03-Oct-2017,3341997-1749090H,611.90,REDACTED - PAYMENT TO INDIVIDUAL
Adult and Health Services,Head of Adults,Transfer Payments,515201,Social Services Clients,03-Oct-2017,3342000-1746608H,735.64,REDACTED - PAYMENT TO INDIVIDUAL
Adult and Health Services,Head of Adults,Transfer Payments,515201,Social Services Clients,03-Oct-2017,3342002-1746161H,720.00,REDACTED - PAYMENT TO INDIVIDUAL
Adult and Health Services,Head of Adults,Transfer Payments,515201,Social Services Clients,03-Oct-2017,3342003-1746926H,"1,475.52",REDACTED - PAYMENT TO INDIVIDUAL
Adult and Health Services,Head of Adults,Transfer Payments,515201,Social Services Clients,03-Oct-2017,3342005-1745448H,"1,669.00",REDACTED - PAYMENT TO INDIVIDUAL
Adult and Health Services,Head of Adults,Transfer Payments,515201,Social Services Clients,03-Oct-2017,3342007-1743433H,500.00,REDACTED - PAYMENT TO INDIVIDUAL
Adult and Health Services,Head of Adults,Transfer Payments,515201,Social Services Clients,03-Oct-2017,3342010-1742843H,543.40,REDACTED - PAYMENT TO INDIVIDUAL
Adult and Health Services,Head of Adults,Transfer Payments,515201,Social Services Clients,03-Oct-2017,3342012-1746944H,904.40,REDACTED - PAYMENT TO INDIVIDUAL
Children and Young Peoples Services,Head of Early Help Assessment and Safeguarding,Transfer Payments,515201,Social Services Clients,03-Oct-2017,3342014-1747952H,540.00,REDACTED - PAYMENT TO INDIVIDUAL
Adult and Health Services,Head of Adults,Transfer Payments,515201,Social Services Clients,03-Oct-2017,3342016-1746783H,"2,451.60",REDACTED - PAYMENT TO INDIVIDUAL
Adult and Health Services,Head of Adults,Transfer Payments,515201,Social Services Clients,03-Oct-2017,3342017-1746417H,"1,200.00",REDACTED - PAYMENT TO INDIVIDUAL
Adult and Health Services,Head of Adults,Transfer Payments,515201,Social Services Clients,03-Oct-2017,3342019-1747121H,"1,200.00",REDACTED - PAYMENT TO INDIVIDUAL
Adult and Health Services,Head of Adults,Transfer Payments,515201,Social Services Clients,03-Oct-2017,3342020-1742940H,"1,146.96",REDACTED - PAYMENT TO INDIVIDUAL
Adult and Health Services,Head of Adults,Transfer Payments,515201,Social Services Clients,03-Oct-2017,3342021-1745984H,"1,260.00",REDACTED - PAYMENT TO INDIVIDUAL
Adult and Health Services,Head of Adults,Transfer Payments,515201,Social Services Clients,03-Oct-2017,3342024-1747695H,590.80,REDACTED - PAYMENT TO INDIVIDUAL
Adult and Health Services,Head of Adults,Transfer Payments,515210,Social Services Clients,03-Oct-2017,3342026-1748183H,"1,962.00",REDACTED - PAYMENT TO INDIVIDUAL
Adult and Health Services,Head of Adults,Transfer Payments,515201,Social Services Clients,03-Oct-2017,3342027-1746627H,840.48,REDACTED - PAYMENT TO INDIVIDUAL
Adult and Health Services,Head of Adults,Transfer Payments,515201,Social Services Clients,03-Oct-2017,3342028-1743705H,"1,223.80",REDACTED - PAYMENT TO INDIVIDUAL
Adult and Health Services,Head of Adults,Transfer Payments,515201,Social Services Clients,03-Oct-2017,3342031-1747004H,"2,880.00",REDACTED - PAYMENT TO INDIVIDUAL
Adult and Health Services,Head of Adults,Transfer Payments,515201,Social Services Clients,03-Oct-2017,3342032-1747611H,723.32,REDACTED - PAYMENT TO INDIVIDUAL
Adult and Health Services,Head of Adults,Transfer Payments,515201,Social Services Clients,03-Oct-2017,3342033-1747122H,678.60,REDACTED - PAYMENT TO INDIVIDUAL
Adult and Health Services,Head of Adults,Transfer Payments,515201,Social Services Clients,03-Oct-2017,3342034-1742412H,696.32,REDACTED - PAYMENT TO INDIVIDUAL
Adult and Health Services,Head of Adults,Transfer Payments,515210,Social Services Clients,03-Oct-2017,3342035-1746147H,"2,311.48",REDACTED - PAYMENT TO INDIVIDUAL
Adult and Health Services,Head of Adults,Transfer Payments,515209,Social Services Clients,03-Oct-2017,3342036-1745516D,"1,920.00",REDACTED - PAYMENT TO INDIVIDUAL
Adult and Health Services,Head of Adults,Transfer Payments,515201,Social Services Clients,03-Oct-2017,3342036-1745516H,"1,304.44",REDACTED - PAYMENT TO INDIVIDUAL
Adult and Health Services,Head of Adults,Transfer Payments,515201,Social Services Clients,03-Oct-2017,3342038-1745656H,675.20,REDACTED - PAYMENT TO INDIVIDUAL
Adult and Health Services,Head of Adults,Transfer Payments,515201,Social Services Clients,03-Oct-2017,3342039-1742899D,923.04,REDACTED - PAYMENT TO INDIVIDUAL
Adult and Health Services,Head of Adults,Transfer Payments,515201,Social Services Clients,03-Oct-2017,3342040-1746590H,"1,475.52",REDACTED - PAYMENT TO INDIVIDUAL
Adult and Health Services,Head of Adults,Transfer Payments,515201,Social Services Clients,03-Oct-2017,3342041-1745842H,603.20,REDACTED - PAYMENT TO INDIVIDUAL
Adult and Health Services,Head of Adults,Transfer Payments,515201,Social Services Clients,03-Oct-2017,3342042-1744396H,680.00,REDACTED - PAYMENT TO INDIVIDUAL
Adult and Health Services,Head of Adults,Transfer Payments,515201,Social Services Clients,03-Oct-2017,3342043-1745213H,552.00,REDACTED - PAYMENT TO INDIVIDUAL
Adult and Health Services,Head of Adults,Transfer Payments,515201,Social Services Clients,03-Oct-2017,3342044-1744841H,567.52,REDACTED - PAYMENT TO INDIVIDUAL
Adult and Health Services,Head of Adults,Transfer Payments,515201,Social Services Clients,03-Oct-2017,3342045-1745911H,646.92,REDACTED - PAYMENT TO INDIVIDUAL
Adult and Health Services,Head of Adults,Transfer Payments,515201,Social Services Clients,03-Oct-2017,3342046-1744584H,807.48,REDACTED - PAYMENT TO INDIVIDUAL
Adult and Health Services,Head of Adults,Transfer Payments,515201,Social Services Clients,03-Oct-2017,3342048-1743747H,"1,109.00",REDACTED - PAYMENT TO INDIVIDUAL
Adult and Health Services,Head of Adults,Transfer Payments,515201,Social Services Clients,03-Oct-2017,3342049-1745268H,"1,092.00",REDACTED - PAYMENT TO INDIVIDUAL
Adult and Health Services,Head of Adults,Transfer Payments,515201,Social Services Clients,03-Oct-2017,3342050-1747391H,900.28,REDACTED - PAYMENT TO INDIVIDUAL
Adult and Health Services,Head of Adults,Transfer Payments,515201,Social Services Clients,03-Oct-2017,3342052-1745501H,"2,740.16",REDACTED - PAYMENT TO INDIVIDUAL
Adult and Health Services,Head of Adults,Transfer Payments,515201,Social Services Clients,03-Oct-2017,3342057-1748756H,736.56,REDACTED - PAYMENT TO INDIVIDUAL
Adult and Health Services,Head of Adults,Transfer Payments,515201,Social Services Clients,03-Oct-2017,3342058-1744068H,919.36,REDACTED - PAYMENT TO INDIVIDUAL
Adult and Health Services,Head of Adults,Transfer Payments,515201,Social Services Clients,03-Oct-2017,3342059-1742480H,"1,739.20",REDACTED - PAYMENT TO INDIVIDUAL
Adult and Health Services,Head of Adults,Transfer Payments,515210,Social Services Clients,03-Oct-2017,3342061-1746553H,"6,162.52",REDACTED - PAYMENT TO INDIVIDUAL
Children and Young Peoples Services,Head of Early Help Assessment and Safeguarding,Transfer Payments,515201,Social Services Clients,03-Oct-2017,3342064-1747389H,"1,685.00",REDACTED - PAYMENT TO INDIVIDUAL
Adult and Health Services,Head of Adults,Transfer Payments,515201,Social Services Clients,03-Oct-2017,3342065-1744188H,717.40,REDACTED - PAYMENT TO INDIVIDUAL
Adult and Health Services,Head of Adults,Transfer Payments,515201,Social Services Clients,03-Oct-2017,3342066-1744515H,"1,035.08",REDACTED - PAYMENT TO INDIVIDUAL
Adult and Health Services,Head of Adults,Transfer Payments,515201,Social Services Clients,03-Oct-2017,3342068-1746691H,839.92,REDACTED - PAYMENT TO INDIVIDUAL
Children and Young Peoples Services,Head of Early Help Assessment and Safeguarding,Transfer Payments,515201,Social Services Clients,03-Oct-2017,3342069-1748268H,"6,480.00",REDACTED - PAYMENT TO INDIVIDUAL
Adult and Health Services,Head of Adults,Transfer Payments,515201,Social Services Clients,03-Oct-2017,3342070-1744220H,738.52,REDACTED - PAYMENT TO INDIVIDUAL
Adult and Health Services,Head of Adults,Transfer Payments,515201,Social Services Clients,03-Oct-2017,3342074-1747050H,862.60,REDACTED - PAYMENT TO INDIVIDUAL
Adult and Health Services,Head of Adults,Transfer Payments,515210,Social Services Clients,03-Oct-2017,3342075-1744884H,"1,330.80",REDACTED - PAYMENT TO INDIVIDUAL
Adult and Health Services,Head of Adults,Transfer Payments,515209,Social Services Clients,03-Oct-2017,3342076-1744912D,"1,481.60",REDACTED - PAYMENT TO INDIVIDUAL
Adult and Health Services,Head of Adults,Transfer Payments,515201,Social Services Clients,03-Oct-2017,3342076-1744912H,681.00,REDACTED - PAYMENT TO INDIVIDUAL
Adult and Health Services,Head of Adults,Transfer Payments,515201,Social Services Clients,03-Oct-2017,3342078-1742926H,640.00,REDACTED - PAYMENT TO INDIVIDUAL
Adult and Health Services,Head of Adults,Transfer Payments,515201,Social Services Clients,03-Oct-2017,3342080-1745908H,723.84,REDACTED - PAYMENT TO INDIVIDUAL
Adult and Health Services,Head of Adults,Transfer Payments,515201,Social Services Clients,03-Oct-2017,3342082-1745621H,702.60,REDACTED - PAYMENT TO INDIVIDUAL
Adult and Health Services,Head of Adults,Transfer Payments,515201,Social Services Clients,03-Oct-2017,3342083-1746193H,746.48,REDACTED - PAYMENT TO INDIVIDUAL
Adult and Health Services,Head of Adults,Transfer Payments,515201,Social Services Clients,03-Oct-2017,3342088-1747223H,727.96,REDACTED - PAYMENT TO INDIVIDUAL
Adult and Health Services,Head of Adults,Transfer Payments,515201,Social Services Clients,03-Oct-2017,3342090-1745327H,810.56,REDACTED - PAYMENT TO INDIVIDUAL
Adult and Health Services,Head of Adults,Transfer Payments,515201,Social Services Clients,03-Oct-2017,3342092-1744610H,"2,380.00",REDACTED - PAYMENT TO INDIVIDUAL
Adult and Health Services,Head of Adults,Transfer Payments,515201,Social Services Clients,03-Oct-2017,3342095-1744953H,844.00,REDACTED - PAYMENT TO INDIVIDUAL
Adult and Health Services,Head of Adults,Transfer Payments,515209,Social Services Clients,03-Oct-2017,3342100-1744358D,"1,600.00",REDACTED - PAYMENT TO INDIVIDUAL
Adult and Health Services,Head of Adults,Transfer Payments,515201,Social Services Clients,03-Oct-2017,3342100-1744358H,504.00,REDACTED - PAYMENT TO INDIVIDUAL
Adult and Health Services,Head of Adults,Transfer Payments,515201,Social Services Clients,03-Oct-2017,3342101-1743929H,621.04,REDACTED - PAYMENT TO INDIVIDUAL
Adult and Health Services,Head of Adults,Transfer Payments,515201,Social Services Clients,03-Oct-2017,3342102-1746871H,590.80,REDACTED - PAYMENT TO INDIVIDUAL
Adult and Health Services,Head of Adults,Transfer Payments,515201,Social Services Clients,03-Oct-2017,3342105-1744971H,661.12,REDACTED - PAYMENT TO INDIVIDUAL
Adult and Health Services,Head of Adults,Transfer Payments,515201,Social Services Clients,03-Oct-2017,3342106-1746776H,"1,381.00",REDACTED - PAYMENT TO INDIVIDUAL
Adult and Health Services,Head of Adults,Transfer Payments,515201,Social Services Clients,03-Oct-2017,3342108-1746027H,622.44,REDACTED - PAYMENT TO INDIVIDUAL
Adult and Health Services,Head of Adults,Transfer Payments,515201,Social Services Clients,03-Oct-2017,3342109-1743466H,"1,463.88",REDACTED - PAYMENT TO INDIVIDUAL
Adult and Health Services,Head of Adults,Transfer Payments,515210,Social Services Clients,03-Oct-2017,3342111-1745986H,"1,635.60",REDACTED - PAYMENT TO INDIVIDUAL
Adult and Health Services,Head of Adults,Transfer Payments,515201,Social Services Clients,03-Oct-2017,3342112-1747429H,557.28,REDACTED - PAYMENT TO INDIVIDUAL
Adult and Health Services,Head of Adults,Transfer Payments,515201,Social Services Clients,03-Oct-2017,3342113-1746242H,"1,311.52",REDACTED - PAYMENT TO INDIVIDUAL
Adult and Health Services,Head of Adults,Transfer Payments,515210,Social Services Clients,03-Oct-2017,3342115-1746633H,776.28,REDACTED - PAYMENT TO INDIVIDUAL
Adult and Health Services,Head of Adults,Transfer Payments,515210,Social Services Clients,03-Oct-2017,3342116-1745008H,"1,271.20",REDACTED - PAYMENT TO INDIVIDUAL
Adult and Health Services,Head of Adults,Transfer Payments,515201,Social Services Clients,03-Oct-2017,3342117-1742824H,710.40,REDACTED - PAYMENT TO INDIVIDUAL
Adult and Health Services,Head of Adults,Transfer Payments,515201,Social Services Clients,03-Oct-2017,3342118-1745795H,856.00,REDACTED - PAYMENT TO INDIVIDUAL
Adult and Health Services,Head of Adults,Transfer Payments,515201,Social Services Clients,03-Oct-2017,3342119-1743164H,726.40,REDACTED - PAYMENT TO INDIVIDUAL
Adult and Health Services,Head of Adults,Transfer Payments,515201,Social Services Clients,03-Oct-2017,3342122-1745053H,542.88,REDACTED - PAYMENT TO INDIVIDUAL
Adult and Health Services,Head of Adults,Transfer Payments,515209,Social Services Clients,03-Oct-2017,3342123-1743210D,620.00,REDACTED - PAYMENT TO INDIVIDUAL
Adult and Health Services,Head of Adults,Transfer Payments,515201,Social Services Clients,03-Oct-2017,3342123-1743210H,"1,784.20",REDACTED - PAYMENT TO INDIVIDUAL
Adult and Health Services,Head of Adults,Transfer Payments,515201,Social Services Clients,03-Oct-2017,3342127-1747708H,908.00,REDACTED - PAYMENT TO INDIVIDUAL
Adult and Health Services,Head of Adults,Transfer Payments,515201,Social Services Clients,03-Oct-2017,3342128-1748259H,"1,242.08",REDACTED - PAYMENT TO INDIVIDUAL
Children and Young Peoples Services,Head of Early Help Assessment and Safeguarding,Transfer Payments,515201,Social Services Clients,03-Oct-2017,3342129-1747646H,526.00,REDACTED - PAYMENT TO INDIVIDUAL
Adult and Health Services,Head of Adults,Transfer Payments,515201,Social Services Clients,03-Oct-2017,3342132-1747386H,643.56,REDACTED - PAYMENT TO INDIVIDUAL
Children and Young Peoples Services,Head of Early Help Assessment and Safeguarding,Transfer Payments,515201,Social Services Clients,03-Oct-2017,3342135-1747214H,594.48,REDACTED - PAYMENT TO INDIVIDUAL
Children and Young Peoples Services,Head of Looked After Provision Permanence and Care Leavers,Third Party Payments,425040,Rendered by Voluntary Organisations,03-Oct-2017,3342137-1746910H,"2,920.12",ACORN CARE (NE) LTD T/A ACORN FOSTERING SERVICES.
Children and Young Peoples Services,Head of Looked After Provision Permanence and Care Leavers,Third Party Payments,425040,Rendered by Voluntary Organisations,03-Oct-2017,3342137-1747496H,"3,500.00",ACORN CARE (NE) LTD T/A ACORN FOSTERING SERVICES.
Children and Young Peoples Services,Head of Looked After Provision Permanence and Care Leavers,Third Party Payments,425040,Rendered by Voluntary Organisations,03-Oct-2017,3342137-1747603H,"2,800.00",ACORN CARE (NE) LTD T/A ACORN FOSTERING SERVICES.
Children and Young Peoples Services,Head of Looked After Provision Permanence and Care Leavers,Third Party Payments,425040,Rendered by Voluntary Organisations,03-Oct-2017,3342137-1747697H,"8,375.00",ACORN CARE (NE) LTD T/A ACORN FOSTERING SERVICES.
Children and Young Peoples Services,Head of Looked After Provision Permanence and Care Leavers,Third Party Payments,425040,Rendered by Voluntary Organisations,03-Oct-2017,3342139-1748664H,"2,920.12",ACORN HOUSE (FOSTERING SERVICES) LTD.
Adult and Health Services,Head of Adults,Third Party Payments,472101,Purchase of Care,03-Oct-2017,3342140-1742968H,686.80,ACTION ON HEARING LOSS.
Adult and Health Services,Head of Adults,Transfer Payments,515201,Social Services Clients,03-Oct-2017,3342141-1745076H,881.04,REDACTED - PAYMENT TO INDIVIDUAL
Adult and Health Services,Head of Adults,Transfer Payments,515201,Social Services Clients,03-Oct-2017,3342143-1746605H,"6,196.04",REDACTED - PAYMENT TO INDIVIDUAL
Adult and Health Services,Head of Adults,Transfer Payments,515209,Social Services Clients,03-Oct-2017,3342144-1745589D,640.00,REDACTED - PAYMENT TO INDIVIDUAL
Adult and Health Services,Head of Adults,Transfer Payments,515201,Social Services Clients,03-Oct-2017,3342146-1749058H,660.00,REDACTED - PAYMENT TO INDIVIDUAL
Adult and Health Services,Head of Adults,Transfer Payments,515201,Social Services Clients,03-Oct-2017,3342148-1744206H,"1,038.84",REDACTED - PAYMENT TO INDIVIDUAL
Adult and Health Services,Head of Adults,Transfer Payments,515209,Social Services Clients,03-Oct-2017,3342150-1742668D,540.00,REDACTED - PAYMENT TO INDIVIDUAL
Adult and Health Services,Head of Adults,Transfer Payments,515209,Social Services Clients,03-Oct-2017,3342152-1748415D,676.00,REDACTED - PAYMENT TO INDIVIDUAL
Adult and Health Services,Head of Adults,Transfer Payments,515201,Social Services Clients,03-Oct-2017,3342153-1748779H,724.16,REDACTED - PAYMENT TO INDIVIDUAL
Adult and Health Services,Head of Adults,Transfer Payments,515201,Social Services Clients,03-Oct-2017,3342154-1744024H,"1,076.12",REDACTED - PAYMENT TO INDIVIDUAL
Adult and Health Services,Head of Adults,Transfer Payments,515201,Social Services Clients,03-Oct-2017,3342156-1747447H,801.80,REDACTED - PAYMENT TO INDIVIDUAL
Adult and Health Services,Head of Adults,Transfer Payments,515211,Social Services Clients,03-Oct-2017,3342160-1743351H,"3,359.28",REDACTED - PAYMENT TO INDIVIDUAL
Children and Young Peoples Services,Head of Education,Transport,230006,Contract Hire,03-Oct-2017,3342161-1747774H,532.80,REDACTED - PAYMENT TO INDIVIDUAL
Children and Young Peoples Services,Head of Early Help Assessment and Safeguarding,Transfer Payments,515201,Social Services Clients,03-Oct-2017,3342162-1747773H,630.00,REDACTED - PAYMENT TO INDIVIDUAL
Adult and Health Services,Head of Adults,Transfer Payments,515201,Social Services Clients,03-Oct-2017,3342163-1746162H,640.00,REDACTED - PAYMENT TO INDIVIDUAL
Adult and Health Services,Head of Adults,Transfer Payments,515201,Social Services Clients,03-Oct-2017,3342164-1749009H,"1,156.90",REDACTED - PAYMENT TO INDIVIDUAL
Adult and Health Services,Head of Adults,Transfer Payments,515210,Social Services Clients,03-Oct-2017,3342165-1745569H,862.72,REDACTED - PAYMENT TO INDIVIDUAL
Adult and Health Services,Head of Adults,Transfer Payments,515201,Social Services Clients,03-Oct-2017,3342166-1745786H,600.16,REDACTED - PAYMENT TO INDIVIDUAL
Adult and Health Services,Head of Adults,Transfer Payments,515209,Social Services Clients,03-Oct-2017,3342167-1749128D,"3,119.04",REDACTED - PAYMENT TO INDIVIDUAL
Adult and Health Services,Head of Adults,Transfer Payments,515201,Social Services Clients,03-Oct-2017,3342167-1749128H,"4,613.44",REDACTED - PAYMENT TO INDIVIDUAL
Adult and Health Services,Head of Adults,Transfer Payments,515201,Social Services Clients,03-Oct-2017,3342168-1748506H,"1,295.80",REDACTED - PAYMENT TO INDIVIDUAL
Adult and Health Services,Head of Adults,Transfer Payments,515201,Social Services Clients,03-Oct-2017,3342172-1743137H,687.60,REDACTED - PAYMENT TO INDIVIDUAL
Adult and Health Services,Head of Adults,Transfer Payments,515201,Social Services Clients,03-Oct-2017,3342173-1743936H,759.60,REDACTED - PAYMENT TO INDIVIDUAL
Adult and Health Services,Head of Adults,Transfer Payments,515209,Social Services Clients,03-Oct-2017,3342174-1744890D,560.00,REDACTED - PAYMENT TO INDIVIDUAL
Adult and Health Services,Head of Adults,Transfer Payments,515201,Social Services Clients,03-Oct-2017,3342176-1746036H,"2,261.68",REDACTED - PAYMENT TO INDIVIDUAL
Adult and Health Services,Head of Adults,Transfer Payments,515201,Social Services Clients,03-Oct-2017,3342177-1743856H,631.20,REDACTED - PAYMENT TO INDIVIDUAL
Adult and Health Services,Head of Adults,Transfer Payments,515201,Social Services Clients,03-Oct-2017,3342178-1747175H,504.48,REDACTED - PAYMENT TO INDIVIDUAL
Adult and Health Services,Head of Adults,Transfer Payments,515201,Social Services Clients,03-Oct-2017,3342179-1742945H,"4,861.80",REDACTED - PAYMENT TO INDIVIDUAL
Adult and Health Services,Head of Adults,Transfer Payments,515210,Social Services Clients,03-Oct-2017,3342179-1744681H,"4,116.84",REDACTED - PAYMENT TO INDIVIDUAL
Adult and Health Services,Head of Adults,Transfer Payments,515201,Social Services Clients,03-Oct-2017,3342181-1747487H,934.36,REDACTED - PAYMENT TO INDIVIDUAL
Adult and Health Services,Head of Adults,Transfer Payments,515201,Social Services Clients,03-Oct-2017,3342184-1744925H,636.68,REDACTED - PAYMENT TO INDIVIDUAL
Adult and Health Services,Head of Adults,Transfer Payments,515201,Social Services Clients,03-Oct-2017,3342185-1744286H,"1,038.84",REDACTED - PAYMENT TO INDIVIDUAL
Adult and Health Services,Head of Adults,Transfer Payments,515201,Social Services Clients,03-Oct-2017,3342186-1744159H,756.08,REDACTED - PAYMENT TO INDIVIDUAL
Adult and Health Services,Head of Adults,Transfer Payments,515201,Social Services Clients,03-Oct-2017,3342187-1745962H,828.48,REDACTED - PAYMENT TO INDIVIDUAL
Adult and Health Services,Head of Adults,Third Party Payments,478101,Purchase of Care,03-Oct-2017,3342189-1742437H,"6,434.72",AUTISM CARE UK (4) LTD.
Adult and Health Services,Head of Adults,Third Party Payments,478101,Purchase of Care,03-Oct-2017,3342189-1742842H,"3,872.24",AUTISM CARE UK (4) LTD.
Adult and Health Services,Head of Adults,Third Party Payments,478101,Purchase of Care,03-Oct-2017,3342189-1743645H,"2,988.64",AUTISM CARE UK (4) LTD.
Adult and Health Services,Head of Adults,Third Party Payments,478101,Purchase of Care,03-Oct-2017,3342189-1743845H,"4,608.64",AUTISM CARE UK (4) LTD.
Adult and Health Services,Head of Adults,Third Party Payments,478101,Purchase of Care,03-Oct-2017,3342189-1743895H,"3,872.24",AUTISM CARE UK (4) LTD.
Adult and Health Services,Head of Adults,Third Party Payments,478101,Purchase of Care,03-Oct-2017,3342189-1744023H,"2,456.52",AUTISM CARE UK (4) LTD.
Adult and Health Services,Head of Adults,Third Party Payments,478101,Purchase of Care,03-Oct-2017,3342189-1744121H,"3,872.24",AUTISM CARE UK (4) LTD.
Adult and Health Services,Head of Adults,Third Party Payments,478101,Purchase of Care,03-Oct-2017,3342189-1744132H,"3,872.24",AUTISM CARE UK (4) LTD.
Adult and Health Services,Head of Adults,Third Party Payments,478101,Purchase of Care,03-Oct-2017,3342189-1744133H,"3,872.24",AUTISM CARE UK (4) LTD.
Adult and Health Services,Head of Adults,Third Party Payments,478101,Purchase of Care,03-Oct-2017,3342189-1744306H,"2,456.52",AUTISM CARE UK (4) LTD.
Adult and Health Services,Head of Adults,Third Party Payments,478101,Purchase of Care,03-Oct-2017,3342189-1744825H,"7,090.48",AUTISM CARE UK (4) LTD.
Adult and Health Services,Head of Adults,Third Party Payments,478101,Purchase of Care,03-Oct-2017,3342189-1745733H,"6,248.68",AUTISM CARE UK (4) LTD.
Adult and Health Services,Head of Adults,Transfer Payments,515201,Social Services Clients,03-Oct-2017,3342190-1746523H,646.00,REDACTED - PAYMENT TO INDIVIDUAL
Children and Young Peoples Services,Head of Looked After Provision Permanence and Care Leavers,Third Party Payments,425040,Rendered by Voluntary Organisations,03-Oct-2017,3342191-1731842H,"2,404.92",BARNARDOS BELIEVE IN CHILDREN.
Children and Young Peoples Services,Head of Looked After Provision Permanence and Care Leavers,Third Party Payments,425040,Rendered by Voluntary Organisations,03-Oct-2017,3342191-1732623H,"3,280.20",BARNARDOS BELIEVE IN CHILDREN.
Children and Young Peoples Services,Head of Looked After Provision Permanence and Care Leavers,Third Party Payments,425040,Rendered by Voluntary Organisations,03-Oct-2017,3342191-1732727H,"3,920.00",BARNARDOS BELIEVE IN CHILDREN.
Children and Young Peoples Services,Head of Looked After Provision Permanence and Care Leavers,Third Party Payments,425040,Rendered by Voluntary Organisations,03-Oct-2017,3342191-1732844H,"2,920.12",BARNARDOS BELIEVE IN CHILDREN.
Children and Young Peoples Services,Head of Looked After Provision Permanence and Care Leavers,Third Party Payments,425040,Rendered by Voluntary Organisations,03-Oct-2017,3342191-1732885H,"3,280.20",BARNARDOS BELIEVE IN CHILDREN.
Children and Young Peoples Services,Head of Looked After Provision Permanence and Care Leavers,Third Party Payments,425040,Rendered by Voluntary Organisations,03-Oct-2017,3342191-1733067H,"3,280.20",BARNARDOS BELIEVE IN CHILDREN.
Children and Young Peoples Services,Head of Looked After Provision Permanence and Care Leavers,Third Party Payments,425040,Rendered by Voluntary Organisations,03-Oct-2017,3342191-1733392H,"2,800.00",BARNARDOS BELIEVE IN CHILDREN.
Children and Young Peoples Services,Head of Looked After Provision Permanence and Care Leavers,Third Party Payments,425040,Rendered by Voluntary Organisations,03-Oct-2017,3342191-1733422H,"2,800.00",BARNARDOS BELIEVE IN CHILDREN.
Children and Young Peoples Services,Head of Looked After Provision Permanence and Care Leavers,Third Party Payments,425040,Rendered by Voluntary Organisations,03-Oct-2017,3342191-1733783H,"2,800.00",BARNARDOS BELIEVE IN CHILDREN.
Children and Young Peoples Services,Head of Looked After Provision Permanence and Care Leavers,Third Party Payments,425040,Rendered by Voluntary Organisations,03-Oct-2017,3342191-1734473H,"3,600.24",BARNARDOS BELIEVE IN CHILDREN.
Children and Young Peoples Services,Head of Looked After Provision Permanence and Care Leavers,Third Party Payments,425040,Rendered by Voluntary Organisations,03-Oct-2017,3342191-1734778H,"2,800.00",BARNARDOS BELIEVE IN CHILDREN.
Children and Young Peoples Services,Head of Looked After Provision Permanence and Care Leavers,Third Party Payments,425040,Rendered by Voluntary Organisations,03-Oct-2017,3342191-1734809H,"2,920.12",BARNARDOS BELIEVE IN CHILDREN.
Children and Young Peoples Services,Head of Looked After Provision Permanence and Care Leavers,Third Party Payments,425040,Rendered by Voluntary Organisations,03-Oct-2017,3342191-1745638H,"2,404.92",BARNARDOS BELIEVE IN CHILDREN.
Children and Young Peoples Services,Head of Looked After Provision Permanence and Care Leavers,Third Party Payments,425040,Rendered by Voluntary Organisations,03-Oct-2017,3342191-1746423H,"3,280.20",BARNARDOS BELIEVE IN CHILDREN.
Children and Young Peoples Services,Head of Looked After Provision Permanence and Care Leavers,Third Party Payments,425040,Rendered by Voluntary Organisations,03-Oct-2017,3342191-1746536H,"3,920.00",BARNARDOS BELIEVE IN CHILDREN.
Children and Young Peoples Services,Head of Looked After Provision Permanence and Care Leavers,Third Party Payments,425040,Rendered by Voluntary Organisations,03-Oct-2017,3342191-1746653H,"2,920.12",BARNARDOS BELIEVE IN CHILDREN.
Children and Young Peoples Services,Head of Looked After Provision Permanence and Care Leavers,Third Party Payments,425040,Rendered by Voluntary Organisations,03-Oct-2017,3342191-1746700H,"3,280.20",BARNARDOS BELIEVE IN CHILDREN.
Children and Young Peoples Services,Head of Looked After Provision Permanence and Care Leavers,Third Party Payments,425040,Rendered by Voluntary Organisations,03-Oct-2017,3342191-1746884H,"3,280.20",BARNARDOS BELIEVE IN CHILDREN.
Children and Young Peoples Services,Head of Looked After Provision Permanence and Care Leavers,Third Party Payments,425040,Rendered by Voluntary Organisations,03-Oct-2017,3342191-1747204H,"2,800.00",BARNARDOS BELIEVE IN CHILDREN.
Children and Young Peoples Services,Head of Looked After Provision Permanence and Care Leavers,Third Party Payments,425040,Rendered by Voluntary Organisations,03-Oct-2017,3342191-1747236H,"2,800.00",BARNARDOS BELIEVE IN CHILDREN.
Children and Young Peoples Services,Head of Looked After Provision Permanence and Care Leavers,Third Party Payments,425040,Rendered by Voluntary Organisations,03-Oct-2017,3342191-1747585H,"2,800.00",BARNARDOS BELIEVE IN CHILDREN.
Children and Young Peoples Services,Head of Looked After Provision Permanence and Care Leavers,Third Party Payments,425040,Rendered by Voluntary Organisations,03-Oct-2017,3342191-1748285H,"3,600.24",BARNARDOS BELIEVE IN CHILDREN.
Children and Young Peoples Services,Head of Looked After Provision Permanence and Care Leavers,Third Party Payments,425040,Rendered by Voluntary Organisations,03-Oct-2017,3342191-1748547H,"2,720.20",BARNARDOS BELIEVE IN CHILDREN.
Children and Young Peoples Services,Head of Looked After Provision Permanence and Care Leavers,Third Party Payments,425040,Rendered by Voluntary Organisations,03-Oct-2017,3342191-1748583H,"2,800.00",BARNARDOS BELIEVE IN CHILDREN.
Children and Young Peoples Services,Head of Looked After Provision Permanence and Care Leavers,Third Party Payments,425040,Rendered by Voluntary Organisations,03-Oct-2017,3342191-1748612H,"2,920.12",BARNARDOS BELIEVE IN CHILDREN.
Children and Young Peoples Services,Head of Looked After Provision Permanence and Care Leavers,Third Party Payments,425040,Rendered by Voluntary Organisations,03-Oct-2017,3342191-1748715H,"2,720.20",BARNARDOS BELIEVE IN CHILDREN.
Adult and Health Services,Head of Adults,Transfer Payments,515209,Social Services Clients,03-Oct-2017,3342192-1743084D,700.00,REDACTED - PAYMENT TO INDIVIDUAL
Adult and Health Services,Head of Adults,Transfer Payments,515210,Social Services Clients,03-Oct-2017,3342193-1745729H,"6,390.16",REDACTED - PAYMENT TO INDIVIDUAL
Adult and Health Services,Head of Adults,Transfer Payments,515201,Social Services Clients,03-Oct-2017,3342195-1747911H,510.16,REDACTED - PAYMENT TO INDIVIDUAL
Adult and Health Services,Head of Adults,Transfer Payments,515201,Social Services Clients,03-Oct-2017,3342196-1749008H,"4,320.00",REDACTED - PAYMENT TO INDIVIDUAL
Adult and Health Services,Head of Adults,Transfer Payments,515201,Social Services Clients,03-Oct-2017,3342198-1744215H,668.36,REDACTED - PAYMENT TO INDIVIDUAL
Adult and Health Services,Head of Adults,Transfer Payments,515201,Social Services Clients,03-Oct-2017,3342199-1745934H,565.44,REDACTED - PAYMENT TO INDIVIDUAL
Adult and Health Services,Head of Adults,Third Party Payments,472101,Purchase of Care,03-Oct-2017,3342202-1744846H,572.75,BLUE RIBBON COMMUNITY CARE.
Adult and Health Services,Head of Adults,Transfer Payments,515201,Social Services Clients,03-Oct-2017,3342208-1742509H,"7,102.32",REDACTED - PAYMENT TO INDIVIDUAL
Adult and Health Services,Head of Adults,Transfer Payments,515201,Social Services Clients,03-Oct-2017,3342209-1744996H,590.00,REDACTED - PAYMENT TO INDIVIDUAL
Adult and Health Services,Head of Adults,Transfer Payments,515210,Social Services Clients,03-Oct-2017,3342213-1746140H,"5,836.16",REDACTED - PAYMENT TO INDIVIDUAL
Adult and Health Services,Head of Adults,Transfer Payments,515211,Social Services Clients,03-Oct-2017,3342215-1744082H,"1,488.40",REDACTED - PAYMENT TO INDIVIDUAL
Adult and Health Services,Head of Adults,Transfer Payments,515201,Social Services Clients,03-Oct-2017,3342216-1746950H,800.00,REDACTED - PAYMENT TO INDIVIDUAL
Adult and Health Services,Head of Adults,Transfer Payments,515201,Social Services Clients,03-Oct-2017,3342218-1744886H,"1,428.64",REDACTED - PAYMENT TO INDIVIDUAL
Adult and Health Services,Head of Adults,Transfer Payments,515201,Social Services Clients,03-Oct-2017,3342220-1745360H,"1,870.00",REDACTED - PAYMENT TO INDIVIDUAL
Adult and Health Services,Head of Adults,Transfer Payments,515201,Social Services Clients,03-Oct-2017,3342221-1746448H,704.40,REDACTED - PAYMENT TO INDIVIDUAL
Adult and Health Services,Head of Adults,Transfer Payments,515201,Social Services Clients,03-Oct-2017,3342222-1746064H,635.60,REDACTED - PAYMENT TO INDIVIDUAL
Adult and Health Services,Head of Adults,Transfer Payments,515201,Social Services Clients,03-Oct-2017,3342224-1743238H,"4,774.00",REDACTED - PAYMENT TO INDIVIDUAL
Adult and Health Services,Head of Adults,Transfer Payments,515201,Social Services Clients,03-Oct-2017,3342226-1747067H,"1,611.72",REDACTED - PAYMENT TO INDIVIDUAL
Adult and Health Services,Head of Adults,Third Party Payments,472101,Purchase of Care,03-Oct-2017,3342227-1744329H,704.72,CASTLE CARE TEESDALE LTD.
Adult and Health Services,Head of Adults,Third Party Payments,472101,Purchase of Care,03-Oct-2017,3342227-1744336H,845.68,CASTLE CARE TEESDALE LTD.
Adult and Health Services,Head of Adults,Third Party Payments,472101,Purchase of Care,03-Oct-2017,3342227-1744788H,732.00,CASTLE CARE TEESDALE LTD.
Adult and Health Services,Head of Adults,Third Party Payments,472101,Purchase of Care,03-Oct-2017,3342227-1744948H,606.96,CASTLE CARE TEESDALE LTD.
Adult and Health Services,Head of Adults,Third Party Payments,472101,Purchase of Care,03-Oct-2017,3342227-1745060H,572.88,CASTLE CARE TEESDALE LTD.
Adult and Health Services,Head of Adults,Third Party Payments,472101,Purchase of Care,03-Oct-2017,3342227-1745378H,552.32,CASTLE CARE TEESDALE LTD.
Adult and Health Services,Head of Adults,Third Party Payments,472101,Purchase of Care,03-Oct-2017,3342227-1745921H,636.52,CASTLE CARE TEESDALE LTD.
Adult and Health Services,Head of Adults,Third Party Payments,472101,Purchase of Care,03-Oct-2017,3342227-1747418H,701.40,CASTLE CARE TEESDALE LTD.
Adult and Health Services,Head of Adults,Third Party Payments,472101,Purchase of Care,03-Oct-2017,3342227-1747586H,"1,839.52",CASTLE CARE TEESDALE LTD.
Adult and Health Services,Head of Adults,Third Party Payments,472101,Purchase of Care,03-Oct-2017,3342227-1748284H,750.20,CASTLE CARE TEESDALE LTD.
Adult and Health Services,Head of Adults,Third Party Payments,472101,Purchase of Care,03-Oct-2017,3342227-1748579H,"1,014.04",CASTLE CARE TEESDALE LTD.
Adult and Health Services,Head of Adults,Transfer Payments,515201,Social Services Clients,03-Oct-2017,3342228-1749014H,"3,744.00",REDACTED - PAYMENT TO INDIVIDUAL
Adult and Health Services,Head of Adults,Transfer Payments,515201,Social Services Clients,03-Oct-2017,3342230-1742481H,"1,327.96",REDACTED - PAYMENT TO INDIVIDUAL
Children and Young Peoples Services,Head of Early Help Assessment and Safeguarding,Transfer Payments,515201,Social Services Clients,03-Oct-2017,3342231-1746639H,"3,600.00",REDACTED - PAYMENT TO INDIVIDUAL
Adult and Health Services,Head of Adults,Transfer Payments,515201,Social Services Clients,03-Oct-2017,3342232-1744731H,"3,445.12",REDACTED - PAYMENT TO INDIVIDUAL
Children and Young Peoples Services,Head of Looked After Provision Permanence and Care Leavers,Third Party Payments,425040,Rendered by Voluntary Organisations,03-Oct-2017,3342236-1746437H,"3,280.20",CHILDRENS FAMILY TRUST.
Children and Young Peoples Services,Head of Looked After Provision Permanence and Care Leavers,Third Party Payments,425040,Rendered by Voluntary Organisations,03-Oct-2017,3342236-1746665H,"2,920.12",CHILDRENS FAMILY TRUST.
Children and Young Peoples Services,Head of Looked After Provision Permanence and Care Leavers,Third Party Payments,425040,Rendered by Voluntary Organisations,03-Oct-2017,3342236-1746959H,"2,800.00",CHILDRENS FAMILY TRUST.
Children and Young Peoples Services,Head of Looked After Provision Permanence and Care Leavers,Third Party Payments,425040,Rendered by Voluntary Organisations,03-Oct-2017,3342236-1747260H,"2,920.12",CHILDRENS FAMILY TRUST.
Children and Young Peoples Services,Head of Looked After Provision Permanence and Care Leavers,Third Party Payments,425040,Rendered by Voluntary Organisations,03-Oct-2017,3342236-1747326H,"2,800.00",CHILDRENS FAMILY TRUST.
Children and Young Peoples Services,Head of Early Help Assessment and Safeguarding,Transfer Payments,515201,Social Services Clients,03-Oct-2017,3342238-1747577H,792.00,REDACTED - PAYMENT TO INDIVIDUAL
Adult and Health Services,Head of Adults,Transfer Payments,515209,Social Services Clients,03-Oct-2017,3342239-1744339D,"1,692.32",REDACTED - PAYMENT TO INDIVIDUAL
Adult and Health Services,Head of Adults,Third Party Payments,478101,Purchase of Care,03-Oct-2017,3342240-1743098H,"3,956.40",CHOICES COMMUNITY CARE SERVICES LTD.
Adult and Health Services,Head of Adults,Third Party Payments,478101,Purchase of Care,03-Oct-2017,3342240-1744335H,"3,850.80",CHOICES COMMUNITY CARE SERVICES LTD.
Adult and Health Services,Head of Adults,Third Party Payments,478101,Purchase of Care,03-Oct-2017,3342240-1744362H,"3,982.80",CHOICES COMMUNITY CARE SERVICES LTD.
Adult and Health Services,Head of Adults,Third Party Payments,478101,Purchase of Care,03-Oct-2017,3342240-1744817H,"4,299.60",CHOICES COMMUNITY CARE SERVICES LTD.
Adult and Health Services,Head of Adults,Transfer Payments,515209,Social Services Clients,03-Oct-2017,3342245-1745264D,730.28,REDACTED - PAYMENT TO INDIVIDUAL
Adult and Health Services,Head of Adults,Transfer Payments,515201,Social Services Clients,03-Oct-2017,3342246-1743104H,"1,507.00",REDACTED - PAYMENT TO INDIVIDUAL
Adult and Health Services,Head of Adults,Transfer Payments,515201,Social Services Clients,03-Oct-2017,3342247-1746014H,610.00,REDACTED - PAYMENT TO INDIVIDUAL
Adult and Health Services,Head of Adults,Transfer Payments,515210,Social Services Clients,03-Oct-2017,3342248-1742442H,"4,664.88",REDACTED - PAYMENT TO INDIVIDUAL
Adult and Health Services,Head of Adults,Transfer Payments,515209,Social Services Clients,03-Oct-2017,3342249-1749102D,902.00,REDACTED - PAYMENT TO INDIVIDUAL
Adult and Health Services,Head of Adults,Transfer Payments,515211,Social Services Clients,03-Oct-2017,3342249-1749102H,"1,080.16",REDACTED - PAYMENT TO INDIVIDUAL
Adult and Health Services,Head of Adults,Transfer Payments,515201,Social Services Clients,03-Oct-2017,3342253-1743527H,"1,709.56",REDACTED - PAYMENT TO INDIVIDUAL
Adult and Health Services,Head of Adults,Transfer Payments,515201,Social Services Clients,03-Oct-2017,3342254-1745132H,828.44,REDACTED - PAYMENT TO INDIVIDUAL
Adult and Health Services,Head of Adults,Transfer Payments,515201,Social Services Clients,03-Oct-2017,3342255-1749025H,652.00,REDACTED - PAYMENT TO INDIVIDUAL
Adult and Health Services,Head of Adults,Third Party Payments,472101,Purchase of Care,03-Oct-2017,3342257-1742415H,712.70,COMFORT CALL LTD.
Adult and Health Services,Head of Adults,Third Party Payments,472101,Purchase of Care,03-Oct-2017,3342257-1742454H,509.24,COMFORT CALL LTD.
Adult and Health Services,Head of Adults,Third Party Payments,472101,Purchase of Care,03-Oct-2017,3342257-1742510H,"1,882.32",COMFORT CALL LTD.
Adult and Health Services,Head of Adults,Third Party Payments,472101,Purchase of Care,03-Oct-2017,3342257-1742541H,613.80,COMFORT CALL LTD.
Adult and Health Services,Head of Adults,Third Party Payments,472101,Purchase of Care,03-Oct-2017,3342257-1742558H,536.52,COMFORT CALL LTD.
Adult and Health Services,Head of Adults,Third Party Payments,472101,Purchase of Care,03-Oct-2017,3342257-1742585H,663.80,COMFORT CALL LTD.
Adult and Health Services,Head of Adults,Third Party Payments,472101,Purchase of Care,03-Oct-2017,3342257-1742985H,502.41,COMFORT CALL LTD.
Adult and Health Services,Head of Adults,Third Party Payments,472101,Purchase of Care,03-Oct-2017,3342257-1743020H,"1,132.12",COMFORT CALL LTD.
Adult and Health Services,Head of Adults,Third Party Payments,472101,Purchase of Care,03-Oct-2017,3342257-1743035H,628.57,COMFORT CALL LTD.
Adult and Health Services,Head of Adults,Third Party Payments,472101,Purchase of Care,03-Oct-2017,3342257-1743040H,"1,705.00",COMFORT CALL LTD.
Adult and Health Services,Head of Adults,Third Party Payments,472101,Purchase of Care,03-Oct-2017,3342257-1743460H,"1,466.30",COMFORT CALL LTD.
Adult and Health Services,Head of Adults,Third Party Payments,472101,Purchase of Care,03-Oct-2017,3342257-1743625H,"2,591.60",COMFORT CALL LTD.
Adult and Health Services,Head of Adults,Third Party Payments,472101,Purchase of Care,03-Oct-2017,3342257-1744387H,673.48,COMFORT CALL LTD.
Adult and Health Services,Head of Adults,Third Party Payments,472101,Purchase of Care,03-Oct-2017,3342257-1744402H,504.68,COMFORT CALL LTD.
Adult and Health Services,Head of Adults,Third Party Payments,472101,Purchase of Care,03-Oct-2017,3342257-1744416H,"1,550.40",COMFORT CALL LTD.
Adult and Health Services,Head of Adults,Third Party Payments,472101,Purchase of Care,03-Oct-2017,3342257-1744429H,636.52,COMFORT CALL LTD.
Adult and Health Services,Head of Adults,Third Party Payments,472101,Purchase of Care,03-Oct-2017,3342257-1744443H,695.65,COMFORT CALL LTD.
Adult and Health Services,Head of Adults,Third Party Payments,472101,Purchase of Care,03-Oct-2017,3342257-1744452H,538.78,COMFORT CALL LTD.
Adult and Health Services,Head of Adults,Third Party Payments,472101,Purchase of Care,03-Oct-2017,3342257-1744465H,675.18,COMFORT CALL LTD.
Adult and Health Services,Head of Adults,Third Party Payments,472101,Purchase of Care,03-Oct-2017,3342257-1744475H,"1,075.28",COMFORT CALL LTD.
Adult and Health Services,Head of Adults,Third Party Payments,472101,Purchase of Care,03-Oct-2017,3342257-1744479H,760.43,COMFORT CALL LTD.
Adult and Health Services,Head of Adults,Third Party Payments,472101,Purchase of Care,03-Oct-2017,3342257-1744498H,509.24,COMFORT CALL LTD.
Adult and Health Services,Head of Adults,Third Party Payments,472101,Purchase of Care,03-Oct-2017,3342257-1744529H,"1,476.53",COMFORT CALL LTD.
Adult and Health Services,Head of Adults,Third Party Payments,472101,Purchase of Care,03-Oct-2017,3342257-1744542H,753.61,COMFORT CALL LTD.
Adult and Health Services,Head of Adults,Third Party Payments,472101,Purchase of Care,03-Oct-2017,3342257-1744549H,600.16,COMFORT CALL LTD.
Adult and Health Services,Head of Adults,Third Party Payments,472101,Purchase of Care,03-Oct-2017,3342257-1744573H,"1,711.82",COMFORT CALL LTD.
Adult and Health Services,Head of Adults,Third Party Payments,472101,Purchase of Care,03-Oct-2017,3342257-1744576H,752.77,COMFORT CALL LTD.
Adult and Health Services,Head of Adults,Third Party Payments,472101,Purchase of Care,03-Oct-2017,3342257-1744591H,597.89,COMFORT CALL LTD.
Adult and Health Services,Head of Adults,Third Party Payments,472101,Purchase of Care,03-Oct-2017,3342257-1744655H,"1,022.99",COMFORT CALL LTD.
Adult and Health Services,Head of Adults,Third Party Payments,472101,Purchase of Care,03-Oct-2017,3342257-1744711H,568.32,COMFORT CALL LTD.
Adult and Health Services,Head of Adults,Third Party Payments,472101,Purchase of Care,03-Oct-2017,3342257-1744770H,739.97,COMFORT CALL LTD.
Adult and Health Services,Head of Adults,Third Party Payments,472101,Purchase of Care,03-Oct-2017,3342257-1744771H,836.60,COMFORT CALL LTD.
Adult and Health Services,Head of Adults,Third Party Payments,472101,Purchase of Care,03-Oct-2017,3342257-1744778H,"1,544.72",COMFORT CALL LTD.
Adult and Health Services,Head of Adults,Third Party Payments,472101,Purchase of Care,03-Oct-2017,3342257-1744786H,"1,104.84",COMFORT CALL LTD.
Adult and Health Services,Head of Adults,Third Party Payments,472101,Purchase of Care,03-Oct-2017,3342257-1744787H,845.68,COMFORT CALL LTD.
Adult and Health Services,Head of Adults,Third Party Payments,472101,Purchase of Care,03-Oct-2017,3342257-1744808H,"1,063.92",COMFORT CALL LTD.
Adult and Health Services,Head of Adults,Third Party Payments,472101,Purchase of Care,03-Oct-2017,3342257-1744883H,658.13,COMFORT CALL LTD.
Adult and Health Services,Head of Adults,Third Party Payments,472101,Purchase of Care,03-Oct-2017,3342257-1744908H,760.43,COMFORT CALL LTD.
Adult and Health Services,Head of Adults,Third Party Payments,472101,Purchase of Care,03-Oct-2017,3342257-1744964H,509.22,COMFORT CALL LTD.
Adult and Health Services,Head of Adults,Third Party Payments,472101,Purchase of Care,03-Oct-2017,3342257-1744989H,631.98,COMFORT CALL LTD.
Adult and Health Services,Head of Adults,Third Party Payments,472101,Purchase of Care,03-Oct-2017,3342257-1744999H,"1,520.86",COMFORT CALL LTD.
Adult and Health Services,Head of Adults,Third Party Payments,472101,Purchase of Care,03-Oct-2017,3342257-1745018H,702.46,COMFORT CALL LTD.
Adult and Health Services,Head of Adults,Third Party Payments,472101,Purchase of Care,03-Oct-2017,3342257-1745065H,"1,514.04",COMFORT CALL LTD.
Adult and Health Services,Head of Adults,Third Party Payments,472101,Purchase of Care,03-Oct-2017,3342257-1745100H,872.96,COMFORT CALL LTD.
Adult and Health Services,Head of Adults,Third Party Payments,472101,Purchase of Care,03-Oct-2017,3342257-1745221H,814.99,COMFORT CALL LTD.
Adult and Health Services,Head of Adults,Third Party Payments,472101,Purchase of Care,03-Oct-2017,3342257-1745339H,527.42,COMFORT CALL LTD.
Adult and Health Services,Head of Adults,Third Party Payments,472101,Purchase of Care,03-Oct-2017,3342257-1745505H,763.84,COMFORT CALL LTD.
Adult and Health Services,Head of Adults,Third Party Payments,440062,Other Third Party Payments,03-Oct-2017,3342257-1745549H,"1,432.20",COMFORT CALL LTD.
Adult and Health Services,Head of Adults,Third Party Payments,472101,Purchase of Care,03-Oct-2017,3342257-1745684H,"1,173.04",COMFORT CALL LTD.
Adult and Health Services,Head of Adults,Third Party Payments,472101,Purchase of Care,03-Oct-2017,3342257-1745771H,785.45,COMFORT CALL LTD.
Adult and Health Services,Head of Adults,Third Party Payments,472101,Purchase of Care,03-Oct-2017,3342257-1745811H,944.57,COMFORT CALL LTD.
Adult and Health Services,Head of Adults,Third Party Payments,472101,Purchase of Care,03-Oct-2017,3342257-1745897H,"1,295.80",COMFORT CALL LTD.
Adult and Health Services,Head of Adults,Third Party Payments,472101,Purchase of Care,03-Oct-2017,3342257-1745945H,572.88,COMFORT CALL LTD.
Adult and Health Services,Head of Adults,Third Party Payments,472101,Purchase of Care,03-Oct-2017,3342257-1745954H,627.44,COMFORT CALL LTD.
Adult and Health Services,Head of Adults,Third Party Payments,472101,Purchase of Care,03-Oct-2017,3342257-1745968H,784.30,COMFORT CALL LTD.
Adult and Health Services,Head of Adults,Third Party Payments,472101,Purchase of Care,03-Oct-2017,3342257-1746345H,630.85,COMFORT CALL LTD.
Adult and Health Services,Head of Adults,Third Party Payments,472101,Purchase of Care,03-Oct-2017,3342257-1746421H,528.55,COMFORT CALL LTD.
Adult and Health Services,Head of Adults,Third Party Payments,472101,Purchase of Care,03-Oct-2017,3342257-1746434H,668.36,COMFORT CALL LTD.
Adult and Health Services,Head of Adults,Third Party Payments,472101,Purchase of Care,03-Oct-2017,3342257-1746439H,538.78,COMFORT CALL LTD.
Adult and Health Services,Head of Adults,Third Party Payments,472101,Purchase of Care,03-Oct-2017,3342257-1746464H,"1,645.88",COMFORT CALL LTD.
Adult and Health Services,Head of Adults,Third Party Payments,472101,Purchase of Care,03-Oct-2017,3342257-1746498H,645.64,COMFORT CALL LTD.
Adult and Health Services,Head of Adults,Third Party Payments,472101,Purchase of Care,03-Oct-2017,3342257-1746518H,603.57,COMFORT CALL LTD.
Adult and Health Services,Head of Adults,Third Party Payments,472101,Purchase of Care,03-Oct-2017,3342257-1746645H,668.36,COMFORT CALL LTD.
Adult and Health Services,Head of Adults,Third Party Payments,472101,Purchase of Care,03-Oct-2017,3342257-1746706H,619.49,COMFORT CALL LTD.
Adult and Health Services,Head of Adults,Third Party Payments,472101,Purchase of Care,03-Oct-2017,3342257-1746715H,566.06,COMFORT CALL LTD.
Adult and Health Services,Head of Adults,Third Party Payments,472101,Purchase of Care,03-Oct-2017,3342257-1746753H,682.00,COMFORT CALL LTD.
Adult and Health Services,Head of Adults,Third Party Payments,472101,Purchase of Care,03-Oct-2017,3342257-1746790H,668.36,COMFORT CALL LTD.
Adult and Health Services,Head of Adults,Third Party Payments,472101,Purchase of Care,03-Oct-2017,3342257-1746798H,618.36,COMFORT CALL LTD.
Adult and Health Services,Head of Adults,Third Party Payments,472101,Purchase of Care,03-Oct-2017,3342257-1746803H,791.12,COMFORT CALL LTD.
Adult and Health Services,Head of Adults,Third Party Payments,472101,Purchase of Care,03-Oct-2017,3342257-1746866H,508.10,COMFORT CALL LTD.
Adult and Health Services,Head of Adults,Third Party Payments,472101,Purchase of Care,03-Oct-2017,3342257-1746903H,"1,273.08",COMFORT CALL LTD.
Adult and Health Services,Head of Adults,Third Party Payments,472101,Purchase of Care,03-Oct-2017,3342257-1746904H,641.08,COMFORT CALL LTD.
Adult and Health Services,Head of Adults,Third Party Payments,472101,Purchase of Care,03-Oct-2017,3342257-1747173H,554.70,COMFORT CALL LTD.
Adult and Health Services,Head of Adults,Third Party Payments,472101,Purchase of Care,03-Oct-2017,3342257-1747186H,531.97,COMFORT CALL LTD.
Adult and Health Services,Head of Adults,Third Party Payments,472101,Purchase of Care,03-Oct-2017,3342257-1747208H,"1,459.49",COMFORT CALL LTD.
Adult and Health Services,Head of Adults,Third Party Payments,472101,Purchase of Care,03-Oct-2017,3342257-1747222H,"1,531.09",COMFORT CALL LTD.
Adult and Health Services,Head of Adults,Third Party Payments,472101,Purchase of Care,03-Oct-2017,3342257-1747356H,"1,339.00",COMFORT CALL LTD.
Adult and Health Services,Head of Adults,Third Party Payments,472101,Purchase of Care,03-Oct-2017,3342257-1747405H,700.20,COMFORT CALL LTD.
Adult and Health Services,Head of Adults,Third Party Payments,472101,Purchase of Care,03-Oct-2017,3342257-1747409H,638.80,COMFORT CALL LTD.
Adult and Health Services,Head of Adults,Third Party Payments,472101,Purchase of Care,03-Oct-2017,3342257-1747444H,678.59,COMFORT CALL LTD.
Adult and Health Services,Head of Adults,Third Party Payments,472101,Purchase of Care,03-Oct-2017,3342257-1747527H,695.64,COMFORT CALL LTD.
Adult and Health Services,Head of Adults,Third Party Payments,472101,Purchase of Care,03-Oct-2017,3342257-1747528H,531.96,COMFORT CALL LTD.
Adult and Health Services,Head of Adults,Third Party Payments,472101,Purchase of Care,03-Oct-2017,3342257-1747689H,859.32,COMFORT CALL LTD.
Adult and Health Services,Head of Adults,Third Party Payments,472101,Purchase of Care,03-Oct-2017,3342257-1747752H,"1,428.79",COMFORT CALL LTD.
Adult and Health Services,Head of Adults,Third Party Payments,472101,Purchase of Care,03-Oct-2017,3342257-1747757H,518.32,COMFORT CALL LTD.
Adult and Health Services,Head of Adults,Third Party Payments,472101,Purchase of Care,03-Oct-2017,3342257-1748061H,791.12,COMFORT CALL LTD.
Adult and Health Services,Head of Adults,Third Party Payments,472101,Purchase of Care,03-Oct-2017,3342257-1748072H,560.38,COMFORT CALL LTD.
Adult and Health Services,Head of Adults,Third Party Payments,472101,Purchase of Care,03-Oct-2017,3342257-1748185H,750.20,COMFORT CALL LTD.
Adult and Health Services,Head of Adults,Third Party Payments,472101,Purchase of Care,03-Oct-2017,3342257-1748192H,663.80,COMFORT CALL LTD.
Adult and Health Services,Head of Adults,Third Party Payments,472101,Purchase of Care,03-Oct-2017,3342257-1748393H,627.44,COMFORT CALL LTD.
Adult and Health Services,Head of Adults,Third Party Payments,472101,Purchase of Care,03-Oct-2017,3342257-1748523H,859.32,COMFORT CALL LTD.
Adult and Health Services,Head of Adults,Third Party Payments,472101,Purchase of Care,03-Oct-2017,3342257-1748542H,709.28,COMFORT CALL LTD.
Adult and Health Services,Head of Adults,Third Party Payments,472101,Purchase of Care,03-Oct-2017,3342257-1748620H,572.88,COMFORT CALL LTD.
Adult and Health Services,Head of Adults,Third Party Payments,472101,Purchase of Care,03-Oct-2017,3342257-1748627H,572.88,COMFORT CALL LTD.
Adult and Health Services,Head of Adults,Third Party Payments,472101,Purchase of Care,03-Oct-2017,3342257-1748693H,763.84,COMFORT CALL LTD.
Adult and Health Services,Head of Adults,Third Party Payments,472101,Purchase of Care,03-Oct-2017,3342257-1748777H,709.28,COMFORT CALL LTD.
Adult and Health Services,Head of Adults,Third Party Payments,472101,Purchase of Care,03-Oct-2017,3342257-1748790H,813.84,COMFORT CALL LTD.
Adult and Health Services,Head of Adults,Third Party Payments,472101,Purchase of Care,03-Oct-2017,3342257-1748864H,636.52,COMFORT CALL LTD.
Adult and Health Services,Head of Adults,Third Party Payments,472101,Purchase of Care,03-Oct-2017,3342257-1748931H,828.63,COMFORT CALL LTD.
Adult and Health Services,Head of Adults,Third Party Payments,472101,Purchase of Care,03-Oct-2017,3342257-1748934H,"1,203.73",COMFORT CALL LTD.
Adult and Health Services,Head of Adults,Third Party Payments,472101,Purchase of Care,03-Oct-2017,3342257-1749238H,641.08,COMFORT CALL LTD.
Adult and Health Services,Head of Adults,Third Party Payments,472101,Purchase of Care,03-Oct-2017,3342258-1745943H,"1,295.80",COMMUNITY CARE NORTH EAST.
Adult and Health Services,Head of Adults,Third Party Payments,472101,Purchase of Care,03-Oct-2017,3342258-1746374H,"1,414.00",COMMUNITY CARE NORTH EAST.
Adult and Health Services,Head of Adults,Third Party Payments,472101,Purchase of Care,03-Oct-2017,3342258-1747373H,954.80,COMMUNITY CARE NORTH EAST.
Adult and Health Services,Head of Adults,Third Party Payments,472101,Purchase of Care,03-Oct-2017,3342258-1747738H,636.52,COMMUNITY CARE NORTH EAST.
Adult and Health Services,Head of Adults,Third Party Payments,478101,Purchase of Care,03-Oct-2017,3342259-1742988H,"5,812.36",COMMUNITY INTEGRATED CARE LTD.
Adult and Health Services,Head of Adults,Third Party Payments,478101,Purchase of Care,03-Oct-2017,3342259-1743022H,"4,444.72",COMMUNITY INTEGRATED CARE LTD.
Adult and Health Services,Head of Adults,Third Party Payments,478101,Purchase of Care,03-Oct-2017,3342259-1743071H,"4,377.76",COMMUNITY INTEGRATED CARE LTD.
Adult and Health Services,Head of Adults,Third Party Payments,478101,Purchase of Care,03-Oct-2017,3342259-1743107H,"1,078.36",COMMUNITY INTEGRATED CARE LTD.
Adult and Health Services,Head of Adults,Third Party Payments,478101,Purchase of Care,03-Oct-2017,3342259-1743221H,"4,734.00",COMMUNITY INTEGRATED CARE LTD.
Adult and Health Services,Head of Adults,Third Party Payments,478101,Purchase of Care,03-Oct-2017,3342259-1743224H,"5,207.44",COMMUNITY INTEGRATED CARE LTD.
Adult and Health Services,Head of Adults,Third Party Payments,478101,Purchase of Care,03-Oct-2017,3342259-1743225H,"5,812.36",COMMUNITY INTEGRATED CARE LTD.
Adult and Health Services,Head of Adults,Third Party Payments,478101,Purchase of Care,03-Oct-2017,3342259-1743226H,"3,419.00",COMMUNITY INTEGRATED CARE LTD.
Adult and Health Services,Head of Adults,Third Party Payments,478101,Purchase of Care,03-Oct-2017,3342259-1743228H,"3,419.00",COMMUNITY INTEGRATED CARE LTD.
Adult and Health Services,Head of Adults,Third Party Payments,478101,Purchase of Care,03-Oct-2017,3342259-1743286H,"6,109.44",COMMUNITY INTEGRATED CARE LTD.
Adult and Health Services,Head of Adults,Third Party Payments,478101,Purchase of Care,03-Oct-2017,3342259-1743293H,"4,418.44",COMMUNITY INTEGRATED CARE LTD.
Adult and Health Services,Head of Adults,Third Party Payments,478101,Purchase of Care,03-Oct-2017,3342259-1743307H,"4,377.76",COMMUNITY INTEGRATED CARE LTD.
Adult and Health Services,Head of Adults,Third Party Payments,478101,Purchase of Care,03-Oct-2017,3342259-1743310H,"4,734.00",COMMUNITY INTEGRATED CARE LTD.
Adult and Health Services,Head of Adults,Third Party Payments,478101,Purchase of Care,03-Oct-2017,3342259-1743311H,"4,734.00",COMMUNITY INTEGRATED CARE LTD.
Adult and Health Services,Head of Adults,Third Party Payments,478101,Purchase of Care,03-Oct-2017,3342259-1743342H,"7,127.32",COMMUNITY INTEGRATED CARE LTD.
Adult and Health Services,Head of Adults,Third Party Payments,478101,Purchase of Care,03-Oct-2017,3342259-1743352H,930.16,COMMUNITY INTEGRATED CARE LTD.
Adult and Health Services,Head of Adults,Third Party Payments,478101,Purchase of Care,03-Oct-2017,3342259-1743389H,"1,140.56",COMMUNITY INTEGRATED CARE LTD.
Adult and Health Services,Head of Adults,Third Party Payments,478101,Purchase of Care,03-Oct-2017,3342259-1743405H,"7,600.72",COMMUNITY INTEGRATED CARE LTD.
Adult and Health Services,Head of Adults,Third Party Payments,478101,Purchase of Care,03-Oct-2017,3342259-1743418H,"4,734.00",COMMUNITY INTEGRATED CARE LTD.
Adult and Health Services,Head of Adults,Third Party Payments,478101,Purchase of Care,03-Oct-2017,3342259-1743462H,544.40,COMMUNITY INTEGRATED CARE LTD.
Adult and Health Services,Head of Adults,Third Party Payments,478101,Purchase of Care,03-Oct-2017,3342259-1743497H,"3,419.00",COMMUNITY INTEGRATED CARE LTD.
Adult and Health Services,Head of Adults,Third Party Payments,478101,Purchase of Care,03-Oct-2017,3342259-1743510H,"4,377.76",COMMUNITY INTEGRATED CARE LTD.
Adult and Health Services,Head of Adults,Third Party Payments,478101,Purchase of Care,03-Oct-2017,3342259-1743618H,"1,140.56",COMMUNITY INTEGRATED CARE LTD.
Adult and Health Services,Head of Adults,Third Party Payments,478101,Purchase of Care,03-Oct-2017,3342259-1743636H,785.52,COMMUNITY INTEGRATED CARE LTD.
Adult and Health Services,Head of Adults,Third Party Payments,478101,Purchase of Care,03-Oct-2017,3342259-1743668H,798.68,COMMUNITY INTEGRATED CARE LTD.
Adult and Health Services,Head of Adults,Third Party Payments,478101,Purchase of Care,03-Oct-2017,3342259-1743851H,"4,377.76",COMMUNITY INTEGRATED CARE LTD.
Adult and Health Services,Head of Adults,Third Party Payments,478101,Purchase of Care,03-Oct-2017,3342259-1743855H,"4,444.72",COMMUNITY INTEGRATED CARE LTD.
Adult and Health Services,Head of Adults,Third Party Payments,478101,Purchase of Care,03-Oct-2017,3342259-1744025H,"1,087.96",COMMUNITY INTEGRATED CARE LTD.
Adult and Health Services,Head of Adults,Third Party Payments,478101,Purchase of Care,03-Oct-2017,3342259-1744323H,"3,315.60",COMMUNITY INTEGRATED CARE LTD.
Adult and Health Services,Head of Adults,Third Party Payments,478101,Purchase of Care,03-Oct-2017,3342259-1744525H,"7,790.52",COMMUNITY INTEGRATED CARE LTD.
Adult and Health Services,Head of Adults,Third Party Payments,478101,Purchase of Care,03-Oct-2017,3342259-1744756H,667.16,COMMUNITY INTEGRATED CARE LTD.
Adult and Health Services,Head of Adults,Third Party Payments,478101,Purchase of Care,03-Oct-2017,3342259-1745115H,"6,915.16",COMMUNITY INTEGRATED CARE LTD.
Adult and Health Services,Head of Adults,Third Party Payments,478101,Purchase of Care,03-Oct-2017,3342259-1745133H,544.40,COMMUNITY INTEGRATED CARE LTD.
Adult and Health Services,Head of Adults,Third Party Payments,478101,Purchase of Care,03-Oct-2017,3342259-1745508H,588.28,COMMUNITY INTEGRATED CARE LTD.
Adult and Health Services,Head of Adults,Third Party Payments,478101,Purchase of Care,03-Oct-2017,3342259-1745689H,"8,129.08",COMMUNITY INTEGRATED CARE LTD.
Adult and Health Services,Head of Adults,Third Party Payments,478101,Purchase of Care,03-Oct-2017,3342259-1745913H,667.16,COMMUNITY INTEGRATED CARE LTD.
Adult and Health Services,Head of Adults,Third Party Payments,478101,Purchase of Care,03-Oct-2017,3342259-1745938H,"4,734.04",COMMUNITY INTEGRATED CARE LTD.
Adult and Health Services,Head of Adults,Third Party Payments,478101,Purchase of Care,03-Oct-2017,3342259-1746114H,"4,628.80",COMMUNITY INTEGRATED CARE LTD.
Adult and Health Services,Head of Adults,Third Party Payments,478101,Purchase of Care,03-Oct-2017,3342259-1746378H,575.12,COMMUNITY INTEGRATED CARE LTD.
Adult and Health Services,Head of Adults,Third Party Payments,478101,Purchase of Care,03-Oct-2017,3342259-1746972H,667.16,COMMUNITY INTEGRATED CARE LTD.
Adult and Health Services,Head of Adults,Third Party Payments,478101,Purchase of Care,03-Oct-2017,3342259-1747253H,824.96,COMMUNITY INTEGRATED CARE LTD.
Adult and Health Services,Head of Adults,Third Party Payments,478101,Purchase of Care,03-Oct-2017,3342259-1747628H,667.16,COMMUNITY INTEGRATED CARE LTD.
Adult and Health Services,Head of Adults,Third Party Payments,478101,Purchase of Care,03-Oct-2017,3342259-1748050H,824.96,COMMUNITY INTEGRATED CARE LTD.
Adult and Health Services,Head of Adults,Third Party Payments,478101,Purchase of Care,03-Oct-2017,3342259-1748287H,667.16,COMMUNITY INTEGRATED CARE LTD.
Adult and Health Services,Head of Adults,Third Party Payments,478101,Purchase of Care,03-Oct-2017,3342259-1748478H,877.56,COMMUNITY INTEGRATED CARE LTD.
Children and Young Peoples Services,Head of Looked After Provision Permanence and Care Leavers,Third Party Payments,425040,Rendered by Voluntary Organisations,03-Oct-2017,3342260-1748656H,"3,920.00",COMPASS FOSTERING NORTH LTD.
Adult and Health Services,Head of Adults,Third Party Payments,478101,Purchase of Care,03-Oct-2017,3342263-1742325H,"3,372.80",CREATIVE SUPPORT LTD.
Adult and Health Services,Head of Adults,Third Party Payments,478101,Purchase of Care,03-Oct-2017,3342263-1742347H,"7,311.36",CREATIVE SUPPORT LTD.
Adult and Health Services,Head of Adults,Third Party Payments,478101,Purchase of Care,03-Oct-2017,3342263-1742521H,"12,185.60",CREATIVE SUPPORT LTD.
Adult and Health Services,Head of Adults,Third Party Payments,478101,Purchase of Care,03-Oct-2017,3342263-1742552H,"3,693.76",CREATIVE SUPPORT LTD.
Adult and Health Services,Head of Adults,Third Party Payments,478101,Purchase of Care,03-Oct-2017,3342263-1742605H,876.68,CREATIVE SUPPORT LTD.
Adult and Health Services,Head of Adults,Third Party Payments,478101,Purchase of Care,03-Oct-2017,3342263-1742697H,876.68,CREATIVE SUPPORT LTD.
Adult and Health Services,Head of Adults,Third Party Payments,478101,Purchase of Care,03-Oct-2017,3342263-1743100H,"7,235.20",CREATIVE SUPPORT LTD.
Adult and Health Services,Head of Adults,Third Party Payments,472101,Purchase of Care,03-Oct-2017,3342263-1743673H,720.00,CREATIVE SUPPORT LTD.
Adult and Health Services,Head of Adults,Third Party Payments,478101,Purchase of Care,03-Oct-2017,3342263-1743900H,"4,358.00",CREATIVE SUPPORT LTD.
Adult and Health Services,Head of Adults,Third Party Payments,478101,Purchase of Care,03-Oct-2017,3342263-1744214H,"2,075.24",CREATIVE SUPPORT LTD.
Adult and Health Services,Head of Adults,Third Party Payments,478101,Purchase of Care,03-Oct-2017,3342263-1744464H,"3,332.00",CREATIVE SUPPORT LTD.
Adult and Health Services,Head of Adults,Third Party Payments,478101,Purchase of Care,03-Oct-2017,3342263-1744499H,"4,721.92",CREATIVE SUPPORT LTD.
Adult and Health Services,Head of Adults,Third Party Payments,478101,Purchase of Care,03-Oct-2017,3342263-1744678H,"2,393.60",CREATIVE SUPPORT LTD.
Adult and Health Services,Head of Adults,Third Party Payments,478101,Purchase of Care,03-Oct-2017,3342263-1744799H,"10,053.12",CREATIVE SUPPORT LTD.
Adult and Health Services,Head of Adults,Third Party Payments,478101,Purchase of Care,03-Oct-2017,3342263-1744864H,"3,726.80",CREATIVE SUPPORT LTD.
Adult and Health Services,Head of Adults,Third Party Payments,478101,Purchase of Care,03-Oct-2017,3342263-1745042H,"4,680.60",CREATIVE SUPPORT LTD.
Adult and Health Services,Head of Adults,Third Party Payments,478101,Purchase of Care,03-Oct-2017,3342263-1745292H,"3,050.32",CREATIVE SUPPORT LTD.
Adult and Health Services,Head of Adults,Third Party Payments,478101,Purchase of Care,03-Oct-2017,3342263-1745466H,"5,140.80",CREATIVE SUPPORT LTD.
Adult and Health Services,Head of Adults,Third Party Payments,478101,Purchase of Care,03-Oct-2017,3342263-1746058H,876.68,CREATIVE SUPPORT LTD.
Adult and Health Services,Head of Adults,Third Party Payments,472101,Purchase of Care,03-Oct-2017,3342264-1743155H,572.88,CRESCENT HOMECARE LTD.
Adult and Health Services,Head of Adults,Third Party Payments,472101,Purchase of Care,03-Oct-2017,3342264-1743216H,"1,016.18",CRESCENT HOMECARE LTD.
Adult and Health Services,Head of Adults,Third Party Payments,472101,Purchase of Care,03-Oct-2017,3342264-1743261H,595.61,CRESCENT HOMECARE LTD.
Adult and Health Services,Head of Adults,Third Party Payments,472101,Purchase of Care,03-Oct-2017,3342264-1743543H,641.08,CRESCENT HOMECARE LTD.
Adult and Health Services,Head of Adults,Third Party Payments,472101,Purchase of Care,03-Oct-2017,3342264-1743589H,600.16,CRESCENT HOMECARE LTD.
Adult and Health Services,Head of Adults,Third Party Payments,472101,Purchase of Care,03-Oct-2017,3342264-1743640H,845.68,CRESCENT HOMECARE LTD.
Adult and Health Services,Head of Adults,Third Party Payments,472101,Purchase of Care,03-Oct-2017,3342264-1743963H,572.88,CRESCENT HOMECARE LTD.
Adult and Health Services,Head of Adults,Third Party Payments,472101,Purchase of Care,03-Oct-2017,3342264-1744041H,658.32,CRESCENT HOMECARE LTD.
Adult and Health Services,Head of Adults,Third Party Payments,472101,Purchase of Care,03-Oct-2017,3342264-1744122H,770.66,CRESCENT HOMECARE LTD.
Adult and Health Services,Head of Adults,Third Party Payments,472101,Purchase of Care,03-Oct-2017,3342264-1744158H,"1,227.60",CRESCENT HOMECARE LTD.
Adult and Health Services,Head of Adults,Third Party Payments,472101,Purchase of Care,03-Oct-2017,3342264-1744620H,863.88,CRESCENT HOMECARE LTD.
Adult and Health Services,Head of Adults,Third Party Payments,472101,Purchase of Care,03-Oct-2017,3342264-1744872H,727.48,CRESCENT HOMECARE LTD.
Adult and Health Services,Head of Adults,Third Party Payments,472101,Purchase of Care,03-Oct-2017,3342264-1745024H,551.28,CRESCENT HOMECARE LTD.
Adult and Health Services,Head of Adults,Third Party Payments,472101,Purchase of Care,03-Oct-2017,3342264-1745041H,791.12,CRESCENT HOMECARE LTD.
Adult and Health Services,Head of Adults,Third Party Payments,472101,Purchase of Care,03-Oct-2017,3342264-1745078H,627.44,CRESCENT HOMECARE LTD.
Adult and Health Services,Head of Adults,Third Party Payments,472101,Purchase of Care,03-Oct-2017,3342264-1745403H,750.20,CRESCENT HOMECARE LTD.
Adult and Health Services,Head of Adults,Third Party Payments,472101,Purchase of Care,03-Oct-2017,3342264-1745447H,968.44,CRESCENT HOMECARE LTD.
Adult and Health Services,Head of Adults,Third Party Payments,472101,Purchase of Care,03-Oct-2017,3342264-1745537H,"1,964.16",CRESCENT HOMECARE LTD.
Adult and Health Services,Head of Adults,Third Party Payments,472101,Purchase of Care,03-Oct-2017,3342264-1745668H,536.52,CRESCENT HOMECARE LTD.
Adult and Health Services,Head of Adults,Third Party Payments,472101,Purchase of Care,03-Oct-2017,3342264-1745707H,800.20,CRESCENT HOMECARE LTD.
Adult and Health Services,Head of Adults,Third Party Payments,472101,Purchase of Care,03-Oct-2017,3342264-1745884H,763.84,CRESCENT HOMECARE LTD.
Adult and Health Services,Head of Adults,Third Party Payments,472101,Purchase of Care,03-Oct-2017,3342264-1746287H,536.52,CRESCENT HOMECARE LTD.
Adult and Health Services,Head of Adults,Third Party Payments,472101,Purchase of Care,03-Oct-2017,3342264-1746358H,862.73,CRESCENT HOMECARE LTD.
Adult and Health Services,Head of Adults,Third Party Payments,472101,Purchase of Care,03-Oct-2017,3342264-1746531H,"1,043.46",CRESCENT HOMECARE LTD.
Adult and Health Services,Head of Adults,Third Party Payments,472101,Purchase of Care,03-Oct-2017,3342264-1746601H,538.78,CRESCENT HOMECARE LTD.
Adult and Health Services,Head of Adults,Third Party Payments,472101,Purchase of Care,03-Oct-2017,3342264-1746736H,763.84,CRESCENT HOMECARE LTD.
Adult and Health Services,Head of Adults,Third Party Payments,472101,Purchase of Care,03-Oct-2017,3342264-1746771H,709.28,CRESCENT HOMECARE LTD.
Adult and Health Services,Head of Adults,Third Party Payments,472101,Purchase of Care,03-Oct-2017,3342264-1746840H,"1,300.36",CRESCENT HOMECARE LTD.
Adult and Health Services,Head of Adults,Third Party Payments,472101,Purchase of Care,03-Oct-2017,3342264-1747031H,527.40,CRESCENT HOMECARE LTD.
Adult and Health Services,Head of Adults,Third Party Payments,472101,Purchase of Care,03-Oct-2017,3342264-1747046H,"1,145.76",CRESCENT HOMECARE LTD.
Adult and Health Services,Head of Adults,Third Party Payments,472101,Purchase of Care,03-Oct-2017,3342264-1747349H,566.06,CRESCENT HOMECARE LTD.
Adult and Health Services,Head of Adults,Third Party Payments,472101,Purchase of Care,03-Oct-2017,3342264-1747526H,586.52,CRESCENT HOMECARE LTD.
Adult and Health Services,Head of Adults,Third Party Payments,472101,Purchase of Care,03-Oct-2017,3342264-1747927H,636.52,CRESCENT HOMECARE LTD.
Adult and Health Services,Head of Adults,Third Party Payments,472101,Purchase of Care,03-Oct-2017,3342264-1748013H,536.52,CRESCENT HOMECARE LTD.
Adult and Health Services,Head of Adults,Third Party Payments,472101,Purchase of Care,03-Oct-2017,3342264-1748166H,"1,609.52",CRESCENT HOMECARE LTD.
Adult and Health Services,Head of Adults,Third Party Payments,472101,Purchase of Care,03-Oct-2017,3342264-1748190H,763.84,CRESCENT HOMECARE LTD.
Adult and Health Services,Head of Adults,Third Party Payments,472101,Purchase of Care,03-Oct-2017,3342264-1748193H,509.24,CRESCENT HOMECARE LTD.
Adult and Health Services,Head of Adults,Third Party Payments,472101,Purchase of Care,03-Oct-2017,3342264-1748522H,566.06,CRESCENT HOMECARE LTD.
Adult and Health Services,Head of Adults,Third Party Payments,472101,Purchase of Care,03-Oct-2017,3342264-1748530H,750.20,CRESCENT HOMECARE LTD.
Adult and Health Services,Head of Adults,Third Party Payments,472101,Purchase of Care,03-Oct-2017,3342264-1748642H,845.68,CRESCENT HOMECARE LTD.
Adult and Health Services,Head of Adults,Third Party Payments,472101,Purchase of Care,03-Oct-2017,3342264-1748718H,754.74,CRESCENT HOMECARE LTD.
Adult and Health Services,Head of Adults,Third Party Payments,472101,Purchase of Care,03-Oct-2017,3342264-1748793H,845.68,CRESCENT HOMECARE LTD.
Adult and Health Services,Head of Adults,Third Party Payments,472101,Purchase of Care,03-Oct-2017,3342264-1748919H,663.80,CRESCENT HOMECARE LTD.
Adult and Health Services,Head of Adults,Third Party Payments,472101,Purchase of Care,03-Oct-2017,3342264-1748950H,534.24,CRESCENT HOMECARE LTD.
Adult and Health Services,Head of Adults,Third Party Payments,472101,Purchase of Care,03-Oct-2017,3342266-1742311H,"1,282.16",DALE CARE LTD.
Adult and Health Services,Head of Adults,Third Party Payments,472101,Purchase of Care,03-Oct-2017,3342266-1742323H,"1,277.60",DALE CARE LTD.
Adult and Health Services,Head of Adults,Third Party Payments,472101,Purchase of Care,03-Oct-2017,3342266-1742331H,566.06,DALE CARE LTD.
Adult and Health Services,Head of Adults,Third Party Payments,472101,Purchase of Care,03-Oct-2017,3342266-1742367H,"1,902.78",DALE CARE LTD.
Adult and Health Services,Head of Adults,Third Party Payments,472101,Purchase of Care,03-Oct-2017,3342266-1742377H,527.40,DALE CARE LTD.
Adult and Health Services,Head of Adults,Third Party Payments,472101,Purchase of Care,03-Oct-2017,3342266-1742395H,"1,582.24",DALE CARE LTD.
Adult and Health Services,Head of Adults,Third Party Payments,472101,Purchase of Care,03-Oct-2017,3342266-1742403H,572.88,DALE CARE LTD.
Adult and Health Services,Head of Adults,Third Party Payments,472101,Purchase of Care,03-Oct-2017,3342266-1742416H,"1,231.01",DALE CARE LTD.
Adult and Health Services,Head of Adults,Third Party Payments,472101,Purchase of Care,03-Oct-2017,3342266-1742417H,"1,134.38",DALE CARE LTD.
Adult and Health Services,Head of Adults,Third Party Payments,472101,Purchase of Care,03-Oct-2017,3342266-1742420H,504.68,DALE CARE LTD.
Adult and Health Services,Head of Adults,Third Party Payments,472101,Purchase of Care,03-Oct-2017,3342266-1742435H,536.52,DALE CARE LTD.
Adult and Health Services,Head of Adults,Third Party Payments,472101,Purchase of Care,03-Oct-2017,3342266-1742468H,967.30,DALE CARE LTD.
Adult and Health Services,Head of Adults,Third Party Payments,472101,Purchase of Care,03-Oct-2017,3342266-1742476H,869.55,DALE CARE LTD.
Adult and Health Services,Head of Adults,Third Party Payments,472101,Purchase of Care,03-Oct-2017,3342266-1742482H,"1,118.48",DALE CARE LTD.
Adult and Health Services,Head of Adults,Third Party Payments,472101,Purchase of Care,03-Oct-2017,3342266-1742493H,828.63,DALE CARE LTD.
Adult and Health Services,Head of Adults,Third Party Payments,472101,Purchase of Care,03-Oct-2017,3342266-1742498H,641.08,DALE CARE LTD.
Adult and Health Services,Head of Adults,Third Party Payments,472101,Purchase of Care,03-Oct-2017,3342266-1742520H,636.52,DALE CARE LTD.
Adult and Health Services,Head of Adults,Third Party Payments,472101,Purchase of Care,03-Oct-2017,3342266-1742566H,572.88,DALE CARE LTD.
Adult and Health Services,Head of Adults,Third Party Payments,472101,Purchase of Care,03-Oct-2017,3342266-1742626H,613.80,DALE CARE LTD.
Adult and Health Services,Head of Adults,Third Party Payments,472101,Purchase of Care,03-Oct-2017,3342266-1742643H,631.98,DALE CARE LTD.
Adult and Health Services,Head of Adults,Third Party Payments,472101,Purchase of Care,03-Oct-2017,3342266-1742722H,668.36,DALE CARE LTD.
Adult and Health Services,Head of Adults,Third Party Payments,472101,Purchase of Care,03-Oct-2017,3342266-1742770H,"1,527.68",DALE CARE LTD.
Adult and Health Services,Head of Adults,Third Party Payments,472101,Purchase of Care,03-Oct-2017,3342266-1742778H,518.32,DALE CARE LTD.
Adult and Health Services,Head of Adults,Third Party Payments,472101,Purchase of Care,03-Oct-2017,3342266-1742779H,518.32,DALE CARE LTD.
Adult and Health Services,Head of Adults,Third Party Payments,472101,Purchase of Care,03-Oct-2017,3342266-1742785H,632.00,DALE CARE LTD.
Adult and Health Services,Head of Adults,Third Party Payments,472101,Purchase of Care,03-Oct-2017,3342266-1742791H,763.84,DALE CARE LTD.
Adult and Health Services,Head of Adults,Third Party Payments,472101,Purchase of Care,03-Oct-2017,3342266-1742810H,591.08,DALE CARE LTD.
Adult and Health Services,Head of Adults,Third Party Payments,472101,Purchase of Care,03-Oct-2017,3342266-1742815H,636.52,DALE CARE LTD.
Adult and Health Services,Head of Adults,Third Party Payments,472101,Purchase of Care,03-Oct-2017,3342266-1742838H,"1,773.20",DALE CARE LTD.
Adult and Health Services,Head of Adults,Third Party Payments,472101,Purchase of Care,03-Oct-2017,3342266-1742852H,654.72,DALE CARE LTD.
Adult and Health Services,Head of Adults,Third Party Payments,472101,Purchase of Care,03-Oct-2017,3342266-1742857H,847.95,DALE CARE LTD.
Adult and Health Services,Head of Adults,Third Party Payments,472101,Purchase of Care,03-Oct-2017,3342266-1742888H,985.49,DALE CARE LTD.
Adult and Health Services,Head of Adults,Third Party Payments,472101,Purchase of Care,03-Oct-2017,3342266-1742908H,736.56,DALE CARE LTD.
Adult and Health Services,Head of Adults,Third Party Payments,472101,Purchase of Care,03-Oct-2017,3342266-1742911H,745.65,DALE CARE LTD.
Adult and Health Services,Head of Adults,Third Party Payments,472101,Purchase of Care,03-Oct-2017,3342266-1742914H,620.07,DALE CARE LTD.
Adult and Health Services,Head of Adults,Third Party Payments,472101,Purchase of Care,03-Oct-2017,3342266-1742915H,620.07,DALE CARE LTD.
Adult and Health Services,Head of Adults,Third Party Payments,472101,Purchase of Care,03-Oct-2017,3342266-1742917H,591.08,DALE CARE LTD.
Adult and Health Services,Head of Adults,Third Party Payments,472101,Purchase of Care,03-Oct-2017,3342266-1742921H,513.76,DALE CARE LTD.
Adult and Health Services,Head of Adults,Third Party Payments,472101,Purchase of Care,03-Oct-2017,3342266-1742928H,782.04,DALE CARE LTD.
Adult and Health Services,Head of Adults,Third Party Payments,472101,Purchase of Care,03-Oct-2017,3342266-1742934H,509.24,DALE CARE LTD.
Adult and Health Services,Head of Adults,Third Party Payments,472101,Purchase of Care,03-Oct-2017,3342266-1742943H,791.12,DALE CARE LTD.
Adult and Health Services,Head of Adults,Third Party Payments,472101,Purchase of Care,03-Oct-2017,3342266-1742953H,552.42,DALE CARE LTD.
Adult and Health Services,Head of Adults,Third Party Payments,472101,Purchase of Care,03-Oct-2017,3342266-1742972H,713.83,DALE CARE LTD.
Adult and Health Services,Head of Adults,Third Party Payments,472101,Purchase of Care,03-Oct-2017,3342266-1742975H,904.79,DALE CARE LTD.
Adult and Health Services,Head of Adults,Third Party Payments,472101,Purchase of Care,03-Oct-2017,3342266-1742981H,"1,520.86",DALE CARE LTD.
Adult and Health Services,Head of Adults,Third Party Payments,472101,Purchase of Care,03-Oct-2017,3342266-1743078H,691.08,DALE CARE LTD.
Adult and Health Services,Head of Adults,Third Party Payments,472101,Purchase of Care,03-Oct-2017,3342266-1743147H,552.42,DALE CARE LTD.
Adult and Health Services,Head of Adults,Third Party Payments,472101,Purchase of Care,03-Oct-2017,3342266-1743157H,572.88,DALE CARE LTD.
Adult and Health Services,Head of Adults,Third Party Payments,472101,Purchase of Care,03-Oct-2017,3342266-1743211H,"1,636.80",DALE CARE LTD.
Adult and Health Services,Head of Adults,Third Party Payments,472101,Purchase of Care,03-Oct-2017,3342266-1743264H,641.08,DALE CARE LTD.
Adult and Health Services,Head of Adults,Third Party Payments,472101,Purchase of Care,03-Oct-2017,3342266-1743490H,613.80,DALE CARE LTD.
Adult and Health Services,Head of Adults,Third Party Payments,472101,Purchase of Care,03-Oct-2017,3342266-1743537H,600.16,DALE CARE LTD.
Adult and Health Services,Head of Adults,Third Party Payments,472101,Purchase of Care,03-Oct-2017,3342266-1743594H,650.16,DALE CARE LTD.
Adult and Health Services,Head of Adults,Third Party Payments,472101,Purchase of Care,03-Oct-2017,3342266-1743612H,"1,490.18",DALE CARE LTD.
Adult and Health Services,Head of Adults,Third Party Payments,472101,Purchase of Care,03-Oct-2017,3342266-1743652H,954.80,DALE CARE LTD.
Adult and Health Services,Head of Adults,Third Party Payments,472101,Purchase of Care,03-Oct-2017,3342266-1743766H,888.86,DALE CARE LTD.
Adult and Health Services,Head of Adults,Third Party Payments,472101,Purchase of Care,03-Oct-2017,3342266-1743785H,876.68,DALE CARE LTD.
Adult and Health Services,Head of Adults,Third Party Payments,472101,Purchase of Care,03-Oct-2017,3342266-1743791H,572.88,DALE CARE LTD.
Adult and Health Services,Head of Adults,Third Party Payments,472101,Purchase of Care,03-Oct-2017,3342266-1743793H,"1,475.40",DALE CARE LTD.
Adult and Health Services,Head of Adults,Third Party Payments,472101,Purchase of Care,03-Oct-2017,3342266-1743794H,741.12,DALE CARE LTD.
Adult and Health Services,Head of Adults,Third Party Payments,472101,Purchase of Care,03-Oct-2017,3342266-1743812H,"1,582.24",DALE CARE LTD.
Adult and Health Services,Head of Adults,Third Party Payments,472101,Purchase of Care,03-Oct-2017,3342266-1743833H,"1,541.32",DALE CARE LTD.
Adult and Health Services,Head of Adults,Third Party Payments,472101,Purchase of Care,03-Oct-2017,3342266-1743883H,"1,629.98",DALE CARE LTD.
Adult and Health Services,Head of Adults,Third Party Payments,472101,Purchase of Care,03-Oct-2017,3342266-1743889H,"1,732.28",DALE CARE LTD.
Adult and Health Services,Head of Adults,Third Party Payments,472101,Purchase of Care,03-Oct-2017,3342266-1743921H,828.63,DALE CARE LTD.
Adult and Health Services,Head of Adults,Third Party Payments,472101,Purchase of Care,03-Oct-2017,3342266-1743955H,586.52,DALE CARE LTD.
Adult and Health Services,Head of Adults,Third Party Payments,472101,Purchase of Care,03-Oct-2017,3342266-1743990H,829.78,DALE CARE LTD.
Adult and Health Services,Head of Adults,Third Party Payments,472101,Purchase of Care,03-Oct-2017,3342266-1743993H,509.24,DALE CARE LTD.
Adult and Health Services,Head of Adults,Third Party Payments,472101,Purchase of Care,03-Oct-2017,3342266-1744027H,593.34,DALE CARE LTD.
Adult and Health Services,Head of Adults,Third Party Payments,472101,Purchase of Care,03-Oct-2017,3342266-1744031H,"1,527.68",DALE CARE LTD.
Adult and Health Services,Head of Adults,Third Party Payments,472101,Purchase of Care,03-Oct-2017,3342266-1744128H,793.39,DALE CARE LTD.
Adult and Health Services,Head of Adults,Third Party Payments,472101,Purchase of Care,03-Oct-2017,3342266-1744209H,777.48,DALE CARE LTD.
Adult and Health Services,Head of Adults,Third Party Payments,472101,Purchase of Care,03-Oct-2017,3342266-1744238H,743.38,DALE CARE LTD.
Adult and Health Services,Head of Adults,Third Party Payments,472101,Purchase of Care,03-Oct-2017,3342266-1744240H,"1,684.54",DALE CARE LTD.
Adult and Health Services,Head of Adults,Third Party Payments,472101,Purchase of Care,03-Oct-2017,3342266-1744303H,600.16,DALE CARE LTD.
Adult and Health Services,Head of Adults,Third Party Payments,472101,Purchase of Care,03-Oct-2017,3342266-1744321H,800.20,DALE CARE LTD.
Adult and Health Services,Head of Adults,Third Party Payments,472101,Purchase of Care,03-Oct-2017,3342266-1744342H,679.74,DALE CARE LTD.
Adult and Health Services,Head of Adults,Third Party Payments,472101,Purchase of Care,03-Oct-2017,3342266-1744347H,"1,691.36",DALE CARE LTD.
Adult and Health Services,Head of Adults,Third Party Payments,472101,Purchase of Care,03-Oct-2017,3342266-1744369H,"1,168.49",DALE CARE LTD.
Adult and Health Services,Head of Adults,Third Party Payments,472101,Purchase of Care,03-Oct-2017,3342266-1744377H,572.89,DALE CARE LTD.
Adult and Health Services,Head of Adults,Third Party Payments,472101,Purchase of Care,03-Oct-2017,3342266-1744616H,527.40,DALE CARE LTD.
Adult and Health Services,Head of Adults,Third Party Payments,472101,Purchase of Care,03-Oct-2017,3342266-1744626H,779.74,DALE CARE LTD.
Adult and Health Services,Head of Adults,Third Party Payments,472101,Purchase of Care,03-Oct-2017,3342266-1744658H,663.80,DALE CARE LTD.
Adult and Health Services,Head of Adults,Third Party Payments,472101,Purchase of Care,03-Oct-2017,3342266-1744665H,"1,188.96",DALE CARE LTD.
Adult and Health Services,Head of Adults,Third Party Payments,472101,Purchase of Care,03-Oct-2017,3342266-1744667H,859.32,DALE CARE LTD.
Adult and Health Services,Head of Adults,Third Party Payments,472101,Purchase of Care,03-Oct-2017,3342266-1744703H,650.16,DALE CARE LTD.
Adult and Health Services,Head of Adults,Third Party Payments,472101,Purchase of Care,03-Oct-2017,3342266-1744783H,677.44,DALE CARE LTD.
Adult and Health Services,Head of Adults,Third Party Payments,472101,Purchase of Care,03-Oct-2017,3342266-1744888H,793.39,DALE CARE LTD.
Adult and Health Services,Head of Adults,Third Party Payments,472101,Purchase of Care,03-Oct-2017,3342266-1744896H,"1,220.78",DALE CARE LTD.
Adult and Health Services,Head of Adults,Third Party Payments,472101,Purchase of Care,03-Oct-2017,3342266-1744918H,672.92,DALE CARE LTD.
Adult and Health Services,Head of Adults,Third Party Payments,472101,Purchase of Care,03-Oct-2017,3342266-1744962H,636.52,DALE CARE LTD.
Adult and Health Services,Head of Adults,Third Party Payments,472101,Purchase of Care,03-Oct-2017,3342266-1744980H,671.76,DALE CARE LTD.
Adult and Health Services,Head of Adults,Third Party Payments,472101,Purchase of Care,03-Oct-2017,3342266-1744984H,"1,004.80",DALE CARE LTD.
Adult and Health Services,Head of Adults,Third Party Payments,472101,Purchase of Care,03-Oct-2017,3342266-1744987H,755.48,DALE CARE LTD.
Adult and Health Services,Head of Adults,Third Party Payments,472101,Purchase of Care,03-Oct-2017,3342266-1744990H,"1,132.12",DALE CARE LTD.
Adult and Health Services,Head of Adults,Third Party Payments,472101,Purchase of Care,03-Oct-2017,3342266-1744991H,695.65,DALE CARE LTD.
Adult and Health Services,Head of Adults,Third Party Payments,472101,Purchase of Care,03-Oct-2017,3342266-1745030H,"1,009.36",DALE CARE LTD.
Adult and Health Services,Head of Adults,Third Party Payments,472101,Purchase of Care,03-Oct-2017,3342266-1745036H,929.84,DALE CARE LTD.
Adult and Health Services,Head of Adults,Third Party Payments,472101,Purchase of Care,03-Oct-2017,3342266-1745047H,757.02,DALE CARE LTD.
Adult and Health Services,Head of Adults,Third Party Payments,472101,Purchase of Care,03-Oct-2017,3342266-1745050H,618.35,DALE CARE LTD.
Adult and Health Services,Head of Adults,Third Party Payments,472101,Purchase of Care,03-Oct-2017,3342266-1745079H,"1,718.64",DALE CARE LTD.
Adult and Health Services,Head of Adults,Third Party Payments,472101,Purchase of Care,03-Oct-2017,3342266-1745090H,722.93,DALE CARE LTD.
Adult and Health Services,Head of Adults,Third Party Payments,472101,Purchase of Care,03-Oct-2017,3342266-1745108H,886.60,DALE CARE LTD.
Adult and Health Services,Head of Adults,Third Party Payments,472101,Purchase of Care,03-Oct-2017,3342266-1745120H,572.88,DALE CARE LTD.
Adult and Health Services,Head of Adults,Third Party Payments,472101,Purchase of Care,03-Oct-2017,3342266-1745128H,933.24,DALE CARE LTD.
Adult and Health Services,Head of Adults,Third Party Payments,472101,Purchase of Care,03-Oct-2017,3342266-1745165H,504.68,DALE CARE LTD.
Adult and Health Services,Head of Adults,Third Party Payments,472101,Purchase of Care,03-Oct-2017,3342266-1745169H,531.96,DALE CARE LTD.
Adult and Health Services,Head of Adults,Third Party Payments,472101,Purchase of Care,03-Oct-2017,3342266-1745174H,600.16,DALE CARE LTD.
Adult and Health Services,Head of Adults,Third Party Payments,472101,Purchase of Care,03-Oct-2017,3342266-1745203H,904.96,DALE CARE LTD.
Adult and Health Services,Head of Adults,Third Party Payments,472101,Purchase of Care,03-Oct-2017,3342266-1745219H,"3,778.41",DALE CARE LTD.
Adult and Health Services,Head of Adults,Third Party Payments,472101,Purchase of Care,03-Oct-2017,3342266-1745240H,934.34,DALE CARE LTD.
Adult and Health Services,Head of Adults,Third Party Payments,472101,Purchase of Care,03-Oct-2017,3342266-1745247H,536.52,DALE CARE LTD.
Adult and Health Services,Head of Adults,Third Party Payments,472101,Purchase of Care,03-Oct-2017,3342266-1745258H,572.88,DALE CARE LTD.
Adult and Health Services,Head of Adults,Third Party Payments,472101,Purchase of Care,03-Oct-2017,3342266-1745271H,"1,241.24",DALE CARE LTD.
Adult and Health Services,Head of Adults,Third Party Payments,472101,Purchase of Care,03-Oct-2017,3342266-1745276H,722.91,DALE CARE LTD.
Adult and Health Services,Head of Adults,Third Party Payments,472101,Purchase of Care,03-Oct-2017,3342266-1745283H,595.61,DALE CARE LTD.
Adult and Health Services,Head of Adults,Third Party Payments,472101,Purchase of Care,03-Oct-2017,3342266-1745284H,635.41,DALE CARE LTD.
Adult and Health Services,Head of Adults,Third Party Payments,472101,Purchase of Care,03-Oct-2017,3342266-1745323H,663.80,DALE CARE LTD.
Adult and Health Services,Head of Adults,Third Party Payments,472101,Purchase of Care,03-Oct-2017,3342266-1745332H,939.09,DALE CARE LTD.
Adult and Health Services,Head of Adults,Third Party Payments,472101,Purchase of Care,03-Oct-2017,3342266-1745334H,600.16,DALE CARE LTD.
Adult and Health Services,Head of Adults,Third Party Payments,472101,Purchase of Care,03-Oct-2017,3342266-1745344H,709.28,DALE CARE LTD.
Adult and Health Services,Head of Adults,Third Party Payments,440062,Other Third Party Payments,03-Oct-2017,3342266-1745346H,"1,527.68",DALE CARE LTD.
Adult and Health Services,Head of Adults,Third Party Payments,472101,Purchase of Care,03-Oct-2017,3342266-1745392H,859.32,DALE CARE LTD.
Adult and Health Services,Head of Adults,Third Party Payments,472101,Purchase of Care,03-Oct-2017,3342266-1745405H,641.08,DALE CARE LTD.
Adult and Health Services,Head of Adults,Third Party Payments,472101,Purchase of Care,03-Oct-2017,3342266-1745418H,572.88,DALE CARE LTD.
Adult and Health Services,Head of Adults,Third Party Payments,472101,Purchase of Care,03-Oct-2017,3342266-1745459H,586.53,DALE CARE LTD.
Adult and Health Services,Head of Adults,Third Party Payments,472101,Purchase of Care,03-Oct-2017,3342266-1745479H,739.97,DALE CARE LTD.
Adult and Health Services,Head of Adults,Third Party Payments,472101,Purchase of Care,03-Oct-2017,3342266-1745504H,541.04,DALE CARE LTD.
Adult and Health Services,Head of Adults,Third Party Payments,472101,Purchase of Care,03-Oct-2017,3342266-1745512H,695.64,DALE CARE LTD.
Adult and Health Services,Head of Adults,Third Party Payments,472101,Purchase of Care,03-Oct-2017,3342266-1745518H,859.32,DALE CARE LTD.
Adult and Health Services,Head of Adults,Third Party Payments,472101,Purchase of Care,03-Oct-2017,3342266-1745519H,"1,531.09",DALE CARE LTD.
Adult and Health Services,Head of Adults,Third Party Payments,472101,Purchase of Care,03-Oct-2017,3342266-1745548H,729.74,DALE CARE LTD.
Adult and Health Services,Head of Adults,Third Party Payments,472101,Purchase of Care,03-Oct-2017,3342266-1745553H,536.52,DALE CARE LTD.
Adult and Health Services,Head of Adults,Third Party Payments,472101,Purchase of Care,03-Oct-2017,3342266-1745634H,"1,193.50",DALE CARE LTD.
Adult and Health Services,Head of Adults,Third Party Payments,472101,Purchase of Care,03-Oct-2017,3342266-1745692H,951.39,DALE CARE LTD.
Adult and Health Services,Head of Adults,Third Party Payments,472101,Purchase of Care,03-Oct-2017,3342266-1745748H,531.96,DALE CARE LTD.
Adult and Health Services,Head of Adults,Third Party Payments,472101,Purchase of Care,03-Oct-2017,3342266-1745752H,686.56,DALE CARE LTD.
Adult and Health Services,Head of Adults,Third Party Payments,472101,Purchase of Care,03-Oct-2017,3342266-1745769H,872.96,DALE CARE LTD.
Adult and Health Services,Head of Adults,Third Party Payments,472101,Purchase of Care,03-Oct-2017,3342266-1745782H,562.66,DALE CARE LTD.
Adult and Health Services,Head of Adults,Third Party Payments,472101,Purchase of Care,03-Oct-2017,3342266-1745803H,521.20,DALE CARE LTD.
Adult and Health Services,Head of Adults,Third Party Payments,472101,Purchase of Care,03-Oct-2017,3342266-1745805H,509.24,DALE CARE LTD.
Adult and Health Services,Head of Adults,Third Party Payments,472101,Purchase of Care,03-Oct-2017,3342266-1745843H,759.28,DALE CARE LTD.
Adult and Health Services,Head of Adults,Third Party Payments,472101,Purchase of Care,03-Oct-2017,3342266-1745857H,"1,074.64",DALE CARE LTD.
Adult and Health Services,Head of Adults,Third Party Payments,472101,Purchase of Care,03-Oct-2017,3342266-1745862H,"2,181.60",DALE CARE LTD.
Adult and Health Services,Head of Adults,Third Party Payments,472101,Purchase of Care,03-Oct-2017,3342266-1745890H,761.56,DALE CARE LTD.
Adult and Health Services,Head of Adults,Third Party Payments,472101,Purchase of Care,03-Oct-2017,3342266-1745950H,556.97,DALE CARE LTD.
Adult and Health Services,Head of Adults,Third Party Payments,472101,Purchase of Care,03-Oct-2017,3342266-1745953H,"1,002.54",DALE CARE LTD.
Adult and Health Services,Head of Adults,Third Party Payments,472101,Purchase of Care,03-Oct-2017,3342266-1746003H,695.64,DALE CARE LTD.
Adult and Health Services,Head of Adults,Third Party Payments,472101,Purchase of Care,03-Oct-2017,3342266-1746006H,613.80,DALE CARE LTD.
Adult and Health Services,Head of Adults,Third Party Payments,472101,Purchase of Care,03-Oct-2017,3342266-1746007H,791.12,DALE CARE LTD.
Adult and Health Services,Head of Adults,Third Party Payments,472101,Purchase of Care,03-Oct-2017,3342266-1746019H,572.88,DALE CARE LTD.
Adult and Health Services,Head of Adults,Third Party Payments,472101,Purchase of Care,03-Oct-2017,3342266-1746024H,572.88,DALE CARE LTD.
Adult and Health Services,Head of Adults,Third Party Payments,472101,Purchase of Care,03-Oct-2017,3342266-1746062H,884.34,DALE CARE LTD.
Adult and Health Services,Head of Adults,Third Party Payments,472101,Purchase of Care,03-Oct-2017,3342266-1746082H,668.36,DALE CARE LTD.
Adult and Health Services,Head of Adults,Third Party Payments,472101,Purchase of Care,03-Oct-2017,3342266-1746091H,693.38,DALE CARE LTD.
Adult and Health Services,Head of Adults,Third Party Payments,472101,Purchase of Care,03-Oct-2017,3342266-1746099H,554.68,DALE CARE LTD.
Adult and Health Services,Head of Adults,Third Party Payments,472101,Purchase of Care,03-Oct-2017,3342266-1746138H,695.64,DALE CARE LTD.
Adult and Health Services,Head of Adults,Third Party Payments,472101,Purchase of Care,03-Oct-2017,3342266-1746174H,845.68,DALE CARE LTD.
Adult and Health Services,Head of Adults,Third Party Payments,472101,Purchase of Care,03-Oct-2017,3342266-1746194H,572.88,DALE CARE LTD.
Adult and Health Services,Head of Adults,Third Party Payments,472101,Purchase of Care,03-Oct-2017,3342266-1746280H,763.84,DALE CARE LTD.
Adult and Health Services,Head of Adults,Third Party Payments,472101,Purchase of Care,03-Oct-2017,3342266-1746297H,604.72,DALE CARE LTD.
Adult and Health Services,Head of Adults,Third Party Payments,472101,Purchase of Care,03-Oct-2017,3342266-1746301H,572.88,DALE CARE LTD.
Adult and Health Services,Head of Adults,Third Party Payments,472101,Purchase of Care,03-Oct-2017,3342266-1746303H,620.61,DALE CARE LTD.
Adult and Health Services,Head of Adults,Third Party Payments,472101,Purchase of Care,03-Oct-2017,3342266-1746314H,763.84,DALE CARE LTD.
Adult and Health Services,Head of Adults,Third Party Payments,472101,Purchase of Care,03-Oct-2017,3342266-1746315H,556.98,DALE CARE LTD.
Adult and Health Services,Head of Adults,Third Party Payments,472101,Purchase of Care,03-Oct-2017,3342266-1746322H,545.60,DALE CARE LTD.
Adult and Health Services,Head of Adults,Third Party Payments,472101,Purchase of Care,03-Oct-2017,3342266-1746330H,968.44,DALE CARE LTD.
Adult and Health Services,Head of Adults,Third Party Payments,472101,Purchase of Care,03-Oct-2017,3342266-1746334H,"1,464.04",DALE CARE LTD.
Adult and Health Services,Head of Adults,Third Party Payments,472101,Purchase of Care,03-Oct-2017,3342266-1746371H,920.70,DALE CARE LTD.
Adult and Health Services,Head of Adults,Third Party Payments,472101,Purchase of Care,03-Oct-2017,3342266-1746379H,586.52,DALE CARE LTD.
Adult and Health Services,Head of Adults,Third Party Payments,472101,Purchase of Care,03-Oct-2017,3342266-1746380H,"1,263.96",DALE CARE LTD.
Adult and Health Services,Head of Adults,Third Party Payments,472101,Purchase of Care,03-Oct-2017,3342266-1746426H,668.36,DALE CARE LTD.
Adult and Health Services,Head of Adults,Third Party Payments,472101,Purchase of Care,03-Oct-2017,3342266-1746441H,752.46,DALE CARE LTD.
Adult and Health Services,Head of Adults,Third Party Payments,472101,Purchase of Care,03-Oct-2017,3342266-1746478H,674.03,DALE CARE LTD.
Adult and Health Services,Head of Adults,Third Party Payments,472101,Purchase of Care,03-Oct-2017,3342266-1746479H,700.20,DALE CARE LTD.
Adult and Health Services,Head of Adults,Third Party Payments,472101,Purchase of Care,03-Oct-2017,3342266-1746534H,509.24,DALE CARE LTD.
Adult and Health Services,Head of Adults,Third Party Payments,472101,Purchase of Care,03-Oct-2017,3342266-1746554H,"1,391.28",DALE CARE LTD.
Adult and Health Services,Head of Adults,Third Party Payments,440062,Other Third Party Payments,03-Oct-2017,3342266-1746558H,"1,309.44",DALE CARE LTD.
Adult and Health Services,Head of Adults,Third Party Payments,472101,Purchase of Care,03-Oct-2017,3342266-1746561H,664.95,DALE CARE LTD.
Adult and Health Services,Head of Adults,Third Party Payments,472101,Purchase of Care,03-Oct-2017,3342266-1746567H,654.72,DALE CARE LTD.
Adult and Health Services,Commissioning inc Supporting People,Third Party Payments,472113,Purchase of Care,03-Oct-2017,3342266-1746606H,"1,708.92",DALE CARE LTD.
Adult and Health Services,Head of Adults,Third Party Payments,472101,Purchase of Care,03-Oct-2017,3342266-1746624H,763.84,DALE CARE LTD.
Adult and Health Services,Head of Adults,Third Party Payments,472101,Purchase of Care,03-Oct-2017,3342266-1746630H,613.80,DALE CARE LTD.
Adult and Health Services,Head of Adults,Third Party Payments,472101,Purchase of Care,03-Oct-2017,3342266-1746632H,"1,520.86",DALE CARE LTD.
Adult and Health Services,Head of Adults,Third Party Payments,472101,Purchase of Care,03-Oct-2017,3342266-1746644H,"1,057.10",DALE CARE LTD.
Adult and Health Services,Head of Adults,Third Party Payments,472101,Purchase of Care,03-Oct-2017,3342266-1746661H,529.68,DALE CARE LTD.
Adult and Health Services,Head of Adults,Third Party Payments,472101,Purchase of Care,03-Oct-2017,3342266-1746662H,"1,005.95",DALE CARE LTD.
Adult and Health Services,Head of Adults,Third Party Payments,472101,Purchase of Care,03-Oct-2017,3342266-1746666H,691.08,DALE CARE LTD.
Adult and Health Services,Head of Adults,Third Party Payments,440062,Other Third Party Payments,03-Oct-2017,3342266-1746740H,583.11,DALE CARE LTD.
Adult and Health Services,Head of Adults,Third Party Payments,472101,Purchase of Care,03-Oct-2017,3342266-1746759H,691.08,DALE CARE LTD.
Adult and Health Services,Head of Adults,Third Party Payments,472101,Purchase of Care,03-Oct-2017,3342266-1746792H,845.68,DALE CARE LTD.
Children and Young Peoples Services,Head of Early Help Assessment and Safeguarding,Third Party Payments,440062,Other Third Party Payments,03-Oct-2017,3342266-1746844H,"1,537.91",DALE CARE LTD.
Adult and Health Services,Head of Adults,Third Party Payments,472101,Purchase of Care,03-Oct-2017,3342266-1746850H,568.32,DALE CARE LTD.
Adult and Health Services,Head of Adults,Third Party Payments,472101,Purchase of Care,03-Oct-2017,3342266-1746852H,600.16,DALE CARE LTD.
Adult and Health Services,Head of Adults,Third Party Payments,472101,Purchase of Care,03-Oct-2017,3342266-1746892H,"2,247.19",DALE CARE LTD.
Adult and Health Services,Head of Adults,Third Party Payments,472101,Purchase of Care,03-Oct-2017,3342266-1746906H,"1,173.04",DALE CARE LTD.
Adult and Health Services,Head of Adults,Third Party Payments,472101,Purchase of Care,03-Oct-2017,3342266-1746916H,739.97,DALE CARE LTD.
Adult and Health Services,Head of Adults,Third Party Payments,472101,Purchase of Care,03-Oct-2017,3342266-1746948H,663.80,DALE CARE LTD.
Adult and Health Services,Head of Adults,Third Party Payments,472101,Purchase of Care,03-Oct-2017,3342266-1746949H,572.88,DALE CARE LTD.
Adult and Health Services,Head of Adults,Third Party Payments,472101,Purchase of Care,03-Oct-2017,3342266-1746954H,650.16,DALE CARE LTD.
Adult and Health Services,Head of Adults,Third Party Payments,472101,Purchase of Care,03-Oct-2017,3342266-1746958H,677.44,DALE CARE LTD.
Adult and Health Services,Head of Adults,Third Party Payments,472101,Purchase of Care,03-Oct-2017,3342266-1746973H,795.68,DALE CARE LTD.
Adult and Health Services,Head of Adults,Third Party Payments,472101,Purchase of Care,03-Oct-2017,3342266-1747017H,501.27,DALE CARE LTD.
Adult and Health Services,Head of Adults,Third Party Payments,472101,Purchase of Care,03-Oct-2017,3342266-1747055H,612.67,DALE CARE LTD.
Adult and Health Services,Head of Adults,Third Party Payments,472101,Purchase of Care,03-Oct-2017,3342266-1747057H,659.26,DALE CARE LTD.
Adult and Health Services,Head of Adults,Third Party Payments,472101,Purchase of Care,03-Oct-2017,3342266-1747064H,872.96,DALE CARE LTD.
Adult and Health Services,Head of Adults,Third Party Payments,472101,Purchase of Care,03-Oct-2017,3342266-1747076H,776.33,DALE CARE LTD.
Adult and Health Services,Head of Adults,Third Party Payments,472101,Purchase of Care,03-Oct-2017,3342266-1747078H,827.49,DALE CARE LTD.
Adult and Health Services,Head of Adults,Third Party Payments,472101,Purchase of Care,03-Oct-2017,3342266-1747080H,709.28,DALE CARE LTD.
Adult and Health Services,Head of Adults,Third Party Payments,472101,Purchase of Care,03-Oct-2017,3342266-1747081H,509.24,DALE CARE LTD.
Adult and Health Services,Head of Adults,Third Party Payments,472101,Purchase of Care,03-Oct-2017,3342266-1747088H,835.45,DALE CARE LTD.
Adult and Health Services,Head of Adults,Third Party Payments,472101,Purchase of Care,03-Oct-2017,3342266-1747110H,"1,679.95",DALE CARE LTD.
Adult and Health Services,Head of Adults,Third Party Payments,472101,Purchase of Care,03-Oct-2017,3342266-1747168H,797.94,DALE CARE LTD.
Adult and Health Services,Head of Adults,Third Party Payments,472101,Purchase of Care,03-Oct-2017,3342266-1747184H,936.60,DALE CARE LTD.
Adult and Health Services,Head of Adults,Third Party Payments,472101,Purchase of Care,03-Oct-2017,3342266-1747188H,"1,503.32",DALE CARE LTD.
Adult and Health Services,Head of Adults,Third Party Payments,472101,Purchase of Care,03-Oct-2017,3342266-1747190H,668.36,DALE CARE LTD.
Adult and Health Services,Head of Adults,Third Party Payments,472101,Purchase of Care,03-Oct-2017,3342266-1747191H,736.29,DALE CARE LTD.
Adult and Health Services,Head of Adults,Third Party Payments,472101,Purchase of Care,03-Oct-2017,3342266-1747219H,568.32,DALE CARE LTD.
Adult and Health Services,Head of Adults,Third Party Payments,472101,Purchase of Care,03-Oct-2017,3342266-1747226H,636.52,DALE CARE LTD.
Adult and Health Services,Head of Adults,Third Party Payments,472101,Purchase of Care,03-Oct-2017,3342266-1747237H,509.24,DALE CARE LTD.
Adult and Health Services,Head of Adults,Third Party Payments,472101,Purchase of Care,03-Oct-2017,3342266-1747297H,804.77,DALE CARE LTD.
Adult and Health Services,Head of Adults,Third Party Payments,472101,Purchase of Care,03-Oct-2017,3342266-1747302H,693.38,DALE CARE LTD.
Adult and Health Services,Head of Adults,Third Party Payments,472101,Purchase of Care,03-Oct-2017,3342266-1747353H,"1,254.88",DALE CARE LTD.
Adult and Health Services,Head of Adults,Third Party Payments,472101,Purchase of Care,03-Oct-2017,3342266-1747365H,845.68,DALE CARE LTD.
Adult and Health Services,Head of Adults,Third Party Payments,472101,Purchase of Care,03-Oct-2017,3342266-1747372H,520.60,DALE CARE LTD.
Adult and Health Services,Head of Adults,Third Party Payments,472101,Purchase of Care,03-Oct-2017,3342266-1747378H,757.02,DALE CARE LTD.
Adult and Health Services,Head of Adults,Third Party Payments,472101,Purchase of Care,03-Oct-2017,3342266-1747385H,586.52,DALE CARE LTD.
Adult and Health Services,Head of Adults,Third Party Payments,472101,Purchase of Care,03-Oct-2017,3342266-1747404H,859.32,DALE CARE LTD.
Adult and Health Services,Head of Adults,Third Party Payments,472101,Purchase of Care,03-Oct-2017,3342266-1747457H,568.32,DALE CARE LTD.
Adult and Health Services,Head of Adults,Third Party Payments,472101,Purchase of Care,03-Oct-2017,3342266-1747467H,522.88,DALE CARE LTD.
Adult and Health Services,Head of Adults,Third Party Payments,472101,Purchase of Care,03-Oct-2017,3342266-1747490H,672.91,DALE CARE LTD.
Adult and Health Services,Head of Adults,Third Party Payments,472101,Purchase of Care,03-Oct-2017,3342266-1747491H,745.64,DALE CARE LTD.
Adult and Health Services,Head of Adults,Third Party Payments,472101,Purchase of Care,03-Oct-2017,3342266-1747511H,545.60,DALE CARE LTD.
Adult and Health Services,Head of Adults,Third Party Payments,472101,Purchase of Care,03-Oct-2017,3342266-1747516H,545.60,DALE CARE LTD.
Adult and Health Services,Head of Adults,Third Party Payments,472101,Purchase of Care,03-Oct-2017,3342266-1747534H,750.20,DALE CARE LTD.
Adult and Health Services,Head of Adults,Third Party Payments,472101,Purchase of Care,03-Oct-2017,3342266-1747536H,745.64,DALE CARE LTD.
Adult and Health Services,Head of Adults,Third Party Payments,472101,Purchase of Care,03-Oct-2017,3342266-1747537H,777.48,DALE CARE LTD.
Adult and Health Services,Head of Adults,Third Party Payments,472101,Purchase of Care,03-Oct-2017,3342266-1747540H,518.32,DALE CARE LTD.
Adult and Health Services,Head of Adults,Third Party Payments,472101,Purchase of Care,03-Oct-2017,3342266-1747543H,"1,228.74",DALE CARE LTD.
Adult and Health Services,Head of Adults,Third Party Payments,472101,Purchase of Care,03-Oct-2017,3342266-1747548H,734.30,DALE CARE LTD.
Adult and Health Services,Head of Adults,Third Party Payments,472101,Purchase of Care,03-Oct-2017,3342266-1747568H,536.52,DALE CARE LTD.
Adult and Health Services,Head of Adults,Third Party Payments,472101,Purchase of Care,03-Oct-2017,3342266-1747573H,641.07,DALE CARE LTD.
Adult and Health Services,Head of Adults,Third Party Payments,472101,Purchase of Care,03-Oct-2017,3342266-1747574H,602.44,DALE CARE LTD.
Adult and Health Services,Head of Adults,Third Party Payments,472101,Purchase of Care,03-Oct-2017,3342266-1747576H,559.24,DALE CARE LTD.
Adult and Health Services,Head of Adults,Third Party Payments,472101,Purchase of Care,03-Oct-2017,3342266-1747581H,566.06,DALE CARE LTD.
Adult and Health Services,Head of Adults,Third Party Payments,472101,Purchase of Care,03-Oct-2017,3342266-1747615H,"1,091.20",DALE CARE LTD.
Adult and Health Services,Head of Adults,Third Party Payments,472101,Purchase of Care,03-Oct-2017,3342266-1747616H,661.54,DALE CARE LTD.
Adult and Health Services,Head of Adults,Third Party Payments,472101,Purchase of Care,03-Oct-2017,3342266-1747632H,"1,711.82",DALE CARE LTD.
Adult and Health Services,Head of Adults,Third Party Payments,472101,Purchase of Care,03-Oct-2017,3342266-1747637H,"2,281.29",DALE CARE LTD.
Adult and Health Services,Head of Adults,Third Party Payments,472101,Purchase of Care,03-Oct-2017,3342266-1747654H,643.34,DALE CARE LTD.
Adult and Health Services,Head of Adults,Third Party Payments,472101,Purchase of Care,03-Oct-2017,3342266-1747691H,691.08,DALE CARE LTD.
Adult and Health Services,Head of Adults,Third Party Payments,472101,Purchase of Care,03-Oct-2017,3342266-1747703H,872.64,DALE CARE LTD.
Adult and Health Services,Head of Adults,Third Party Payments,472101,Purchase of Care,03-Oct-2017,3342266-1747732H,562.65,DALE CARE LTD.
Adult and Health Services,Head of Adults,Third Party Payments,472101,Purchase of Care,03-Oct-2017,3342266-1747743H,886.60,DALE CARE LTD.
Adult and Health Services,Head of Adults,Third Party Payments,472101,Purchase of Care,03-Oct-2017,3342266-1747745H,518.32,DALE CARE LTD.
Children and Young Peoples Services,Head of Early Help Assessment and Safeguarding,Third Party Payments,440062,Other Third Party Payments,03-Oct-2017,3342266-1747769H,"1,868.68",DALE CARE LTD.
Adult and Health Services,Head of Adults,Third Party Payments,472101,Purchase of Care,03-Oct-2017,3342266-1747781H,636.52,DALE CARE LTD.
Adult and Health Services,Head of Adults,Third Party Payments,472101,Purchase of Care,03-Oct-2017,3342266-1747789H,913.88,DALE CARE LTD.
Adult and Health Services,Head of Adults,Third Party Payments,472101,Purchase of Care,03-Oct-2017,3342266-1747800H,527.40,DALE CARE LTD.
Adult and Health Services,Head of Adults,Third Party Payments,472101,Purchase of Care,03-Oct-2017,3342266-1747814H,636.52,DALE CARE LTD.
Adult and Health Services,Head of Adults,Third Party Payments,472101,Purchase of Care,03-Oct-2017,3342266-1747815H,"1,689.09",DALE CARE LTD.
Adult and Health Services,Head of Adults,Third Party Payments,472101,Purchase of Care,03-Oct-2017,3342266-1747821H,797.94,DALE CARE LTD.
Adult and Health Services,Head of Adults,Third Party Payments,472101,Purchase of Care,03-Oct-2017,3342266-1747837H,575.16,DALE CARE LTD.
Adult and Health Services,Head of Adults,Third Party Payments,472101,Purchase of Care,03-Oct-2017,3342266-1747843H,"1,389.02",DALE CARE LTD.
Adult and Health Services,Head of Adults,Third Party Payments,472101,Purchase of Care,03-Oct-2017,3342266-1747857H,609.24,DALE CARE LTD.
Adult and Health Services,Head of Adults,Third Party Payments,472101,Purchase of Care,03-Oct-2017,3342266-1747900H,682.00,DALE CARE LTD.
Adult and Health Services,Head of Adults,Third Party Payments,472101,Purchase of Care,03-Oct-2017,3342266-1747910H,"1,050.40",DALE CARE LTD.
Adult and Health Services,Head of Adults,Third Party Payments,472101,Purchase of Care,03-Oct-2017,3342266-1747912H,750.20,DALE CARE LTD.
Adult and Health Services,Head of Adults,Third Party Payments,472101,Purchase of Care,03-Oct-2017,3342266-1747921H,820.66,DALE CARE LTD.
Adult and Health Services,Head of Adults,Third Party Payments,472101,Purchase of Care,03-Oct-2017,3342266-1747980H,"1,118.48",DALE CARE LTD.
Adult and Health Services,Head of Adults,Third Party Payments,472101,Purchase of Care,03-Oct-2017,3342266-1747988H,799.92,DALE CARE LTD.
Adult and Health Services,Head of Adults,Third Party Payments,472101,Purchase of Care,03-Oct-2017,3342266-1747992H,896.88,DALE CARE LTD.
Adult and Health Services,Head of Adults,Third Party Payments,472101,Purchase of Care,03-Oct-2017,3342266-1748004H,763.84,DALE CARE LTD.
Adult and Health Services,Head of Adults,Third Party Payments,472101,Purchase of Care,03-Oct-2017,3342266-1748010H,886.60,DALE CARE LTD.
Adult and Health Services,Head of Adults,Third Party Payments,472101,Purchase of Care,03-Oct-2017,3342266-1748015H,529.70,DALE CARE LTD.
Adult and Health Services,Head of Adults,Third Party Payments,472101,Purchase of Care,03-Oct-2017,3342266-1748021H,588.80,DALE CARE LTD.
Adult and Health Services,Head of Adults,Third Party Payments,472101,Purchase of Care,03-Oct-2017,3342266-1748035H,"1,964.16",DALE CARE LTD.
Adult and Health Services,Head of Adults,Third Party Payments,472101,Purchase of Care,03-Oct-2017,3342266-1748060H,735.41,DALE CARE LTD.
Adult and Health Services,Head of Adults,Third Party Payments,472101,Purchase of Care,03-Oct-2017,3342266-1748066H,"1,393.54",DALE CARE LTD.
Adult and Health Services,Head of Adults,Third Party Payments,472101,Purchase of Care,03-Oct-2017,3342266-1748084H,"1,102.56",DALE CARE LTD.
Adult and Health Services,Head of Adults,Third Party Payments,472101,Purchase of Care,03-Oct-2017,3342266-1748106H,581.96,DALE CARE LTD.
Adult and Health Services,Head of Adults,Third Party Payments,472101,Purchase of Care,03-Oct-2017,3342266-1748150H,884.34,DALE CARE LTD.
Adult and Health Services,Head of Adults,Third Party Payments,472101,Purchase of Care,03-Oct-2017,3342266-1748152H,750.20,DALE CARE LTD.
Adult and Health Services,Head of Adults,Third Party Payments,472101,Purchase of Care,03-Oct-2017,3342266-1748158H,604.72,DALE CARE LTD.
Adult and Health Services,Head of Adults,Third Party Payments,472101,Purchase of Care,03-Oct-2017,3342266-1748163H,"1,609.52",DALE CARE LTD.
Adult and Health Services,Head of Adults,Third Party Payments,472101,Purchase of Care,03-Oct-2017,3342266-1748177H,604.72,DALE CARE LTD.
Adult and Health Services,Head of Adults,Third Party Payments,472101,Purchase of Care,03-Oct-2017,3342266-1748222H,"2,659.80",DALE CARE LTD.
Adult and Health Services,Head of Adults,Third Party Payments,472101,Purchase of Care,03-Oct-2017,3342266-1748223H,982.08,DALE CARE LTD.
Adult and Health Services,Head of Adults,Third Party Payments,472101,Purchase of Care,03-Oct-2017,3342266-1748236H,"1,082.72",DALE CARE LTD.
Adult and Health Services,Head of Adults,Third Party Payments,472101,Purchase of Care,03-Oct-2017,3342266-1748239H,545.60,DALE CARE LTD.
Adult and Health Services,Head of Adults,Third Party Payments,472101,Purchase of Care,03-Oct-2017,3342266-1748269H,566.06,DALE CARE LTD.
Adult and Health Services,Head of Adults,Third Party Payments,472101,Purchase of Care,03-Oct-2017,3342266-1748281H,504.68,DALE CARE LTD.
Adult and Health Services,Head of Adults,Third Party Payments,472101,Purchase of Care,03-Oct-2017,3342266-1748297H,632.00,DALE CARE LTD.
Adult and Health Services,Head of Adults,Third Party Payments,472101,Purchase of Care,03-Oct-2017,3342266-1748330H,732.00,DALE CARE LTD.
Adult and Health Services,Head of Adults,Third Party Payments,472101,Purchase of Care,03-Oct-2017,3342266-1748338H,696.84,DALE CARE LTD.
Adult and Health Services,Head of Adults,Third Party Payments,472101,Purchase of Care,03-Oct-2017,3342266-1748347H,"1,121.97",DALE CARE LTD.
Adult and Health Services,Head of Adults,Third Party Payments,472101,Purchase of Care,03-Oct-2017,3342266-1748353H,743.38,DALE CARE LTD.
Adult and Health Services,Head of Adults,Third Party Payments,472101,Purchase of Care,03-Oct-2017,3342266-1748355H,787.80,DALE CARE LTD.
Adult and Health Services,Head of Adults,Third Party Payments,472101,Purchase of Care,03-Oct-2017,3342266-1748363H,593.34,DALE CARE LTD.
Adult and Health Services,Head of Adults,Third Party Payments,472101,Purchase of Care,03-Oct-2017,3342266-1748372H,"1,147.36",DALE CARE LTD.
Adult and Health Services,Head of Adults,Third Party Payments,472101,Purchase of Care,03-Oct-2017,3342266-1748382H,692.23,DALE CARE LTD.
Adult and Health Services,Head of Adults,Third Party Payments,472101,Purchase of Care,03-Oct-2017,3342266-1748404H,"1,657.26",DALE CARE LTD.
Adult and Health Services,Head of Adults,Third Party Payments,472101,Purchase of Care,03-Oct-2017,3342266-1748405H,679.73,DALE CARE LTD.
Adult and Health Services,Head of Adults,Third Party Payments,472101,Purchase of Care,03-Oct-2017,3342266-1748412H,508.08,DALE CARE LTD.
Adult and Health Services,Head of Adults,Third Party Payments,472101,Purchase of Care,03-Oct-2017,3342266-1748416H,879.78,DALE CARE LTD.
Adult and Health Services,Head of Adults,Third Party Payments,472101,Purchase of Care,03-Oct-2017,3342266-1748423H,884.76,DALE CARE LTD.
Adult and Health Services,Head of Adults,Third Party Payments,472101,Purchase of Care,03-Oct-2017,3342266-1748428H,"1,300.36",DALE CARE LTD.
Adult and Health Services,Head of Adults,Third Party Payments,472101,Purchase of Care,03-Oct-2017,3342266-1748430H,661.54,DALE CARE LTD.
Adult and Health Services,Head of Adults,Third Party Payments,472101,Purchase of Care,03-Oct-2017,3342266-1748431H,"1,409.47",DALE CARE LTD.
Adult and Health Services,Head of Adults,Third Party Payments,472101,Purchase of Care,03-Oct-2017,3342266-1748433H,663.80,DALE CARE LTD.
Adult and Health Services,Head of Adults,Third Party Payments,472101,Purchase of Care,03-Oct-2017,3342266-1748456H,795.68,DALE CARE LTD.
Adult and Health Services,Head of Adults,Third Party Payments,472101,Purchase of Care,03-Oct-2017,3342266-1748465H,536.52,DALE CARE LTD.
Adult and Health Services,Head of Adults,Third Party Payments,472101,Purchase of Care,03-Oct-2017,3342266-1748482H,563.80,DALE CARE LTD.
Adult and Health Services,Head of Adults,Third Party Payments,472101,Purchase of Care,03-Oct-2017,3342266-1748495H,763.84,DALE CARE LTD.
Adult and Health Services,Head of Adults,Third Party Payments,472101,Purchase of Care,03-Oct-2017,3342266-1748516H,509.24,DALE CARE LTD.
Adult and Health Services,Head of Adults,Third Party Payments,472101,Purchase of Care,03-Oct-2017,3342266-1748525H,760.43,DALE CARE LTD.
Adult and Health Services,Head of Adults,Third Party Payments,472101,Purchase of Care,03-Oct-2017,3342266-1748529H,536.52,DALE CARE LTD.
Adult and Health Services,Head of Adults,Third Party Payments,472101,Purchase of Care,03-Oct-2017,3342266-1748532H,589.93,DALE CARE LTD.
Adult and Health Services,Head of Adults,Third Party Payments,472101,Purchase of Care,03-Oct-2017,3342266-1748546H,508.10,DALE CARE LTD.
Adult and Health Services,Head of Adults,Third Party Payments,472101,Purchase of Care,03-Oct-2017,3342266-1748551H,965.56,DALE CARE LTD.
Adult and Health Services,Head of Adults,Third Party Payments,472101,Purchase of Care,03-Oct-2017,3342266-1748556H,509.24,DALE CARE LTD.
Adult and Health Services,Head of Adults,Third Party Payments,472101,Purchase of Care,03-Oct-2017,3342266-1748569H,572.88,DALE CARE LTD.
Adult and Health Services,Head of Adults,Third Party Payments,472101,Purchase of Care,03-Oct-2017,3342266-1748576H,"1,241.24",DALE CARE LTD.
Adult and Health Services,Head of Adults,Third Party Payments,472101,Purchase of Care,03-Oct-2017,3342266-1748586H,509.24,DALE CARE LTD.
Adult and Health Services,Head of Adults,Third Party Payments,472101,Purchase of Care,03-Oct-2017,3342266-1748604H,559.24,DALE CARE LTD.
Adult and Health Services,Head of Adults,Third Party Payments,472101,Purchase of Care,03-Oct-2017,3342266-1748625H,604.72,DALE CARE LTD.
Adult and Health Services,Head of Adults,Third Party Payments,472101,Purchase of Care,03-Oct-2017,3342266-1748643H,"1,193.50",DALE CARE LTD.
Adult and Health Services,Head of Adults,Third Party Payments,472101,Purchase of Care,03-Oct-2017,3342266-1748651H,586.52,DALE CARE LTD.
Adult and Health Services,Head of Adults,Third Party Payments,472101,Purchase of Care,03-Oct-2017,3342266-1748659H,668.36,DALE CARE LTD.
Adult and Health Services,Head of Adults,Third Party Payments,472101,Purchase of Care,03-Oct-2017,3342266-1748727H,538.78,DALE CARE LTD.
Adult and Health Services,Head of Adults,Third Party Payments,472101,Purchase of Care,03-Oct-2017,3342266-1748769H,929.20,DALE CARE LTD.
Adult and Health Services,Head of Adults,Third Party Payments,472101,Purchase of Care,03-Oct-2017,3342266-1748770H,586.52,DALE CARE LTD.
Adult and Health Services,Head of Adults,Third Party Payments,472101,Purchase of Care,03-Oct-2017,3342266-1748783H,527.40,DALE CARE LTD.
Adult and Health Services,Head of Adults,Third Party Payments,472101,Purchase of Care,03-Oct-2017,3342266-1748799H,896.83,DALE CARE LTD.
Adult and Health Services,Head of Adults,Third Party Payments,472101,Purchase of Care,03-Oct-2017,3342266-1748815H,668.36,DALE CARE LTD.
Adult and Health Services,Head of Adults,Third Party Payments,472101,Purchase of Care,03-Oct-2017,3342266-1748818H,"2,052.42",DALE CARE LTD.
Adult and Health Services,Head of Adults,Third Party Payments,472101,Purchase of Care,03-Oct-2017,3342266-1748833H,"1,866.42",DALE CARE LTD.
Adult and Health Services,Head of Adults,Third Party Payments,472101,Purchase of Care,03-Oct-2017,3342266-1748843H,753.61,DALE CARE LTD.
Adult and Health Services,Head of Adults,Third Party Payments,472101,Purchase of Care,03-Oct-2017,3342266-1748862H,535.37,DALE CARE LTD.
Adult and Health Services,Head of Adults,Third Party Payments,472101,Purchase of Care,03-Oct-2017,3342266-1748920H,572.88,DALE CARE LTD.
Adult and Health Services,Head of Adults,Third Party Payments,472101,Purchase of Care,03-Oct-2017,3342266-1748963H,"1,178.73",DALE CARE LTD.
Adult and Health Services,Head of Adults,Third Party Payments,472101,Purchase of Care,03-Oct-2017,3342266-1748965H,586.52,DALE CARE LTD.
Adult and Health Services,Head of Adults,Third Party Payments,472101,Purchase of Care,03-Oct-2017,3342266-1748991H,"1,435.61",DALE CARE LTD.
Adult and Health Services,Head of Adults,Third Party Payments,472101,Purchase of Care,03-Oct-2017,3342266-1748994H,613.80,DALE CARE LTD.
Adult and Health Services,Head of Adults,Third Party Payments,472101,Purchase of Care,03-Oct-2017,3342266-1749108H,859.32,DALE CARE LTD.
Adult and Health Services,Head of Adults,Third Party Payments,472101,Purchase of Care,03-Oct-2017,3342266-1749127H,757.02,DALE CARE LTD.
Adult and Health Services,Head of Adults,Third Party Payments,472101,Purchase of Care,03-Oct-2017,3342266-1749135H,"1,690.23",DALE CARE LTD.
Adult and Health Services,Head of Adults,Transfer Payments,515210,Social Services Clients,03-Oct-2017,3342267-1745781H,"2,237.92",REDACTED - PAYMENT TO INDIVIDUAL
Adult and Health Services,Head of Adults,Transfer Payments,515201,Social Services Clients,03-Oct-2017,3342271-1746239H,836.24,REDACTED - PAYMENT TO INDIVIDUAL
Adult and Health Services,Head of Adults,Transfer Payments,515209,Social Services Clients,03-Oct-2017,3342275-1743128D,562.56,REDACTED - PAYMENT TO INDIVIDUAL
Adult and Health Services,Head of Adults,Transfer Payments,515201,Social Services Clients,03-Oct-2017,3342277-1743158H,707.48,REDACTED - PAYMENT TO INDIVIDUAL
Adult and Health Services,Head of Adults,Transfer Payments,515201,Social Services Clients,03-Oct-2017,3342278-1745947H,"1,040.00",REDACTED - PAYMENT TO INDIVIDUAL
Adult and Health Services,Head of Adults,Transfer Payments,515209,Social Services Clients,03-Oct-2017,3342279-1744567D,612.00,REDACTED - PAYMENT TO INDIVIDUAL
Adult and Health Services,Head of Adults,Transfer Payments,515201,Social Services Clients,03-Oct-2017,3342281-1748045H,624.00,REDACTED - PAYMENT TO INDIVIDUAL
Adult and Health Services,Head of Adults,Transfer Payments,515201,Social Services Clients,03-Oct-2017,3342282-1745816H,"1,089.60",REDACTED - PAYMENT TO INDIVIDUAL
Adult and Health Services,Head of Adults,Transfer Payments,515201,Social Services Clients,03-Oct-2017,3342284-1747084H,572.88,REDACTED - PAYMENT TO INDIVIDUAL
Adult and Health Services,Head of Adults,Transfer Payments,515211,Social Services Clients,03-Oct-2017,3342285-1742647H,"1,452.24",REDACTED - PAYMENT TO INDIVIDUAL
Adult and Health Services,Head of Adults,Transfer Payments,515201,Social Services Clients,03-Oct-2017,3342286-1745490H,720.08,REDACTED - PAYMENT TO INDIVIDUAL
Adult and Health Services,Head of Adults,Transfer Payments,515201,Social Services Clients,03-Oct-2017,3342287-1743500H,908.00,REDACTED - PAYMENT TO INDIVIDUAL
Adult and Health Services,Head of Adults,Transfer Payments,515201,Social Services Clients,03-Oct-2017,3342289-1743797H,"1,041.56",REDACTED - PAYMENT TO INDIVIDUAL
Adult and Health Services,Head of Adults,Transfer Payments,515201,Social Services Clients,03-Oct-2017,3342290-1745653H,"1,400.00",REDACTED - PAYMENT TO INDIVIDUAL
Adult and Health Services,Head of Adults,Third Party Payments,473101,Purchase of Care,03-Oct-2017,3342292-1742828D,600.00,DAY-LILY.
Adult and Health Services,Head of Adults,Third Party Payments,473101,Purchase of Care,03-Oct-2017,3342293-1742387D,565.76,JOURNEY ENTERPRISES LTD.
Adult and Health Services,Head of Adults,Third Party Payments,473101,Purchase of Care,03-Oct-2017,3342293-1742672D,765.00,JOURNEY ENTERPRISES LTD.
Adult and Health Services,Head of Adults,Third Party Payments,473101,Purchase of Care,03-Oct-2017,3342293-1742757D,561.00,JOURNEY ENTERPRISES LTD.
Adult and Health Services,Head of Adults,Third Party Payments,473101,Purchase of Care,03-Oct-2017,3342293-1742763D,576.00,JOURNEY ENTERPRISES LTD.
Adult and Health Services,Head of Adults,Third Party Payments,473101,Purchase of Care,03-Oct-2017,3342293-1743103D,748.40,JOURNEY ENTERPRISES LTD.
Adult and Health Services,Head of Adults,Third Party Payments,473101,Purchase of Care,03-Oct-2017,3342293-1744363D,646.80,JOURNEY ENTERPRISES LTD.
Adult and Health Services,Head of Adults,Third Party Payments,473101,Purchase of Care,03-Oct-2017,3342293-1744689D,801.04,JOURNEY ENTERPRISES LTD.
Adult and Health Services,Head of Adults,Third Party Payments,473101,Purchase of Care,03-Oct-2017,3342293-1745546D,808.64,JOURNEY ENTERPRISES LTD.
Adult and Health Services,Head of Adults,Third Party Payments,473101,Purchase of Care,03-Oct-2017,3342293-1745708D,"1,061.40",JOURNEY ENTERPRISES LTD.
Adult and Health Services,Head of Adults,Third Party Payments,473101,Purchase of Care,03-Oct-2017,3342293-1747265D,751.64,JOURNEY ENTERPRISES LTD.
Adult and Health Services,Head of Adults,Third Party Payments,473101,Purchase of Care,03-Oct-2017,3342293-1749027D,693.12,JOURNEY ENTERPRISES LTD.
Adult and Health Services,Head of Adults,Third Party Payments,473101,Purchase of Care,03-Oct-2017,3342294-1742332D,640.00,DEACONSTAR LTD.
Adult and Health Services,Head of Adults,Third Party Payments,473101,Purchase of Care,03-Oct-2017,3342294-1742404D,640.00,DEACONSTAR LTD.
Adult and Health Services,Head of Adults,Third Party Payments,478101,Purchase of Care,03-Oct-2017,3342294-1742502H,"1,333.88",DEACONSTAR LTD.
Adult and Health Services,Head of Adults,Third Party Payments,473101,Purchase of Care,03-Oct-2017,3342294-1742503D,612.00,DEACONSTAR LTD.
Adult and Health Services,Head of Adults,Third Party Payments,473101,Purchase of Care,03-Oct-2017,3342294-1742703D,640.00,DEACONSTAR LTD.
Adult and Health Services,Head of Adults,Third Party Payments,478101,Purchase of Care,03-Oct-2017,3342294-1742704H,"1,374.60",DEACONSTAR LTD.
Adult and Health Services,Head of Adults,Third Party Payments,473101,Purchase of Care,03-Oct-2017,3342294-1742710D,640.00,DEACONSTAR LTD.
Adult and Health Services,Head of Adults,Third Party Payments,478101,Purchase of Care,03-Oct-2017,3342294-1742711H,"1,374.60",DEACONSTAR LTD.
Adult and Health Services,Head of Adults,Third Party Payments,473101,Purchase of Care,03-Oct-2017,3342294-1742776D,640.00,DEACONSTAR LTD.
Adult and Health Services,Head of Adults,Third Party Payments,478101,Purchase of Care,03-Oct-2017,3342294-1742777H,"1,667.36",DEACONSTAR LTD.
Adult and Health Services,Head of Adults,Third Party Payments,473101,Purchase of Care,03-Oct-2017,3342294-1742799D,640.00,DEACONSTAR LTD.
Adult and Health Services,Head of Adults,Third Party Payments,473101,Purchase of Care,03-Oct-2017,3342294-1742801D,512.00,DEACONSTAR LTD.
Adult and Health Services,Head of Adults,Third Party Payments,478101,Purchase of Care,03-Oct-2017,3342294-1742802H,"1,667.36",DEACONSTAR LTD.
Adult and Health Services,Head of Adults,Third Party Payments,473101,Purchase of Care,03-Oct-2017,3342294-1742817D,640.00,DEACONSTAR LTD.
Adult and Health Services,Head of Adults,Third Party Payments,478101,Purchase of Care,03-Oct-2017,3342294-1742819H,"1,667.36",DEACONSTAR LTD.
Adult and Health Services,Head of Adults,Third Party Payments,473101,Purchase of Care,03-Oct-2017,3342294-1742829D,512.00,DEACONSTAR LTD.
Adult and Health Services,Head of Adults,Third Party Payments,478101,Purchase of Care,03-Oct-2017,3342294-1742830H,"2,035.56",DEACONSTAR LTD.
Adult and Health Services,Head of Adults,Third Party Payments,478101,Purchase of Care,03-Oct-2017,3342294-1742897H,"1,667.36",DEACONSTAR LTD.
Adult and Health Services,Head of Adults,Third Party Payments,473101,Purchase of Care,03-Oct-2017,3342294-1742955D,"1,020.00",DEACONSTAR LTD.
Adult and Health Services,Head of Adults,Third Party Payments,478101,Purchase of Care,03-Oct-2017,3342294-1742956H,"5,326.52",DEACONSTAR LTD.
Adult and Health Services,Head of Adults,Third Party Payments,478101,Purchase of Care,03-Oct-2017,3342294-1743066H,"2,163.60",DEACONSTAR LTD.
Adult and Health Services,Head of Adults,Third Party Payments,478101,Purchase of Care,03-Oct-2017,3342294-1743094H,"1,667.36",DEACONSTAR LTD.
Adult and Health Services,Head of Adults,Third Party Payments,473101,Purchase of Care,03-Oct-2017,3342294-1743219D,640.00,DEACONSTAR LTD.
Adult and Health Services,Head of Adults,Third Party Payments,478101,Purchase of Care,03-Oct-2017,3342294-1743220H,"1,374.60",DEACONSTAR LTD.
Adult and Health Services,Head of Adults,Third Party Payments,473101,Purchase of Care,03-Oct-2017,3342294-1743647D,512.00,DEACONSTAR LTD.
Adult and Health Services,Head of Adults,Third Party Payments,478101,Purchase of Care,03-Oct-2017,3342294-1743648H,"1,111.60",DEACONSTAR LTD.
Adult and Health Services,Head of Adults,Third Party Payments,478101,Purchase of Care,03-Oct-2017,3342294-1743657H,"1,702.08",DEACONSTAR LTD.
Adult and Health Services,Head of Adults,Third Party Payments,473101,Purchase of Care,03-Oct-2017,3342294-1743677D,640.00,DEACONSTAR LTD.
Adult and Health Services,Head of Adults,Third Party Payments,478101,Purchase of Care,03-Oct-2017,3342294-1743727H,"1,702.08",DEACONSTAR LTD.
Adult and Health Services,Head of Adults,Third Party Payments,473101,Purchase of Care,03-Oct-2017,3342294-1743728D,640.00,DEACONSTAR LTD.
Adult and Health Services,Head of Adults,Third Party Payments,473101,Purchase of Care,03-Oct-2017,3342294-1743811D,640.00,DEACONSTAR LTD.
Adult and Health Services,Head of Adults,Third Party Payments,478101,Purchase of Care,03-Oct-2017,3342294-1745123H,"1,667.36",DEACONSTAR LTD.
Adult and Health Services,Head of Adults,Third Party Payments,478101,Purchase of Care,03-Oct-2017,3342294-1745642H,"1,111.60",DEACONSTAR LTD.
Adult and Health Services,Head of Adults,Third Party Payments,473101,Purchase of Care,03-Oct-2017,3342294-1745682D,544.00,DEACONSTAR LTD.
Adult and Health Services,Head of Adults,Third Party Payments,478101,Purchase of Care,03-Oct-2017,3342294-1746110H,"7,337.40",DEACONSTAR LTD.
Adult and Health Services,Head of Adults,Third Party Payments,478101,Purchase of Care,03-Oct-2017,3342294-1746409H,"1,667.36",DEACONSTAR LTD.
Adult and Health Services,Head of Adults,Third Party Payments,478101,Purchase of Care,03-Oct-2017,3342294-1747669H,"1,333.88",DEACONSTAR LTD.
Adult and Health Services,Head of Adults,Third Party Payments,473101,Purchase of Care,03-Oct-2017,3342294-1747670D,640.00,DEACONSTAR LTD.
Adult and Health Services,Head of Adults,Transfer Payments,515209,Social Services Clients,03-Oct-2017,3342295-1747292D,534.00,REDACTED - PAYMENT TO INDIVIDUAL
Adult and Health Services,Head of Adults,Transfer Payments,515201,Social Services Clients,03-Oct-2017,3342296-1746045H,730.00,REDACTED - PAYMENT TO INDIVIDUAL
Adult and Health Services,Head of Adults,Transfer Payments,515201,Social Services Clients,03-Oct-2017,3342298-1744780H,"1,824.00",REDACTED - PAYMENT TO INDIVIDUAL
Adult and Health Services,Head of Adults,Transfer Payments,515209,Social Services Clients,03-Oct-2017,3342299-1742496D,"1,902.64",REDACTED - PAYMENT TO INDIVIDUAL
Adult and Health Services,Head of Adults,Transfer Payments,515201,Social Services Clients,03-Oct-2017,3342301-1744608H,"1,774.40",REDACTED - PAYMENT TO INDIVIDUAL
Adult and Health Services,Head of Adults,Transfer Payments,515201,Social Services Clients,03-Oct-2017,3342302-1743287H,810.00,REDACTED - PAYMENT TO INDIVIDUAL
Adult and Health Services,Head of Adults,Transfer Payments,515211,Social Services Clients,03-Oct-2017,3342302-1743288H,"1,836.32",REDACTED - PAYMENT TO INDIVIDUAL
Adult and Health Services,Head of Adults,Transfer Payments,515201,Social Services Clients,03-Oct-2017,3342304-1743194H,"1,546.00",REDACTED - PAYMENT TO INDIVIDUAL
Adult and Health Services,Head of Adults,Third Party Payments,472101,Purchase of Care,03-Oct-2017,3342306-1745747H,"8,924.16",DIMENSIONS (UK) LTD.
Adult and Health Services,Head of Adults,Third Party Payments,473101,Purchase of Care,03-Oct-2017,3342307-1743331D,620.00,DIRECT STEPS.
Adult and Health Services,Head of Adults,Third Party Payments,473101,Purchase of Care,03-Oct-2017,3342307-1743384D,599.79,DIRECT STEPS.
Adult and Health Services,Head of Adults,Third Party Payments,473101,Purchase of Care,03-Oct-2017,3342307-1744413D,620.00,DIRECT STEPS.
Adult and Health Services,Head of Adults,Third Party Payments,473101,Purchase of Care,03-Oct-2017,3342307-1744674D,620.00,DIRECT STEPS.
Adult and Health Services,Head of Adults,Third Party Payments,473101,Purchase of Care,03-Oct-2017,3342308-1743345D,727.50,DISC LTD.
Adult and Health Services,Head of Adults,Transfer Payments,515209,Social Services Clients,03-Oct-2017,3342309-1743581D,615.40,REDACTED - PAYMENT TO INDIVIDUAL
Adult and Health Services,Head of Adults,Transfer Payments,515201,Social Services Clients,03-Oct-2017,3342312-1747483H,640.00,REDACTED - PAYMENT TO INDIVIDUAL
Adult and Health Services,Head of Adults,Transfer Payments,515201,Social Services Clients,03-Oct-2017,3342314-1746171H,"1,391.28",REDACTED - PAYMENT TO INDIVIDUAL
Adult and Health Services,Head of Adults,Transfer Payments,515201,Social Services Clients,03-Oct-2017,3342315-1743469H,654.72,REDACTED - PAYMENT TO INDIVIDUAL
Adult and Health Services,Head of Adults,Transfer Payments,515201,Social Services Clients,03-Oct-2017,3342317-1744212H,518.32,REDACTED - PAYMENT TO INDIVIDUAL
Adult and Health Services,Head of Adults,Transfer Payments,515201,Social Services Clients,03-Oct-2017,3342319-1744914H,586.52,REDACTED - PAYMENT TO INDIVIDUAL
Adult and Health Services,Head of Adults,Transfer Payments,515201,Social Services Clients,03-Oct-2017,3342321-1744847H,"1,030.48",REDACTED - PAYMENT TO INDIVIDUAL
Adult and Health Services,Head of Adults,Third Party Payments,472101,Purchase of Care,03-Oct-2017,3342323-1743200H,672.00,DRAVENS HEALTHCARE.
Adult and Health Services,Head of Adults,Transfer Payments,515201,Social Services Clients,03-Oct-2017,3342324-1746491H,"1,118.48",REDACTED - PAYMENT TO INDIVIDUAL
Adult and Health Services,Head of Adults,Third Party Payments,473101,Purchase of Care,03-Oct-2017,3342325-1742837D,608.00,DURHAM ALLIANCE FOR COMMUNITY CARE.
Adult and Health Services,Head of Adults,Third Party Payments,473101,Purchase of Care,03-Oct-2017,3342325-1748679D,611.04,DURHAM ALLIANCE FOR COMMUNITY CARE.
Adult and Health Services,Head of Adults,Third Party Payments,473101,Purchase of Care,03-Oct-2017,3342327-1742612D,"1,381.68",EBONEY DAY CARE.
Adult and Health Services,Head of Adults,Third Party Payments,473101,Purchase of Care,03-Oct-2017,3342327-1743172D,543.76,EBONEY DAY CARE.
Adult and Health Services,Head of Adults,Third Party Payments,473101,Purchase of Care,03-Oct-2017,3342327-1743183D,534.75,EBONEY DAY CARE.
Adult and Health Services,Head of Adults,Third Party Payments,473101,Purchase of Care,03-Oct-2017,3342327-1743387D,581.76,EBONEY DAY CARE.
Adult and Health Services,Head of Adults,Third Party Payments,473101,Purchase of Care,03-Oct-2017,3342327-1743853D,753.44,EBONEY DAY CARE.
Adult and Health Services,Head of Adults,Third Party Payments,473101,Purchase of Care,03-Oct-2017,3342327-1743862D,995.84,EBONEY DAY CARE.
Adult and Health Services,Head of Adults,Third Party Payments,473101,Purchase of Care,03-Oct-2017,3342327-1743865D,608.00,EBONEY DAY CARE.
Adult and Health Services,Head of Adults,Third Party Payments,473101,Purchase of Care,03-Oct-2017,3342327-1743870D,672.60,EBONEY DAY CARE.
Adult and Health Services,Head of Adults,Third Party Payments,473101,Purchase of Care,03-Oct-2017,3342327-1743874D,608.00,EBONEY DAY CARE.
Adult and Health Services,Head of Adults,Third Party Payments,473101,Purchase of Care,03-Oct-2017,3342327-1743945D,684.34,EBONEY DAY CARE.
Adult and Health Services,Head of Adults,Third Party Payments,473101,Purchase of Care,03-Oct-2017,3342327-1743947D,608.00,EBONEY DAY CARE.
Adult and Health Services,Head of Adults,Third Party Payments,473101,Purchase of Care,03-Oct-2017,3342327-1743959D,608.00,EBONEY DAY CARE.
Adult and Health Services,Head of Adults,Third Party Payments,473101,Purchase of Care,03-Oct-2017,3342327-1743969D,608.00,EBONEY DAY CARE.
Adult and Health Services,Head of Adults,Third Party Payments,473101,Purchase of Care,03-Oct-2017,3342327-1744601D,"1,020.00",EBONEY DAY CARE.
Adult and Health Services,Head of Adults,Third Party Payments,473101,Purchase of Care,03-Oct-2017,3342327-1745066D,608.00,EBONEY DAY CARE.
Adult and Health Services,Head of Adults,Third Party Payments,473101,Purchase of Care,03-Oct-2017,3342327-1745143D,"1,454.40",EBONEY DAY CARE.
Adult and Health Services,Head of Adults,Third Party Payments,473101,Purchase of Care,03-Oct-2017,3342327-1745488D,"1,480.00",EBONEY DAY CARE.
Adult and Health Services,Head of Adults,Third Party Payments,470101,Purchase of Care,03-Oct-2017,3342327-1745495D,581.76,EBONEY DAY CARE.
Adult and Health Services,Head of Adults,Third Party Payments,473101,Purchase of Care,03-Oct-2017,3342327-1745607D,550.35,EBONEY DAY CARE.
Adult and Health Services,Head of Adults,Third Party Payments,473101,Purchase of Care,03-Oct-2017,3342327-1748108D,621.36,EBONEY DAY CARE.
Adult and Health Services,Head of Adults,Third Party Payments,473101,Purchase of Care,03-Oct-2017,3342327-1748368D,644.88,EBONEY DAY CARE.
Adult and Health Services,Head of Adults,Third Party Payments,472101,Purchase of Care,03-Oct-2017,3342328-1743847H,"2,537.04",EBONEY HOME CARE LTD.
Adult and Health Services,Head of Adults,Third Party Payments,472101,Purchase of Care,03-Oct-2017,3342328-1743860H,"1,554.96",EBONEY HOME CARE LTD.
Adult and Health Services,Head of Adults,Third Party Payments,472101,Purchase of Care,03-Oct-2017,3342328-1743956H,600.16,EBONEY HOME CARE LTD.
Adult and Health Services,Head of Adults,Third Party Payments,472101,Purchase of Care,03-Oct-2017,3342328-1743972H,600.16,EBONEY HOME CARE LTD.
Adult and Health Services,Head of Adults,Third Party Payments,472101,Purchase of Care,03-Oct-2017,3342328-1744032H,600.16,EBONEY HOME CARE LTD.
Adult and Health Services,Head of Adults,Third Party Payments,472101,Purchase of Care,03-Oct-2017,3342328-1744045H,827.50,EBONEY HOME CARE LTD.
Adult and Health Services,Head of Adults,Third Party Payments,472101,Purchase of Care,03-Oct-2017,3342328-1744150H,709.28,EBONEY HOME CARE LTD.
Adult and Health Services,Head of Adults,Third Party Payments,472101,Purchase of Care,03-Oct-2017,3342328-1744359H,709.28,EBONEY HOME CARE LTD.
Adult and Health Services,Head of Adults,Third Party Payments,472101,Purchase of Care,03-Oct-2017,3342328-1744727H,531.96,EBONEY HOME CARE LTD.
Adult and Health Services,Head of Adults,Third Party Payments,472101,Purchase of Care,03-Oct-2017,3342328-1745489H,661.54,EBONEY HOME CARE LTD.
Adult and Health Services,Head of Adults,Third Party Payments,472101,Purchase of Care,03-Oct-2017,3342328-1748395H,709.28,EBONEY HOME CARE LTD.
Adult and Health Services,Head of Adults,Third Party Payments,472101,Purchase of Care,03-Oct-2017,3342328-1748442H,629.70,EBONEY HOME CARE LTD.
Adult and Health Services,Head of Adults,Third Party Payments,472101,Purchase of Care,03-Oct-2017,3342328-1748519H,"1,218.52",EBONEY HOME CARE LTD.
Adult and Health Services,Head of Adults,Third Party Payments,472101,Purchase of Care,03-Oct-2017,3342328-1748535H,"1,159.40",EBONEY HOME CARE LTD.
Adult and Health Services,Head of Adults,Third Party Payments,472101,Purchase of Care,03-Oct-2017,3342328-1748838H,716.10,EBONEY HOME CARE LTD.
Adult and Health Services,Head of Adults,Third Party Payments,472101,Purchase of Care,03-Oct-2017,3342329-1732835H,728.00,EBS INSTANT CARE LTD.
Adult and Health Services,Head of Adults,Third Party Payments,472101,Purchase of Care,03-Oct-2017,3342329-1746643H,728.00,EBS INSTANT CARE LTD.
Adult and Health Services,Head of Adults,Transfer Payments,515201,Social Services Clients,03-Oct-2017,3342330-1744328H,545.60,REDACTED - PAYMENT TO INDIVIDUAL
Adult and Health Services,Head of Adults,Transfer Payments,515201,Social Services Clients,03-Oct-2017,3342331-1743896H,922.96,REDACTED - PAYMENT TO INDIVIDUAL
Adult and Health Services,Head of Adults,Transfer Payments,515201,Social Services Clients,03-Oct-2017,3342332-1747518H,"2,032.36",REDACTED - PAYMENT TO INDIVIDUAL
Adult and Health Services,Head of Adults,Transfer Payments,515201,Social Services Clients,03-Oct-2017,3342333-1745523H,700.00,REDACTED - PAYMENT TO INDIVIDUAL
Adult and Health Services,Head of Adults,Transfer Payments,515201,Social Services Clients,03-Oct-2017,3342334-1746370H,768.40,REDACTED - PAYMENT TO INDIVIDUAL
Adult and Health Services,Head of Adults,Transfer Payments,515210,Social Services Clients,03-Oct-2017,3342335-1744533H,"2,080.00",REDACTED - PAYMENT TO INDIVIDUAL
Adult and Health Services,Head of Adults,Transfer Payments,515201,Social Services Clients,03-Oct-2017,3342337-1748593H,"1,282.16",REDACTED - PAYMENT TO INDIVIDUAL
Adult and Health Services,Head of Adults,Transfer Payments,515201,Social Services Clients,03-Oct-2017,3342338-1744459H,564.40,REDACTED - PAYMENT TO INDIVIDUAL
Adult and Health Services,Head of Adults,Transfer Payments,515201,Social Services Clients,03-Oct-2017,3342340-1744113H,"1,000.28",REDACTED - PAYMENT TO INDIVIDUAL
Adult and Health Services,Head of Adults,Transfer Payments,515201,Social Services Clients,03-Oct-2017,3342341-1749089H,"1,120.00",REDACTED - PAYMENT TO INDIVIDUAL
Adult and Health Services,Head of Adults,Transfer Payments,515209,Social Services Clients,03-Oct-2017,3342342-1745746D,628.00,REDACTED - PAYMENT TO INDIVIDUAL
Adult and Health Services,Head of Adults,Transfer Payments,515201,Social Services Clients,03-Oct-2017,3342344-1745919H,640.00,REDACTED - PAYMENT TO INDIVIDUAL
Adult and Health Services,Head of Adults,Transfer Payments,515201,Social Services Clients,03-Oct-2017,3342345-1742769H,800.68,REDACTED - PAYMENT TO INDIVIDUAL
Adult and Health Services,Head of Adults,Transfer Payments,515209,Social Services Clients,03-Oct-2017,3342346-1747524D,720.00,REDACTED - PAYMENT TO INDIVIDUAL
Adult and Health Services,Head of Adults,Transfer Payments,515209,Social Services Clients,03-Oct-2017,3342349-1744622D,560.00,REDACTED - PAYMENT TO INDIVIDUAL
Adult and Health Services,Head of Adults,Transfer Payments,515201,Social Services Clients,03-Oct-2017,3342350-1749031H,641.10,REDACTED - PAYMENT TO INDIVIDUAL
Adult and Health Services,Head of Adults,Third Party Payments,472101,Purchase of Care,03-Oct-2017,3342351-1742490H,"1,145.76",EMBRACING CARE.
Adult and Health Services,Head of Adults,Third Party Payments,472101,Purchase of Care,03-Oct-2017,3342351-1742649H,"1,527.68",EMBRACING CARE.
Adult and Health Services,Head of Adults,Third Party Payments,472101,Purchase of Care,03-Oct-2017,3342351-1742679H,682.00,EMBRACING CARE.
Adult and Health Services,Head of Adults,Third Party Payments,478101,Purchase of Care,03-Oct-2017,3342351-1742874H,"3,137.96",EMBRACING CARE.
Adult and Health Services,Head of Adults,Third Party Payments,472101,Purchase of Care,03-Oct-2017,3342351-1743000H,686.56,EMBRACING CARE.
Adult and Health Services,Head of Adults,Third Party Payments,472101,Purchase of Care,03-Oct-2017,3342351-1743019H,581.97,EMBRACING CARE.
Adult and Health Services,Head of Adults,Third Party Payments,472101,Purchase of Care,03-Oct-2017,3342351-1743024H,586.52,EMBRACING CARE.
Adult and Health Services,Head of Adults,Third Party Payments,472101,Purchase of Care,03-Oct-2017,3342351-1743025H,527.40,EMBRACING CARE.
Adult and Health Services,Head of Adults,Third Party Payments,478101,Purchase of Care,03-Oct-2017,3342351-1743079H,"3,495.56",EMBRACING CARE.
Adult and Health Services,Head of Adults,Third Party Payments,472101,Purchase of Care,03-Oct-2017,3342351-1743120H,636.52,EMBRACING CARE.
Adult and Health Services,Head of Adults,Third Party Payments,472101,Purchase of Care,03-Oct-2017,3342351-1743240H,"1,258.29",EMBRACING CARE.
Adult and Health Services,Head of Adults,Third Party Payments,472101,Purchase of Care,03-Oct-2017,3342351-1743244H,763.84,EMBRACING CARE.
Adult and Health Services,Head of Adults,Third Party Payments,472101,Purchase of Care,03-Oct-2017,3342351-1743323H,"1,173.04",EMBRACING CARE.
Adult and Health Services,Head of Adults,Third Party Payments,472101,Purchase of Care,03-Oct-2017,3342351-1743366H,"1,691.36",EMBRACING CARE.
Adult and Health Services,Head of Adults,Third Party Payments,472101,Purchase of Care,03-Oct-2017,3342351-1743521H,"1,668.64",EMBRACING CARE.
Adult and Health Services,Head of Adults,Third Party Payments,472101,Purchase of Care,03-Oct-2017,3342351-1743542H,768.40,EMBRACING CARE.
Adult and Health Services,Head of Adults,Third Party Payments,472101,Purchase of Care,03-Oct-2017,3342351-1743550H,691.08,EMBRACING CARE.
Adult and Health Services,Head of Adults,Third Party Payments,472101,Purchase of Care,03-Oct-2017,3342351-1743600H,587.66,EMBRACING CARE.
Adult and Health Services,Head of Adults,Third Party Payments,478101,Purchase of Care,03-Oct-2017,3342351-1744064H,"3,173.72",EMBRACING CARE.
Adult and Health Services,Head of Adults,Third Party Payments,478101,Purchase of Care,03-Oct-2017,3342351-1744094H,"3,173.72",EMBRACING CARE.
Adult and Health Services,Head of Adults,Third Party Payments,472101,Purchase of Care,03-Oct-2017,3342351-1744134H,518.32,EMBRACING CARE.
Adult and Health Services,Head of Adults,Third Party Payments,472101,Purchase of Care,03-Oct-2017,3342351-1744237H,791.12,EMBRACING CARE.
Adult and Health Services,Head of Adults,Third Party Payments,472101,Purchase of Care,03-Oct-2017,3342351-1744351H,991.16,EMBRACING CARE.
Adult and Health Services,Head of Adults,Third Party Payments,472101,Purchase of Care,03-Oct-2017,3342351-1744380H,527.40,EMBRACING CARE.
Adult and Health Services,Head of Adults,Third Party Payments,472101,Purchase of Care,03-Oct-2017,3342351-1744385H,"1,377.64",EMBRACING CARE.
Adult and Health Services,Head of Adults,Third Party Payments,472101,Purchase of Care,03-Oct-2017,3342351-1744388H,509.24,EMBRACING CARE.
Adult and Health Services,Head of Adults,Third Party Payments,472101,Purchase of Care,03-Oct-2017,3342351-1744395H,845.68,EMBRACING CARE.
Adult and Health Services,Head of Adults,Third Party Payments,472101,Purchase of Care,03-Oct-2017,3342351-1744412H,"1,945.96",EMBRACING CARE.
Adult and Health Services,Head of Adults,Third Party Payments,472101,Purchase of Care,03-Oct-2017,3342351-1744420H,"1,964.16",EMBRACING CARE.
Adult and Health Services,Head of Adults,Third Party Payments,472101,Purchase of Care,03-Oct-2017,3342351-1744424H,791.12,EMBRACING CARE.
Adult and Health Services,Head of Adults,Third Party Payments,472101,Purchase of Care,03-Oct-2017,3342351-1744435H,663.80,EMBRACING CARE.
Adult and Health Services,Head of Adults,Third Party Payments,472101,Purchase of Care,03-Oct-2017,3342351-1744440H,859.32,EMBRACING CARE.
Adult and Health Services,Head of Adults,Third Party Payments,472101,Purchase of Care,03-Oct-2017,3342351-1744442H,"1,209.40",EMBRACING CARE.
Adult and Health Services,Head of Adults,Third Party Payments,472101,Purchase of Care,03-Oct-2017,3342351-1744455H,545.60,EMBRACING CARE.
Adult and Health Services,Head of Adults,Third Party Payments,472101,Purchase of Care,03-Oct-2017,3342351-1744469H,"1,436.76",EMBRACING CARE.
Adult and Health Services,Head of Adults,Third Party Payments,472101,Purchase of Care,03-Oct-2017,3342351-1744504H,791.12,EMBRACING CARE.
Adult and Health Services,Head of Adults,Third Party Payments,472101,Purchase of Care,03-Oct-2017,3342351-1744545H,600.16,EMBRACING CARE.
Adult and Health Services,Head of Adults,Third Party Payments,472101,Purchase of Care,03-Oct-2017,3342351-1744550H,859.32,EMBRACING CARE.
Adult and Health Services,Head of Adults,Third Party Payments,472101,Purchase of Care,03-Oct-2017,3342351-1744565H,722.92,EMBRACING CARE.
Adult and Health Services,Head of Adults,Third Party Payments,472101,Purchase of Care,03-Oct-2017,3342351-1744585H,691.08,EMBRACING CARE.
Adult and Health Services,Head of Adults,Third Party Payments,472101,Purchase of Care,03-Oct-2017,3342351-1744597H,859.32,EMBRACING CARE.
Adult and Health Services,Head of Adults,Third Party Payments,472101,Purchase of Care,03-Oct-2017,3342351-1744641H,644.49,EMBRACING CARE.
Adult and Health Services,Head of Adults,Third Party Payments,472101,Purchase of Care,03-Oct-2017,3342351-1744682H,863.88,EMBRACING CARE.
Adult and Health Services,Head of Adults,Third Party Payments,472101,Purchase of Care,03-Oct-2017,3342351-1744755H,"1,718.64",EMBRACING CARE.
Adult and Health Services,Head of Adults,Third Party Payments,472101,Purchase of Care,03-Oct-2017,3342351-1744811H,"2,837.12",EMBRACING CARE.
Adult and Health Services,Head of Adults,Third Party Payments,472101,Purchase of Care,03-Oct-2017,3342351-1744812H,"1,200.32",EMBRACING CARE.
Adult and Health Services,Head of Adults,Third Party Payments,472101,Purchase of Care,03-Oct-2017,3342351-1744842H,763.84,EMBRACING CARE.
Adult and Health Services,Head of Adults,Third Party Payments,472101,Purchase of Care,03-Oct-2017,3342351-1744927H,645.64,EMBRACING CARE.
Adult and Health Services,Head of Adults,Third Party Payments,472101,Purchase of Care,03-Oct-2017,3342351-1744947H,"1,636.80",EMBRACING CARE.
Adult and Health Services,Head of Adults,Third Party Payments,472101,Purchase of Care,03-Oct-2017,3342351-1745013H,859.32,EMBRACING CARE.
Adult and Health Services,Head of Adults,Third Party Payments,472101,Purchase of Care,03-Oct-2017,3342351-1745016H,"1,718.64",EMBRACING CARE.
Adult and Health Services,Head of Adults,Third Party Payments,472101,Purchase of Care,03-Oct-2017,3342351-1745026H,663.80,EMBRACING CARE.
Adult and Health Services,Head of Adults,Third Party Payments,472101,Purchase of Care,03-Oct-2017,3342351-1745040H,586.52,EMBRACING CARE.
Adult and Health Services,Head of Adults,Third Party Payments,472101,Purchase of Care,03-Oct-2017,3342351-1745145H,"1,241.24",EMBRACING CARE.
Adult and Health Services,Head of Adults,Third Party Payments,472101,Purchase of Care,03-Oct-2017,3342351-1745149H,"1,009.36",EMBRACING CARE.
Adult and Health Services,Head of Adults,Third Party Payments,472101,Purchase of Care,03-Oct-2017,3342351-1745199H,763.84,EMBRACING CARE.
Adult and Health Services,Head of Adults,Third Party Payments,472101,Purchase of Care,03-Oct-2017,3342351-1745212H,"1,186.68",EMBRACING CARE.
Adult and Health Services,Head of Adults,Third Party Payments,472101,Purchase of Care,03-Oct-2017,3342351-1745226H,"1,273.08",EMBRACING CARE.
Adult and Health Services,Head of Adults,Third Party Payments,472101,Purchase of Care,03-Oct-2017,3342351-1745238H,763.84,EMBRACING CARE.
Adult and Health Services,Head of Adults,Third Party Payments,472101,Purchase of Care,03-Oct-2017,3342351-1745243H,504.68,EMBRACING CARE.
Adult and Health Services,Head of Adults,Third Party Payments,472101,Purchase of Care,03-Oct-2017,3342351-1745297H,763.84,EMBRACING CARE.
Adult and Health Services,Head of Adults,Third Party Payments,472101,Purchase of Care,03-Oct-2017,3342351-1745322H,509.24,EMBRACING CARE.
Adult and Health Services,Head of Adults,Third Party Payments,472101,Purchase of Care,03-Oct-2017,3342351-1745341H,550.14,EMBRACING CARE.
Adult and Health Services,Head of Adults,Third Party Payments,472101,Purchase of Care,03-Oct-2017,3342351-1745388H,668.36,EMBRACING CARE.
Adult and Health Services,Head of Adults,Third Party Payments,472101,Purchase of Care,03-Oct-2017,3342351-1745410H,750.20,EMBRACING CARE.
Adult and Health Services,Head of Adults,Third Party Payments,472101,Purchase of Care,03-Oct-2017,3342351-1745430H,763.84,EMBRACING CARE.
Adult and Health Services,Head of Adults,Third Party Payments,472101,Purchase of Care,03-Oct-2017,3342351-1745543H,709.28,EMBRACING CARE.
Adult and Health Services,Head of Adults,Third Party Payments,472101,Purchase of Care,03-Oct-2017,3342351-1745554H,536.51,EMBRACING CARE.
Adult and Health Services,Head of Adults,Third Party Payments,472101,Purchase of Care,03-Oct-2017,3342351-1745594H,995.72,EMBRACING CARE.
Adult and Health Services,Head of Adults,Third Party Payments,472101,Purchase of Care,03-Oct-2017,3342351-1745596H,"2,455.20",EMBRACING CARE.
Adult and Health Services,Head of Adults,Third Party Payments,472101,Purchase of Care,03-Oct-2017,3342351-1745646H,891.16,EMBRACING CARE.
Adult and Health Services,Head of Adults,Third Party Payments,472101,Purchase of Care,03-Oct-2017,3342351-1745776H,"1,527.68",EMBRACING CARE.
Adult and Health Services,Head of Adults,Third Party Payments,472101,Purchase of Care,03-Oct-2017,3342351-1745777H,754.76,EMBRACING CARE.
Adult and Health Services,Head of Adults,Third Party Payments,472101,Purchase of Care,03-Oct-2017,3342351-1745796H,536.52,EMBRACING CARE.
Adult and Health Services,Head of Adults,Third Party Payments,472101,Purchase of Care,03-Oct-2017,3342351-1745851H,531.96,EMBRACING CARE.
Adult and Health Services,Head of Adults,Third Party Payments,472101,Purchase of Care,03-Oct-2017,3342351-1746096H,572.88,EMBRACING CARE.
Adult and Health Services,Head of Adults,Third Party Payments,472101,Purchase of Care,03-Oct-2017,3342351-1746142H,"1,145.76",EMBRACING CARE.
Adult and Health Services,Head of Adults,Third Party Payments,472101,Purchase of Care,03-Oct-2017,3342351-1746176H,572.88,EMBRACING CARE.
Adult and Health Services,Head of Adults,Third Party Payments,472101,Purchase of Care,03-Oct-2017,3342351-1746207H,909.32,EMBRACING CARE.
Adult and Health Services,Head of Adults,Third Party Payments,472101,Purchase of Care,03-Oct-2017,3342351-1746210H,600.16,EMBRACING CARE.
Adult and Health Services,Head of Adults,Third Party Payments,472101,Purchase of Care,03-Oct-2017,3342351-1746230H,891.16,EMBRACING CARE.
Adult and Health Services,Head of Adults,Third Party Payments,472101,Purchase of Care,03-Oct-2017,3342351-1746249H,645.64,EMBRACING CARE.
Adult and Health Services,Head of Adults,Third Party Payments,472101,Purchase of Care,03-Oct-2017,3342351-1746261H,622.88,EMBRACING CARE.
Adult and Health Services,Head of Adults,Third Party Payments,472101,Purchase of Care,03-Oct-2017,3342351-1746288H,554.68,EMBRACING CARE.
Adult and Health Services,Head of Adults,Third Party Payments,472101,Purchase of Care,03-Oct-2017,3342351-1746347H,732.00,EMBRACING CARE.
Adult and Health Services,Head of Adults,Third Party Payments,472101,Purchase of Care,03-Oct-2017,3342351-1746349H,568.32,EMBRACING CARE.
Adult and Health Services,Head of Adults,Third Party Payments,472101,Purchase of Care,03-Oct-2017,3342351-1746350H,572.88,EMBRACING CARE.
Adult and Health Services,Head of Adults,Third Party Payments,472101,Purchase of Care,03-Oct-2017,3342351-1746354H,859.32,EMBRACING CARE.
Adult and Health Services,Head of Adults,Third Party Payments,472101,Purchase of Care,03-Oct-2017,3342351-1746355H,531.96,EMBRACING CARE.
Adult and Health Services,Head of Adults,Third Party Payments,472101,Purchase of Care,03-Oct-2017,3342351-1746397H,591.08,EMBRACING CARE.
Adult and Health Services,Head of Adults,Third Party Payments,472101,Purchase of Care,03-Oct-2017,3342351-1746399H,645.64,EMBRACING CARE.
Adult and Health Services,Head of Adults,Third Party Payments,472101,Purchase of Care,03-Oct-2017,3342351-1746535H,579.70,EMBRACING CARE.
Adult and Health Services,Head of Adults,Third Party Payments,472101,Purchase of Care,03-Oct-2017,3342351-1746609H,"1,718.64",EMBRACING CARE.
Adult and Health Services,Head of Adults,Third Party Payments,472101,Purchase of Care,03-Oct-2017,3342351-1746616H,822.96,EMBRACING CARE.
Adult and Health Services,Head of Adults,Third Party Payments,472101,Purchase of Care,03-Oct-2017,3342351-1746676H,641.08,EMBRACING CARE.
Adult and Health Services,Head of Adults,Third Party Payments,472101,Purchase of Care,03-Oct-2017,3342351-1746695H,"1,023.00",EMBRACING CARE.
Adult and Health Services,Head of Adults,Third Party Payments,472101,Purchase of Care,03-Oct-2017,3342351-1746749H,636.52,EMBRACING CARE.
Adult and Health Services,Head of Adults,Third Party Payments,472101,Purchase of Care,03-Oct-2017,3342351-1746751H,572.88,EMBRACING CARE.
Adult and Health Services,Head of Adults,Third Party Payments,472101,Purchase of Care,03-Oct-2017,3342351-1746791H,743.38,EMBRACING CARE.
Adult and Health Services,Head of Adults,Third Party Payments,472101,Purchase of Care,03-Oct-2017,3342351-1746809H,"1,186.68",EMBRACING CARE.
